{"text_format":"1","workbook":"xlsx","n_sheets":12,"sheets":["Calcul des taux (formules)","Aide suppl. (volets I et II)","Martelage","Traitements admissibles","Réductions zones-bandes","Étapes calcul majorations","Versions du fichier","Menus","Majorations applicables","RXF","Calculs grille","Log"],"not_rendered":{"charts":0,"images":7,"macros":1,"external_links":0,"defined_names":120,"comments":3,"pivot_tables":0},"unopened":[],"bounds":{"document_bytes":16777216,"sheet_cells":100000,"rows_first":2000,"rows_last":500,"rows_between":2000,"halvings":0,"cell_chars":16384,"cell_head_chars":4096},"cells_cut":0,"cells_raw":0,"read":"row_number_cap","date_system":"1900"}

{"sheet":"Calcul des taux (formules)","index":0,"n_rows":1048520,"n_cols":22,"rows_kept":4500,"cut":true,"hidden":false,"merged":[[149,6,151,8],[153,0,154,5],[145,0,145,8],[5,6,5,8],[6,6,6,8],[7,6,7,8],[8,6,8,8],[36,0,36,8],[37,0,37,8],[33,6,33,8],[34,6,34,8],[35,6,35,8],[38,0,38,8],[41,0,41,8],[42,0,42,8],[44,0,44,8],[45,0,45,8],[47,6,47,8],[116,0,116,5],[89,0,89,5],[143,0,143,5],[88,0,88,8],[101,0,101,8],[124,0,124,5],[2,0,2,6],[2,7,2,8],[141,0,141,5],[84,0,84,8],[142,0,142,5],[128,0,128,5],[138,0,138,4],[129,0,129,5],[139,0,139,5],[119,0,119,4],[96,0,96,5],[97,0,97,5],[106,0,106,5],[112,0,112,5],[107,0,107,5],[108,0,108,5],[123,0,123,5],[120,0,120,5],[100,0,100,5],[130,0,130,5],[71,0,71,5],[53,4,53,5],[66,0,66,8],[9,0,9,5],[144,0,144,8],[0,0,0,8],[11,0,11,8],[13,0,13,8],[14,0,14,8],[15,0,15,8],[17,0,17,8],[19,0,19,8],[21,0,21,8],[23,0,23,8],[5,0,5,5],[3,0,3,5],[4,0,4,8],[16,0,16,8],[18,0,18,8],[20,0,20,8],[22,0,22,8],[103,0,103,5],[83,0,83,5],[85,0,85,5],[135,0,135,5],[93,0,93,5],[95,0,95,5],[90,0,90,5],[136,0,136,5],[137,0,137,5],[140,0,140,8],[131,0,131,5],[133,0,133,5],[134,0,134,5],[98,0,98,5],[118,0,118,5],[125,0,125,8],[127,0,127,5],[132,0,132,5],[126,0,126,5],[104,0,104,5],[122,0,122,5],[109,0,109,5],[113,0,113,5],[111,0,111,5],[102,0,102,5],[110,0,110,5],[105,0,105,8],[121,0,121,8],[115,0,115,5],[117,0,117,5],[114,0,114,5],[81,0,81,5],[73,0,73,5],[77,0,77,5],[78,0,78,5],[80,0,80,5],[82,0,82,4],[99,0,99,4],[86,0,86,5],[87,0,87,5],[92,0,92,5],[91,0,91,5],[94,0,94,5],[54,2,54,3],[72,0,72,5],[75,0,75,5],[74,0,74,5],[76,0,76,5],[79,0,79,5],[59,0,59,5],[57,0,57,1],[58,0,58,1],[57,2,57,3],[58,2,58,3],[70,0,70,8],[62,4,62,5],[33,0,33,5],[49,0,49,5],[47,0,47,5],[34,0,34,5],[32,0,32,4],[48,0,48,5],[43,0,43,2],[43,3,43,5],[39,0,39,8],[46,0,46,8],[40,6,40,8],[43,6,43,8],[35,0,35,5],[40,0,40,5],[48,6,48,8],[49,6,49,8],[31,0,31,8],[12,0,12,4],[6,0,6,5],[7,0,7,5],[8,0,8,5],[30,0,30,8],[24,0,24,8],[26,0,26,8],[28,0,28,8],[25,0,25,8],[27,0,27,8],[29,0,29,8],[10,4,10,5],[10,0,10,3],[50,0,50,5],[67,0,67,8],[60,0,60,8],[69,0,69,8],[55,4,55,5],[57,4,57,5],[58,4,58,5],[65,0,65,5],[51,0,51,8],[56,4,56,5],[55,0,55,1],[56,0,56,1],[55,2,55,3],[56,2,56,3],[62,0,62,3],[68,0,68,5],[61,0,61,8],[52,0,52,8],[53,0,53,1],[54,4,54,5],[63,0,63,8],[64,0,64,8],[54,0,54,1],[53,2,53,3],[1048490,4,1048490,5],[1048491,0,1048491,1],[1048491,2,1048491,3],[1048491,4,1048491,5],[1048484,0,1048484,8],[1048485,0,1048485,8],[1048486,0,1048486,1],[1048486,2,1048486,3],[1048486,4,1048486,5],[1048487,0,1048487,1],[1048487,2,1048487,3],[1048487,4,1048487,5],[1048488,0,1048488,1],[1048488,2,1048488,3],[1048488,4,1048488,5],[1048492,0,1048492,5],[1048475,0,1048475,8],[1048477,0,1048477,1],[1048477,2,1048477,3],[1048477,4,1048477,5],[1048478,0,1048478,1],[1048478,2,1048478,3],[1048478,4,1048478,5],[1048479,0,1048479,1],[1048479,2,1048479,3],[1048479,4,1048479,5],[1048480,0,1048480,1],[1048480,2,1048480,3],[1048480,4,1048480,5],[1048481,0,1048481,1],[1048481,2,1048481,3],[1048481,4,1048481,5],[1048476,0,1048476,8],[1048482,0,1048482,1],[1048489,0,1048489,1],[1048489,2,1048489,3],[1048489,4,1048489,5],[1048490,0,1048490,1],[1048490,2,1048490,3],[1048483,0,1048483,5],[1048466,0,1048466,8],[1048468,0,1048468,1],[1048468,2,1048468,3],[1048468,4,1048468,5],[1048469,0,1048469,1],[1048469,2,1048469,3],[1048469,4,1048469,5],[1048470,0,1048470,1],[1048470,2,1048470,3],[1048470,4,1048470,5],[1048471,0,1048471,1],[1048471,2,1048471,3],[1048471,4,1048471,5],[1048472,0,1048472,1],[1048472,2,1048472,3],[1048472,4,1048472,5],[166,0,166,5],[166,6,166,8],[1048467,0,1048467,8],[1048473,0,1048473,1],[1048473,2,1048473,3],[1048473,4,1048473,5],[1048474,0,1048474,5],[1048482,2,1048482,3],[1048482,4,1048482,5],[152,0,152,5],[152,6,152,8],[153,6,154,8],[155,6,155,8],[156,0,156,8],[159,0,159,8],[163,0,163,5],[163,6,163,8],[164,6,165,8],[1,0,1,5],[177,6,177,8],[177,0,177,5],[179,0,180,8],[175,6,176,8],[175,0,176,5],[171,0,173,5],[171,6,173,8],[160,0,162,5],[160,6,162,8],[164,0,165,5],[146,0,146,8],[147,0,147,8],[158,0,158,8],[157,0,157,8],[168,0,168,8],[169,0,169,8],[167,0,167,8],[170,0,170,8],[174,0,174,5],[174,6,174,8],[149,0,151,5],[148,0,148,8],[155,0,155,5]],"bounds":{"rows_first":2000,"rows_last":500,"rows_between":2000,"halvings":0},"read":"row_number_cap"}
[]
["Annexe au rapport et au calcul des taux d'investissement pour \n  les coupes partielles\n   2018-2019\nForêt publique"]
[" *** Veuillez saisir les informations dans les cellules blanches (Planification et BGAD) et jaunes (Ministère) ***",null,null,null,null,null,null,"Version 2 : 2018-05-15"]
["Contexte d'utilisation",null,null,null,null,null,null,null,"Inscrire une valeur"]
["Identification"]
["UA"]
["Secteur d'intervention"]
["Unité de compilation"]
["Numéro de la prescription"]
["Traitement (Code DICA)",null,null,null,null,null,null,null,"Inscrire une valeur"]
["Traitement (Code RATF)",null,null,null,{"$f":"IFERROR(VLOOKUP($I$10,Menus!$A$219:$E$327,3,FALSE),Menus!$C$327)","v":"RATF_Utilisateur"}]
["Formule à utiliser pour le calcul"]
[{"$f":"IF($I$10<>\"\",\"Choix de la formule en fonction du code DICA  -  \"&$I$10,\"Choix de la formule en fonction du code DICA\")","v":"Choix de la formule en fonction du code DICA  -  Inscrire une valeur"},null,null,null,null,{"$f":"IFERROR(VLOOKUP($I$10,Menus!$A$377:$F$478,6,FALSE),Menus!$F$479)","v":"F_Utilisateur"},null,null,"Inscrire une valeur"]
["Constante et formule utilisées pour déterminer le taux d'investissement"]
["Constante 1"]
["C1 = - 0,0411P + (333,491 / P) + 4,6068"]
["Constante 2"]
["C2 = - 0,0514P + (333,491/P) + 5,2645"]
["Formule 1"]
["Valeur = ( C1 + (4,861vr-0,682 - 7,487vp-0,391)) x P"]
["Formule 2"]
["Valeur = ( C1 + (14,385vr-0,237 - 10,187vp-0,237) - 0,43) x P"]
["Formule 4"]
["Valeur = ( C2 + (10,992vr-0,526 - 6,492vp-0,563) - 0,43) x P"]
["Formule 5 - Retirée en 2018-2019"]
["Valeur = ( C2 + (10,523vr-0,535 - 6,406vp-0,563) - 0,43) x P"]
["Formule 6"]
["Valeur = ( C2 + (7,638vr-0,534 - 6,310vp-0,564) x P  "]
["Formule 7"]
["Valeur = ( C2 + (7,487vr-0,643 - 6,310vp-0,564) x P"]
["Intrants"]
["Intrants (Toutes)"]
["Sélection des tiges à récolter",null,null,null,null,{"$f":"IFERROR((VLOOKUP($I$13,Menus!$A$331:$C$337,2,FALSE)),\"\")","v":""}]
["Volume à prélever, m3/ha net (P)"]
["Volume moyen des tiges du peuplement avant la récolte, m3/tige brut (vp)"]
["Volume moyen des tiges à récolter, m3/tige brut (vr)"]
[{"$f":"\"Majorations et/ou réductions admissibles pour la formule retenue « \"&I13&\" »\"&\" - Voir l'onglet «Étapes calcul majoration»\"","v":"Majorations et/ou réductions admissibles pour la formule retenue « Inscrire une valeur » - Voir l'onglet «Étapes calcul majoration»"}]
[{"$f":"VLOOKUP('Calcul des taux (formules)'!$I$13,'Majorations applicables'!$A$2:$G$8,7,FALSE)","v":"Inscrire une valeur à la cellule I13"}]
["Réduction selon le ratio des trouées récoltées sous forme de CPRS (EMR1)"]
["Réduction EMR1 (F4-F5-F6-F7)"]
["Ratio des trouées sous forme de CPRS (%)"]
["Réduction pour les bandes non traitées (BNT1) - Voir l'onglet «Réductions zones-bandes»"]
["Formule utilisée pour calculer la proportion que la coupe partielle représente par rapport au secteur (Pr)"]
["Pr (%) = BP / (BP + BE + ZNT )",null,null,"Selon les valeurs inscrites à G48-G49-G50",null,null,{"$f":"IFERROR(IF(EXACT($G$48,\"\"),\"\",IF(EXACT($G$48,0),0,IF($G$48>0,($G$48/SUM($G$48:$G$50)),0))),0)","v":""}]
["Formule utilisée pour calculer la réduction (BNT1)",null,null,null,null,null,null,null,null,null,""]
["BNT1 = (0,8 x Pr2) - (1,8 x Pr) + 1"]
["Majoration BNT1 (F4-F5-F6-F7)"]
["BP : Largeur de la zone ou bande partiellement récoltée (m)"]
["BE : Largeur de la zone ou bande entièrement récoltée (m)"]
["ZNT : Largeur de la zone ou bande non traitée (m)"]
["Inscrire les renseignements dans la colonne associée au contexte d'utilisation",null,null,null,null,null,"Planification","BGAD","Ministère"]
["Majoration en fonction de la pente (PE2)"]
["Majoration en fonction de la pente (PE2) (Toutes)"]
["Classe de pente numérique",null,"Taux calculé ($/ha)",null,"Écart ($/ha)",null,"Superficie (ha)","Superficie (ha)","Superficie (ha)"]
["Pente A",null,{"$f":"IFERROR((VLOOKUP($I$13,$A$1048511:$W$1048520,8,FALSE)*VLOOKUP($A$55,'Majorations applicables'!$A$11:$B$15,2,FALSE)),0)","v":0},null,{"$f":"IFERROR(($C$55-(VLOOKUP($I$13,$A$1048511:$W$1048520,8,FALSE))),0)","v":0}]
["Pente B",null,{"$f":"IFERROR((VLOOKUP($I$13,$A$1048511:$W$1048520,8,FALSE)*VLOOKUP($A$56,'Majorations applicables'!$A$11:$B$15,2,FALSE)),0)","v":0},null,{"$f":"IFERROR(($C$56-(VLOOKUP($I$13,$A$1048511:$W$1048520,8,FALSE))),0)","v":0}]
["Pente C",null,{"$f":"IFERROR((VLOOKUP($I$13,$A$1048511:$W$1048520,8,FALSE)*VLOOKUP($A$57,'Majorations applicables'!$A$11:$B$15,2,FALSE)),0)","v":0},null,{"$f":"IFERROR(($C$57-(VLOOKUP($I$13,$A$1048511:$W$1048520,8,FALSE))),0)","v":0}]
["Pente D",null,{"$f":"IFERROR((VLOOKUP($I$13,$A$1048511:$W$1048520,8,FALSE)*VLOOKUP($A$58,'Majorations applicables'!$A$11:$B$15,2,FALSE)),0)","v":0},null,{"$f":"IFERROR(($C$58-(VLOOKUP($I$13,$A$1048511:$W$1048520,8,FALSE))),0)","v":0}]
["Pente E et plus",null,{"$f":"IFERROR((VLOOKUP($I$13,$A$1048511:$W$1048520,8,FALSE)*VLOOKUP($A$59,'Majorations applicables'!$A$11:$B$15,2,FALSE)),0)","v":0},null,{"$f":"IFERROR(($C$59-(VLOOKUP($I$13,$A$1048511:$W$1048520,8,FALSE))),0)","v":0}]
["Total",null,null,null,null,null,{"$f":"SUM($G$55:$G$59)","v":0},{"$f":"SUM($H$55:$H$59)","v":0},{"$f":"SUM($I$55:$I$59)","v":0}]
["Majorations pour les opérations manuelles (MAN)"]
["Majoration MAN (F1)"]
["Type d'opérations ",null,null,null,{"$f":"IF($I$13=\"Formule 1\",\"Majoration_MAN_F1\",\"Majoration_MAN_DIFF_F1\")","v":"Majoration_MAN_DIFF_F1"}]
["Majoration pour le rubannage des sentiers (RUB1)"]
["Majoration RUB1 (F1-F2-F4-F5-F7)"]
["Espacement entre les sentiers (m)"]
["Majoration pour l'hébergement (H1)"]
["Majoration H1 (F1-F2-F4-F5-F6-F7)"]
["Hébergement (3,2%)"]
["Totaux"]
["Totaux (F1)"]
["Taux de base exécution ($/m³)",null,null,null,null,null,{"$f":"IFERROR(IF($I$13='Majorations applicables'!$A$2,VLOOKUP($I$13,'Calcul des taux (formules)'!$A$1048512:$W$1048520,8,FALSE)/$G$34,0),0)","v":0},{"$f":"IFERROR(IF(OR($I$4=Menus!$A$677,$I$4=Menus!$A$678),IF($I$13='Majorations applicables'!$A$2,VLOOKUP($I$13,'Calcul des taux (formules)'!$A$1048512:$W$1048520,8,FALSE)/$G$34,0),0),0)","v":0},{"$f":"IFERROR(IF($I$4=Menus!$A$678,IF($I$13='Majorations applicables'!A$2,VLOOKUP($I$13,'Calcul des taux (formules)'!$A$1048512:$W$1048520,8,FALSE)/$G$34,0),0),0)","v":0}]
["Majoration pour la pente PE2 ($/m³)",null,null,null,null,null,{"$f":"IFERROR(IF($I$13='Majorations applicables'!$A$2,VLOOKUP($I$13,$A$1048512:$W$1048520,11,FALSE)/$G$34,0),0)","v":0},{"$f":"IFERROR(IF(OR($I$4=Menus!$A$677,$I$4=Menus!$A$678),IF($I$13='Majorations applicables'!$A$2,VLOOKUP($I$13,$A$1048512:$W$1048520,12,FALSE)/$G$34,0),0),0)","v":0},{"$f":"IFERROR(IF($I$4=Menus!$A$678,IF($I$13='Majorations applicables'!$A$2,VLOOKUP($I$13,$A$1048512:$W$1048520,13,FALSE)/$G$34,0),0),0)","v":0}]
["Majoration pour la pente PE2 ($/ha)",null,null,null,null,null,{"$f":"IFERROR(IF($I$13='Majorations applicables'!$A$2,VLOOKUP($I$13,$A$1048512:$W$1048520,11,FALSE),0),0)","v":0},{"$f":"IFERROR(IF(OR($I$4=Menus!$A$677,$I$4=Menus!$A$678),IF($I$13='Majorations applicables'!$A$2,VLOOKUP($I$13,$A$1048512:$W$1048520,12,FALSE),0),0),0)","v":0},{"$f":"IFERROR(IF($I$4=Menus!$A$678,IF($I$13='Majorations applicables'!$A$2,VLOOKUP($I$13,$A$1048512:$W$1048520,13,FALSE),0),0),0)","v":0}]
["Taux MAN ($/m³)",null,null,null,null,null,{"$f":"IFERROR(VLOOKUP($I$13,'Calcul des taux (formules)'!$A$1048512:$W$1048520,14,FALSE)/$G$34,0)","v":0},{"$f":"IFERROR(IF(OR($I$4=Menus!$A$677,$I$4=Menus!$A$678),IF($I$13='Majorations applicables'!$A$2,VLOOKUP($I$13,$A$1048512:$W$1048520,15,FALSE)/$G$34,0),0),0)","v":0},{"$f":"IFERROR(IF($I$4=Menus!$A$678,IF($I$13='Majorations applicables'!$A$2,VLOOKUP($I$13,$A$1048512:$W$1048520,16,FALSE)/$G$34,0),0),0)","v":0}]
["Taux RUB1 ($/m³)",null,null,null,null,null,{"$f":"IFERROR(VLOOKUP($I$13,'Calcul des taux (formules)'!$A$1048512:$W$1048520,17,FALSE)/$G$34,0)","v":0},{"$f":"IFERROR(IF(OR($I$4=Menus!$A$677,$I$4=Menus!$A$678),VLOOKUP($I$13,'Calcul des taux (formules)'!$A$1048512:$W$1048520,18,FALSE)/$G$34,0),0)","v":0},{"$f":"IFERROR(IF($I$4=Menus!$A$678,VLOOKUP($I$13,'Calcul des taux (formules)'!$A$1048512:$W$1048520,19,FALSE)/$G$34,0),0)","v":0}]
["Taux H1 ($/m³)",null,null,null,null,null,{"$f":"IFERROR(VLOOKUP($I$13,'Calcul des taux (formules)'!$A$1048512:$W$1048520,20,FALSE)/$G$34,0)","v":0},{"$f":"IFERROR(IF(OR($I$4=Menus!$A$677,$I$4=Menus!$A$678),VLOOKUP($I$13,'Calcul des taux (formules)'!$A$1048512:$W$1048520,21,FALSE)/$G$34,0),0)","v":0},{"$f":"IFERROR(IF($I$4=Menus!$A$678,VLOOKUP($I$13,'Calcul des taux (formules)'!$A$1048512:$W$1048520,22,FALSE)/$G$34,0),0)","v":0}]
["Total des majorations à l'exécution ($/m³)",null,null,null,null,null,{"$f":"IFERROR(SUM($G$75:$G$77,$G$73),0)","v":0},{"$f":"IFERROR(SUM($H$75:$H$77,$H$73),0)","v":0},{"$f":"IFERROR(SUM($I$75:$I$77,$I$73),0)","v":0}]
["Total des majorations à l'exécution ($/ha)",null,null,null,null,null,{"$f":"IFERROR($G$78*$G$34,0)","v":0},{"$f":"IFERROR($H$78*$G$34,0)","v":0},{"$f":"IFERROR($I$78*$G$34,0)","v":0}]
["Taux d'exécution ($/m³)",null,null,null,null,null,{"$f":"IFERROR(SUM(G$72,G$78),0)","v":0},{"$f":"IFERROR(SUM(H$72,H$78),0)","v":0},{"$f":"IFERROR(SUM(I$72,I$78),0)","v":0}]
["Taux d'exécution ($/m³)",null,null,null,null,null,{"$f":"IFERROR(G$80*G$34,0)","v":0},{"$f":"IFERROR(H$80*G$34,0)","v":0},{"$f":"IFERROR($I$80*$G$34,0)","v":0}]
["Tous les critères sont atteints1 (Oui ou Non)",null,null,null,null,null,"S/O"]
["Plancher d'investissement de 39$/ha (Oui, Non ou Sans Objet)",null,null,null,null,{"$f":"IFERROR((IF(AND($I$86<=39,$I$82<>\"\"),\"Question_2_Moins_de_39\",IF($I$86>=39,\"Question_2_39_et_plus\",\"Question_2\"))),\"Question_2\")","v":"Question_2"},"S/O","S/O"]
["Pourcentage d'investissement",null,null,null,null,null,{"$f":"IFERROR('Majorations applicables'!$A$30,0.9)","v":0.9},{"$f":"IFERROR('Majorations applicables'!$A$30,0.9)","v":0.9},{"$f":"IFERROR('Majorations applicables'!$A$30,0.9)","v":0.9}]
["Résumé de l'investissement"]
["Taux global à payer ($/ha) - taux à inscrire à l'état d'avancement et au RATF",null,null,null,null,null,{"$f":"IFERROR(IF($G$60<>0,IF(ROUND(($G$81*$G$84),2)<'Majorations applicables'!$B$41,'Majorations applicables'!$B$41,ROUND(($G$81*$G$84),2)),0),0)","v":0},{"$f":"IFERROR(IF($H$60<>0,IF($H$82<>\"\",IF(OR($I$4=Menus!$A$677,$I$4=Menus!$A$678),IF($H$60<>0,IF(ROUND(($H$81*$H$84),2)<'Majorations applicables'!$B$41,'Majorations applicables'!$B$41,ROUND(($H$81*$H$84),2)),0),0),0),0),0)","v":0},{"$f":"IFERROR(IF($I$60<>0,IF($I$4=Menus!$A$678,IF($I$60<>0,IF(AND(ROUND(($I$81*(IF($I$82<>\"\",$I$82,0))*$I$84),2)<'Majorations applicables'!$B$41,$I$83=\"Oui\"),'Majorations applicables'!$B$41,IF(ROUND(($I$81*(IF($I$82<>\"\",$I$82,0))*$I$84),2)<0,0,ROUND(($I$81*(IF($I$82<>\"\",$I$82,0))*$I$84),2))),0),0),0),0)","v":0}]
["Superficie (ha)",null,null,null,null,null,{"$f":"IFERROR(IF($I$13='Majorations applicables'!$A$2,ROUND($G$60,2),0),0)","v":0},{"$f":"IFERROR(IF(OR($I$4=Menus!$A$677,$I$4=Menus!$A$678),IF($I$13='Majorations applicables'!$A$2,ROUND($H$60,2),0),0),0)","v":0},{"$f":"IFERROR(IF($I$4=Menus!$A$678,IF($I$13='Majorations applicables'!$A$2,ROUND($I$60,2),0),0),0)","v":0}]
["Montant total à payer ($)",null,null,null,null,null,{"$f":"IFERROR(ROUND($G$86*$G$87,2),0)","v":0},{"$f":"IFERROR(ROUND($H$86*$H$87,2),0)","v":0},{"$f":"IFERROR(ROUND($I$86*$I$87,2),0)","v":0}]
["Totaux (F2)"]
["Taux de base exécution  ($/m³)",null,null,null,null,null,{"$f":"IFERROR(IF($I$13='Majorations applicables'!$A$3,VLOOKUP($I$13,'Calcul des taux (formules)'!$A$1048512:$W$1048520,8,FALSE)/$G$34,0),0)","v":0},{"$f":"IFERROR(IF(OR($I$4=Menus!$A$677,$I$4=Menus!$A$678),IF($I$13='Majorations applicables'!$A$3,VLOOKUP($I$13,'Calcul des taux (formules)'!$A$1048512:$W$1048520,8,FALSE)/$G$34,0),0),0)","v":0},{"$f":"IFERROR(IF($I$4=Menus!$A$678,IF($I$13='Majorations applicables'!A$3,VLOOKUP($I$13,'Calcul des taux (formules)'!$A$1048512:$W$1048520,8,FALSE)/$G$34,0),0),0)","v":0}]
["Majoration pour la pente PE2 ($/m³)",null,null,null,null,null,{"$f":"IFERROR(IF($I$13='Majorations applicables'!$A$3,VLOOKUP($I$13,$A$1048512:$W$1048520,11,FALSE)/$G$34,0),0)","v":0},{"$f":"IFERROR(IF(OR($I$4=Menus!$A$677,$I$4=Menus!$A$678),IF($I$13='Majorations applicables'!$A$3,VLOOKUP($I$13,$A$1048512:$W$1048520,12,FALSE)/$G$34,0),0),0)","v":0},{"$f":"IFERROR(IF($I$4=Menus!$A$678,IF($I$13='Majorations applicables'!$A$3,VLOOKUP($I$13,$A$1048512:$W$1048520,13,FALSE)/$G$34,0),0),0)","v":0}]
["Majoration pour la pente PE2 ($/ha)",null,null,null,null,null,{"$f":"IFERROR(IF($I$13='Majorations applicables'!$A$3,VLOOKUP($I$13,$A$1048512:$W$1048520,11,FALSE),0),0)","v":0},{"$f":"IFERROR(IF(OR($I$4=Menus!$A$677,$I$4=Menus!$A$678),IF($I$13='Majorations applicables'!$A$3,VLOOKUP($I$13,$A$1048512:$W$1048520,12,FALSE),0),0),0)","v":0},{"$f":"IFERROR(IF($I$4=Menus!$A$678,IF($I$13='Majorations applicables'!$A$3,VLOOKUP($I$13,$A$1048512:$W$1048520,13,FALSE),0),0),0)","v":0}]
["Taux RUB1 ($/m³)",null,null,null,null,null,{"$f":"IFERROR(VLOOKUP($I$13,'Calcul des taux (formules)'!$A$1048512:$W$1048520,17,FALSE)/$G$34,0)","v":0},{"$f":"IFERROR(IF(OR($I$4=Menus!$A$677,$I$4=Menus!$A$678),VLOOKUP($I$13,'Calcul des taux (formules)'!$A$1048512:$W$1048520,18,FALSE)/$G$34,0),0)","v":0},{"$f":"IFERROR(IF($I$4=Menus!$A$678,VLOOKUP($I$13,'Calcul des taux (formules)'!$A$1048512:$W$1048520,19,FALSE)/$G$34,0),0)","v":0}]
["Taux H1 ($/m³)",null,null,null,null,null,{"$f":"IFERROR(VLOOKUP($I$13,'Calcul des taux (formules)'!$A$1048512:$W$1048520,20,FALSE)/$G$34,0)","v":0},{"$f":"IFERROR(IF(OR($I$4=Menus!$A$677,$I$4=Menus!$A$678),VLOOKUP($I$13,'Calcul des taux (formules)'!$A$1048512:$W$1048520,21,FALSE)/$G$34,0),0)","v":0},{"$f":"IFERROR(IF($I$4=Menus!$A$678,VLOOKUP($I$13,'Calcul des taux (formules)'!$A$1048512:$W$1048520,22,FALSE)/$G$34,0),0)","v":0}]
["Total des majorations à l'exécution ($/m³)",null,null,null,null,null,{"$f":"IFERROR(SUM($G$93:$G$94,$G$91),0)","v":0},{"$f":"IFERROR(SUM($H$93:$H$94,$H$91),0)","v":0},{"$f":"IFERROR(SUM($I$93:$I$94,$I$91),0)","v":0}]
["Total des majorations à l'exécution ($/ha)",null,null,null,null,null,{"$f":"IFERROR($G$95*$G$34,0)","v":0},{"$f":"IFERROR($H$95*$G$34,0)","v":0},{"$f":"IFERROR($I$95*$G$34,0)","v":0}]
["Taux d'exécution ($/m³)",null,null,null,null,null,{"$f":"IFERROR(SUM($G$90,$G$95),0)","v":0},{"$f":"IFERROR(SUM($H$90,$H$95),0)","v":0},{"$f":"IFERROR(SUM($I$90,$I$95),0)","v":0}]
["Taux d'exécution ($/ha)",null,null,null,null,null,{"$f":"IFERROR($G$97*$G$34,0)","v":0},{"$f":"IFERROR($H$97*$G$34,0)","v":0},{"$f":"IFERROR($I$97*$G$34,0)","v":0}]
["Tous les critères sont atteints1 (Oui ou Non)",null,null,null,null,null,"S/O"]
["Plancher d'investissement de 39$/ha (Oui, Non ou Sans Objet)",null,null,null,null,{"$f":"IFERROR((IF(AND($I$103<=39,$I$99<>\"\"),\"Question_2_Moins_de_39\",IF($I$103>=39,\"Question_2_39_et_plus\",\"Question_2\"))),\"Question_2\")","v":"Question_2"},"S/O","S/O"]
["Pourcentage d'investissement",null,null,null,null,null,{"$f":"IFERROR('Majorations applicables'!$A$30,0.9)","v":0.9},{"$f":"IFERROR('Majorations applicables'!$A$30,0.9)","v":0.9},{"$f":"IFERROR('Majorations applicables'!$A$30,0.9)","v":0.9}]
["Résumé de l'investissement"]
["Taux global à payer ($/ha) - taux à inscrire à l'état d'avancement et au RATF",null,null,null,null,null,{"$f":"IFERROR(IF($G$60<>0,IF(ROUND(($G$98*$G$101),2)<'Majorations applicables'!$B$41,'Majorations applicables'!$B$41,ROUND(($G$98*$G$101),2)),0),0)","v":0},{"$f":"IFERROR(IF($H$60<>0,IF($H$99<>\"\",IF(OR($I$4=Menus!$A$677,$I$4=Menus!$A$678),IF($H$60<>0,IF(ROUND(($H$98*$H$101),2)<'Majorations applicables'!$B$41,'Majorations applicables'!$B$41,ROUND(($H$98*$H$101),2)),0),0),0),0),0)","v":0},{"$f":"IFERROR(IF($I$60<>0,IF($I$4=Menus!$A$678,IF($I$60<>0,IF(AND(ROUND(($I$98*(IF($I$99<>\"\",$I$99,0))*$I$101),2)<'Majorations applicables'!$B$41,$I$100=\"Oui\"),'Majorations applicables'!$B$41,IF(ROUND(($I$98*(IF($I$99<>\"\",$I$99,0))*$I$101),2)<0,0,ROUND(($I$98*(IF($I$99<>\"\",$I$99,0))*$I$101),2))),0),0),0),0)","v":0}]
["Superficie (ha)",null,null,null,null,null,{"$f":"IFERROR(IF($I13='Majorations applicables'!$A$3,ROUND($G$60,2),0),0)","v":0},{"$f":"IFERROR(IF(OR($I$4=Menus!$A$677,$I$4=Menus!$A$678),IF($I$13='Majorations applicables'!$A$3,ROUND($H$60,2),0),0),0)","v":0},{"$f":"IFERROR(IF($I$4=Menus!$A$678,(IF($I$13='Majorations applicables'!$A$3,ROUND($I$60,2),0)),0),0)","v":0}]
["Montant total à payer ($)",null,null,null,null,null,{"$f":"IFERROR(ROUND($G$103*$G$104,2),0)","v":0},{"$f":"IFERROR(ROUND($H$103*$H$104,2),0)","v":0},{"$f":"IFERROR(ROUND($I$103*$I$104,2),0)","v":0}]
["Totaux (F4-F5-F7)"]
["Taux de base exécution  ($/m³)",null,null,null,null,null,{"$f":"IFERROR(IF(OR($I$13='Majorations applicables'!$A$4,$I$13='Majorations applicables'!$A$5,$I$13='Majorations applicables'!$A$7),VLOOKUP($I$13,'Calcul des taux (formules)'!$A$1048512:$W$1048520,8,FALSE)/$G$34,0),0)","v":0},{"$f":"IFERROR((IF(OR($I$4=Menus!$A$677,$I$4=Menus!$A$678),IF(OR($I$13='Majorations applicables'!$A$4,$I$13='Majorations applicables'!$A$5,$I$13='Majorations applicables'!$A$7),VLOOKUP($I$13,'Calcul des taux (formules)'!$A$1048512:$W$1048520,8,FALSE)/$G$34,0),0)),0)","v":0},{"$f":"IFERROR(IF($I$4=Menus!$A$678,IF(OR($I$13='Majorations applicables'!$A$4,$I$13='Majorations applicables'!$A$5,$I$13='Majorations applicables'!$A$7),VLOOKUP($I$13,'Calcul des taux (formules)'!$A$1048512:$W$1048520,8,FALSE)/$G$34,0),0),0)","v":0}]
["Taux EMR1 ($/m³)",null,null,null,null,null,{"$f":"IFERROR(VLOOKUP($I$13,'Calcul des taux (formules)'!$A$1048512:$W$1048520,9,FALSE)/$G$34,0)","v":0},{"$f":"IFERROR(IF(OR($I$4=Menus!$A$677,$I$4=Menus!$A$678),VLOOKUP($I$13,'Calcul des taux (formules)'!$A$1048512:$W$1048520,9,FALSE)/$G$34,0),0)","v":0},{"$f":"IFERROR(IF($I$4=Menus!$A$678,VLOOKUP($I$13,'Calcul des taux (formules)'!$A$1048512:$W$1048520,9,FALSE)/$G$34,0),0)","v":0}]
["Taux BNT1 (%)",null,null,null,null,null,{"$f":"IFERROR(IF($G$48>0,-(('Majorations applicables'!$B$19*POWER($G$44,'Majorations applicables'!$B$20))-('Majorations applicables'!$B$21*$G$44)+1),IF(AND(OR(EXACT($G$48,0),(EXACT($G$48,\"\"))),OR($G$49>0,$G$50>0)),\"Valider BNT1\",0)),0)","v":0},{"$f":"IFERROR((IF(OR($I$4=Menus!$A$677,$I$4=Menus!$A$678),IF($G$48>0,-(('Majorations applicables'!$B$19*POWER($G$44,'Majorations applicables'!$B$20))-('Majorations applicables'!$B$21*$G$44)+1),IF(AND(OR(EXACT($G$48,0),(EXACT($G$48,\"\"))),OR($G$49>0,$G$50>0)),\"Valider BNT1\",0)),0)),0)","v":0},{"$f":"IFERROR((IF($I$4=Menus!$A$678,IF($G$48>0,-(('Majorations applicables'!$B$19*POWER($G$44,'Majorations applicables'!$B$20))-('Majorations applicables'!$B$21*$G$44)+1),IF(AND(OR(EXACT($G$48,0),(EXACT($G$48,\"\"))),OR($G$49>0,$G$50>0)),\"Valider BNT1\",0)),0)),0)","v":0}]
["Taux BNT1 ($/m³)",null,null,null,null,null,{"$f":"IFERROR(VLOOKUP($I$13,'Calcul des taux (formules)'!$A$1048512:$W$1048520,10,FALSE)/$G$34,0)","v":0},{"$f":"IFERROR(IF(OR($I$4=Menus!$A$677,$I$4=Menus!$A$678),VLOOKUP($I$13,'Calcul des taux (formules)'!$A$1048512:$W$1048520,10,FALSE)/$G$34,0),0)","v":0},{"$f":"IFERROR(IF($I$4=Menus!$A$678,VLOOKUP($I$13,'Calcul des taux (formules)'!$A$1048512:$W$1048520,10,FALSE)/$G$34,0),0)","v":0}]
["Majoration pour la pente PE2 ($/m³)",null,null,null,null,null,{"$f":"IFERROR(IF(OR($I$13='Majorations applicables'!$A$4,$I$13='Majorations applicables'!$A$5,$I$13='Majorations applicables'!$A$7),VLOOKUP($I$13,'Calcul des taux (formules)'!$A$1048512:$W$1048520,11,FALSE)/$G$34,0),0)","v":0},{"$f":"IFERROR(IF(OR($I$4=Menus!$A$677,$I$4=Menus!$A$678),IF(OR($I$13='Majorations applicables'!$A$4,$I$13='Majorations applicables'!$A$5,$I$13='Majorations applicables'!$A$7),VLOOKUP($I$13,'Calcul des taux (formules)'!$A$1048512:$W$1048520,12,FALSE)/$G$34,0),0),0)","v":0},{"$f":"IFERROR(IF($I$4=Menus!$A$678,IF(OR($I$13='Majorations applicables'!$A$4,$I$13='Majorations applicables'!$A$5,$I$13='Majorations applicables'!$A$7),VLOOKUP($I$13,'Calcul des taux (formules)'!$A$1048512:$W$1048520,13,FALSE)/$G$34,0),0),0)","v":0}]
["Majoration pour la pente PE2 ($/ha)",null,null,null,null,null,{"$f":"IFERROR(IF(OR($I$13='Majorations applicables'!$A$4,$I$13='Majorations applicables'!$A$5,$I$13='Majorations applicables'!$A$7),VLOOKUP($I$13,'Calcul des taux (formules)'!$A$1048512:$W$1048520,11,FALSE),0),0)","v":0},{"$f":"IFERROR(IF(OR($I$4=Menus!$A$677,$I$4=Menus!$A$678),IF(OR($I$13='Majorations applicables'!$A$4,$I$13='Majorations applicables'!$A$5,$I$13='Majorations applicables'!$A$7),VLOOKUP($I$13,'Calcul des taux (formules)'!$A$1048512:$W$1048520,12,FALSE),0),0),0)","v":0},{"$f":"IFERROR(IF($I$4=Menus!$A$678,IF(OR($I$13='Majorations applicables'!$A$4,$I$13='Majorations applicables'!$A$5,$I$13='Majorations applicables'!$A$7),VLOOKUP($I$13,'Calcul des taux (formules)'!$A$1048512:$W$1048520,13,FALSE),0),0),0)","v":0}]
["Taux RUB1 ($/m³)",null,null,null,null,null,{"$f":"IFERROR(IF(OR($I$13='Majorations applicables'!$A$4,$I$13='Majorations applicables'!$A$5,$I$13='Majorations applicables'!$A$7),VLOOKUP($I$13,'Calcul des taux (formules)'!$A$1048512:$W$1048520,17,FALSE)/$G$34,0),0)","v":0},{"$f":"IFERROR(IF(OR($I$4=Menus!$A$677,$I$4=Menus!$A$678),IF(OR($I$13='Majorations applicables'!$A$4,$I$13='Majorations applicables'!$A$5,$I$13='Majorations applicables'!$A$7),VLOOKUP($I$13,'Calcul des taux (formules)'!$A$1048512:$W$1048520,18,FALSE)/$G$34,0),0),0)","v":0},{"$f":"IFERROR(IF($I$4=Menus!$A$678,IF(OR($I$13='Majorations applicables'!$A$4,$I$13='Majorations applicables'!$A$5,$I$13='Majorations applicables'!$A$7),VLOOKUP($I$13,'Calcul des taux (formules)'!$A$1048512:$W$1048520,19,FALSE)/$G$34,0),0),0)","v":0}]
["Taux H1 ($/m³)",null,null,null,null,null,{"$f":"IFERROR(IF(OR($I$13='Majorations applicables'!$A$4,$I$13='Majorations applicables'!$A$5,$I$13='Majorations applicables'!$A$7),VLOOKUP($I$13,'Calcul des taux (formules)'!$A$1048512:$W$1048520,20,FALSE)/$G$34,0),0)","v":0},{"$f":"IFERROR(IF(OR($I$4=Menus!$A$677,$I$4=Menus!$A$678),IF(OR($I$13='Majorations applicables'!$A$4,$I$13='Majorations applicables'!$A$5,$I$13='Majorations applicables'!$A$7),VLOOKUP($I$13,'Calcul des taux (formules)'!$A$1048512:$W$1048520,21,FALSE)/$G$34,0),0),0)","v":0},{"$f":"IFERROR(IF($I$4=Menus!$A$678,IF(OR($I$13='Majorations applicables'!$A$4,$I$13='Majorations applicables'!$A$5,$I$13='Majorations applicables'!$A$7),VLOOKUP($I$13,'Calcul des taux (formules)'!$A$1048512:$W$1048520,22,FALSE)/$G$34,0),0),0)","v":0}]
["Total des majorations et réductions à l'exécution ($/m³)",null,null,null,null,null,{"$f":"IFERROR(IF($G$109<>\"Valider BNT1\",SUM($G$108,$G$110,$G$113:$G$114,$G$111),0),0)","v":0},{"$f":"IFERROR(IF($H$109<>\"Valider BNT1\",SUM($H$108,$H$110,$H$113:$H$114,$H$111),0),0)","v":0},{"$f":"IFERROR(IF($I$109<>\"Valider BNT1\",SUM($I$108,$I$110,$I$113:$I$114,$I$111),0),0)","v":0}]
["Total des majorations et réductions à l'exécution ($/ha)",null,null,null,null,null,{"$f":"IFERROR($G$115*$G$34,0)","v":0},{"$f":"IFERROR($H$115*$G$34,0)","v":0},{"$f":"IFERROR($I$115*$G$34,0)","v":0}]
["Taux d'exécution ($/m³)",null,null,null,null,null,{"$f":"IFERROR(IF($G$44=0,0,SUM($G$107,$G$115)),0)","v":0},{"$f":"IFERROR(IF($G$44=0,0,SUM($H$107,$H$115)),0)","v":0},{"$f":"IFERROR(IF($G$44=0,0,SUM($I$107,$I$115)),0)","v":0}]
["Taux d'exécution ($/ha)",null,null,null,null,null,{"$f":"IFERROR(IF($G$44=0,0,$G$117*$G$34),0)","v":0},{"$f":"IFERROR(IF($G$44=0,0,$H$117*$G$34),0)","v":0},{"$f":"IFERROR(IF($G$44=0,0,$I$117*$G$34),0)","v":0}]
["Tous les critères sont atteints1 (Oui ou Non)",null,null,null,null,null,"S/O"]
["Plancher d'investissement de 39$/ha (Oui, Non ou Sans Objet)",null,null,null,null,{"$f":"IFERROR((IF(AND($I$123<=39,$I$119<>\"\"),\"Question_2_Moins_de_39\",IF($I$123>=39,\"Question_2_39_et_plus\",\"Question_2\"))),\"Question_2\")","v":"Question_2"},"S/O","S/O"]
["Pourcentage d'investissement",null,null,null,null,null,{"$f":"IFERROR('Majorations applicables'!$A$30,0.9)","v":0.9},{"$f":"IFERROR('Majorations applicables'!$A$30,0.9)","v":0.9},{"$f":"IFERROR('Majorations applicables'!$A$30,0.9)","v":0.9}]
["Résumé de l'investissement"]
["Taux global à payer ($/ha) - taux à inscrire à l'état d'avancement et au RATF",null,null,null,null,null,{"$f":"IFERROR((IF($G$60<>0,IF(ROUND(($G$118*$G$121),2)<'Majorations applicables'!$B$41,'Majorations applicables'!$B$41,ROUND(($G$118*$G$121),2)),0)),0)","v":0},{"$f":"IFERROR((IF($H$60<>0,IF($H$119<>\"\",IF(OR($I$4=Menus!$A$677,$I$4=Menus!$A$678),IF($H$60<>0,IF(ROUND(($H$118*$H$121),2)<'Majorations applicables'!$B$41,'Majorations applicables'!$B$41,ROUND(($H$118*$H$121),2)),0),0),0),0)),0)","v":0},{"$f":"IFERROR(IF($I$60<>0,IF($I$4=Menus!$A$678,IF($I$60<>0,IF(AND(ROUND(($I$118*(IF($I$119<>\"\",$I$119,0))*$I$121),2)<'Majorations applicables'!$B$41,$I$120=\"Oui\"),'Majorations applicables'!$B$41,IF(ROUND(($I$118*(IF($I$119<>\"\",$I$119,0))*$I$121),2)<0,0,ROUND(($I$118*(IF($I$119<>\"\",$I$119,0))*$I$121),2))),0),0),0),0)","v":0}]
["Superficie (ha)",null,null,null,null,null,{"$f":"IFERROR(IF(OR(I$13='Majorations applicables'!$A$4,I$13='Majorations applicables'!$A$5,I$13='Majorations applicables'!$A$7),ROUND($G$60,2),0),0)","v":0},{"$f":"IFERROR(IF(OR($I$4=Menus!$A$677,$I$4=Menus!$A$678),IF(OR($I13='Majorations applicables'!$A$4,$I13='Majorations applicables'!$A$5,$I13='Majorations applicables'!$A$7),ROUND($H$60,2),0),0),0)","v":0},{"$f":"IFERROR(IF($I$4=Menus!$A$678,IF(OR($I13='Majorations applicables'!$A$4,$I13='Majorations applicables'!$A$5,$I13='Majorations applicables'!$A$7),ROUND($I$60,2),0),0),0)","v":0}]
["Montant total à payer ($)",null,null,null,null,null,{"$f":"IFERROR(ROUND(($G$123*$G$124),2),0)","v":0},{"$f":"IFERROR(ROUND($H$123*$H$124,2),0)","v":0},{"$f":"IFERROR(ROUND(($I$123*$I$124),2),0)","v":0}]
["Totaux (F6)"]
["Taux de base exécution  ($/m³)",null,null,null,null,null,{"$f":"IFERROR(IF($I$13='Majorations applicables'!$A$6,VLOOKUP($I$13,'Calcul des taux (formules)'!$A$1048512:$W$1048520,8,FALSE)/$G$34,0),0)","v":0},{"$f":"IFERROR(IF(OR($I$4=Menus!$A$677,$I$4=Menus!$A$678),IF($I$13='Majorations applicables'!$A$6,VLOOKUP($I$13,'Calcul des taux (formules)'!$A$1048512:$W$1048520,8,FALSE)/$G$34,0),0),0)","v":0},{"$f":"IFERROR(IF($I$4=Menus!$A$678,IF($I$13='Majorations applicables'!A$6,VLOOKUP($I$13,'Calcul des taux (formules)'!$A$1048512:$W$1048520,8,FALSE)/$G$34,0),0),0)","v":0}]
["Taux EMR1 ($/m³)",null,null,null,null,null,{"$f":"IFERROR(VLOOKUP($I$13,'Calcul des taux (formules)'!$A$1048512:$W$1048520,9,FALSE)/$G$34,0)","v":0},{"$f":"IFERROR(IF(OR($I$4=Menus!$A$677,$I$4=Menus!$A$678),VLOOKUP($I$13,'Calcul des taux (formules)'!$A$1048512:$W$1048520,9,FALSE)/$G$34,0),0)","v":0},{"$f":"IFERROR(IF($I$4=Menus!$A$678,VLOOKUP($I$13,'Calcul des taux (formules)'!$A$1048512:$W$1048520,9,FALSE)/$G$34,0),0)","v":0}]
["Taux BNT1 (%)",null,null,null,null,null,{"$f":"IFERROR(IF($G$48>0,-(('Majorations applicables'!$B$19*POWER($G$44,'Majorations applicables'!$B$20))-('Majorations applicables'!$B$21*$G$44)+1),IF(AND(OR(EXACT($G$48,0),(EXACT($G$48,\"\"))),OR($G$49>0,$G$50>0)),\"Valider BNT1\",0)),0)","v":0},{"$f":"IFERROR((IF(OR($I$4=Menus!$A$677,$I$4=Menus!$A$678),IF($G$48>0,-(('Majorations applicables'!$B$19*POWER($G$44,'Majorations applicables'!$B$20))-('Majorations applicables'!$B$21*$G$44)+1),IF(AND(OR(EXACT($G$48,0),(EXACT($G$48,\"\"))),OR($G$49>0,$G$50>0)),\"Valider BNT1\",0)),0)),0)","v":0},{"$f":"IFERROR((IF($I$4=Menus!$A$678,IF($G$48>0,-(('Majorations applicables'!$B$19*POWER($G$44,'Majorations applicables'!$B$20))-('Majorations applicables'!$B$21*$G$44)+1),IF(AND(OR(EXACT($G$48,0),(EXACT($G$48,\"\"))),OR($G$49>0,$G$50>0)),\"Valider BNT1\",0)),0)),0)","v":0}]
["Taux BNT1 ($/m³)",null,null,null,null,null,{"$f":"IFERROR(VLOOKUP($I$13,'Calcul des taux (formules)'!$A$1048512:$W$1048520,10,FALSE)/$G$34,0)","v":0},{"$f":"IFERROR(IF(OR($I$4=Menus!$A$677,$I$4=Menus!$A$678),VLOOKUP($I$13,'Calcul des taux (formules)'!$A$1048512:$W$1048520,10,FALSE)/$G$34,0),0)","v":0},{"$f":"IFERROR(IF($I$4=Menus!$A$678,VLOOKUP($I$13,'Calcul des taux (formules)'!$A$1048512:$W$1048520,10,FALSE)/$G$34,0),0)","v":0}]
["Majoration pour la pente PE2 ($/m³)",null,null,null,null,null,{"$f":"IFERROR(IF($I$13='Majorations applicables'!$A$6,VLOOKUP($I$13,$A$1048512:$W$1048520,11,FALSE)/$G$34,0),0)","v":0},{"$f":"IFERROR(IF(OR($I$4=Menus!$A$677,$I$4=Menus!$A$678),IF($I$13='Majorations applicables'!$A$6,VLOOKUP($I$13,$A$1048512:$W$1048520,12,FALSE)/$G$34,0),0),0)","v":0},{"$f":"IFERROR(IF($I$4=Menus!$A$678,IF($I$13='Majorations applicables'!$A$6,VLOOKUP($I$13,$A$1048512:$W$1048520,13,FALSE)/$G$34,0),0),0)","v":0}]
["Majoration pour la pente PE2 ($/ha)",null,null,null,null,null,{"$f":"IFERROR(IF($I$13='Majorations applicables'!$A$6,VLOOKUP($I$13,$A$1048512:$W$1048520,11,FALSE),0),0)","v":0},{"$f":"IFERROR(IF(OR($I$4=Menus!$A$677,$I$4=Menus!$A$678),IF($I$13='Majorations applicables'!$A$6,VLOOKUP($I$13,$A$1048512:$W$1048520,12,FALSE),0),0),0)","v":0},{"$f":"IFERROR(IF($I$4=Menus!$A$678,IF($I$13='Majorations applicables'!$A$6,VLOOKUP($I$13,$A$1048512:$W$1048520,13,FALSE),0),0),0)","v":0}]
["Taux H1 ($/m³)",null,null,null,null,null,{"$f":"IFERROR(VLOOKUP($I$13,'Calcul des taux (formules)'!$A$1048512:$W$1048520,20,FALSE)/$G$34,0)","v":0},{"$f":"IFERROR(IF(OR($I$4=Menus!$A$677,$I$4=Menus!$A$678),VLOOKUP($I$13,'Calcul des taux (formules)'!$A$1048512:$W$1048520,21,FALSE)/$G$34,0),0)","v":0},{"$f":"IFERROR(IF($I$4=Menus!$A$678,VLOOKUP($I$13,'Calcul des taux (formules)'!$A$1048512:$W$1048520,22,FALSE)/$G$34,0),0)","v":0}]
["Total des majorations et réductions à l'exécution ($/m³)",null,null,null,null,null,{"$f":"IFERROR(IF($G$129<>\"Valider BNT1\",SUM($G$128,$G$130:$G$131,$G$133),0),0)","v":0},{"$f":"IFERROR(IF($H$129<>\"Valider BNT1\",SUM($H$128,$H$130,H131,$H$133),0),0)","v":0},{"$f":"IFERROR(IF($I$129<>\"Valider BNT1\",SUM($I$128,$I$130,I131,$I$133),0),0)","v":0}]
["Total des majorations et réductions à l'exécution ($/ha)",null,null,null,null,null,{"$f":"IFERROR($G$134*$G$34,0)","v":0},{"$f":"IFERROR($H$134*$G$34,0)","v":0},{"$f":"IFERROR($I$134*$G$34,0)","v":0}]
["Taux d'exécution ($/m³)",null,null,null,null,null,{"$f":"IFERROR(IF($G$44=0,0,SUM($G$127,$G$134)),0)","v":0},{"$f":"IFERROR(IF($G$44=0,0,SUM($H$127,$H$134)),0)","v":0},{"$f":"IFERROR(IF($G$44=0,0,SUM($I$127,$I$134)),0)","v":0}]
["Taux d'exécution ($/ha)",null,null,null,null,null,{"$f":"IFERROR(IF($G$44=0,0,$G$136*$G$34),0)","v":0},{"$f":"IFERROR(IF($G$44=0,0,$H$136*$G$34),0)","v":0},{"$f":"IFERROR(IF($G$44=0,0,$I$136*$G$34),0)","v":0}]
["Tous les critères sont atteints1 (Oui ou Non)",null,null,null,null,null,"S/O"]
["Plancher d'investissement de 39$/ha (Oui, Non ou Sans Objet)",null,null,null,null,{"$f":"IFERROR((IF(AND($I$142<=39,$I$138<>\"\"),\"Question_2_Moins_de_39\",IF($I$142>=39,\"Question_2_39_et_plus\",\"Question_2\"))),\"Question_2\")","v":"Question_2"},"S/O","S/O"]
["Pourcentage d'investissement",null,null,null,null,null,{"$f":"IFERROR('Majorations applicables'!$A$30,0.9)","v":0.9},{"$f":"IFERROR('Majorations applicables'!$A$30,0.9)","v":0.9},{"$f":"IFERROR('Majorations applicables'!$A$30,0.9)","v":0.9}]
["Résumé de l'investissement"]
["Taux global à payer ($/ha) - taux à inscrire à l'état d'avancement et au RATF",null,null,null,null,null,{"$f":"IFERROR(IF($G$60<>0,IF(ROUND(($G$137*$G$140),2)<'Majorations applicables'!$B$41,'Majorations applicables'!$B$41,ROUND(($G$137*$G$140),2)),0),0)","v":0},{"$f":"IFERROR(IF($H$60<>0,IF($H$138<>\"\",IF(OR($I$4=Menus!$A$677,$I$4=Menus!$A$678),IF($H$60<>0,IF(ROUND(($H$137*$H$140),2)<'Majorations applicables'!$B$41,'Majorations applicables'!$B$41,ROUND(($H$137*$H$140),2)),0),0),0),0),0)","v":0},{"$f":"IFERROR(IF($I$60<>0,IF($I$4=Menus!$A$678,IF($I$60<>0,IF(AND(ROUND(($I$137*(IF($I$138<>\"\",$I$138,0))*$I$140),2)<'Majorations applicables'!$B$41,$I$139=\"Oui\"),'Majorations applicables'!$B$41,IF(ROUND(($I$137*(IF($I$138<>\"\",$I$138,0))*$I$140),2)<0,0,ROUND(($I$137*(IF($I$138<>\"\",$I$138,0))*$I$140),2))),0),0),0),0)","v":0}]
["Superficie (ha)",null,null,null,null,null,{"$f":"IFERROR(IF($I$13='Majorations applicables'!$A$6,ROUND($G$60,2),0),0)","v":0},{"$f":"IFERROR(IF(OR($I$4=Menus!$A$677,$I$4=Menus!$A$678),IF($I$13='Majorations applicables'!$A$6,ROUND($H$60,2),0),0),0)","v":0},{"$f":"IFERROR(IF($I$4=Menus!$A$678,IF($I$13='Majorations applicables'!$A$6,ROUND($I$60,2),0),0),0)","v":0}]
["Montant total à payer ($)",null,null,null,null,null,{"$f":"IFERROR(ROUND($G$142*$G$143,2),0)","v":0},{"$f":"IFERROR(ROUND($H$142*$H$143,2),0)","v":0},{"$f":"IFERROR(ROUND($I$142*$I$143,2),0)","v":0}]
[]
["Section réservée à l'usage de la Planification"]
["Remarques"]
[]
["J'atteste que les renseignements fournis dans ce document afin de calculer les taux d'investissement sont complets et conformes à la vérité, au meilleur de mes connaissances."]
[]
[]
[]
["Nom et prénom de l'ingénieur forestier",null,null,null,null,null,"No de permis"]
[null,null,null,null,null,null,{"$f":"TODAY()","v":"2018-05-15"}]
[]
["Signature de l'ingénieur forestier",null,null,null,null,null,"Date (AAAA-MM-JJ)"]
["Section réservée à l'usage du BGAD"]
["Remarques"]
[]
["J'atteste que les renseignements fournis dans ce document afin de calculer les taux d'investissement sont complets et conformes à la vérité, au meilleur de mes connaissances."]
[]
[]
[]
["Nom et prénom de l'ingénieur forestier",null,null,null,null,null,"No de permis"]
[null,null,null,null,null,null,{"$f":"TODAY()","v":"2018-05-15"}]
[]
["Signature de l'ingénieur forestier",null,null,null,null,null,"Date (AAAA-MM-JJ)"]
["Section réservée à l'usage du Ministère"]
["Remarques"]
[]
["J'atteste que les renseignements fournis dans ce document afin de calculer les taux d'investissement sont complets et conformes à la vérité, au meilleur de mes connaissances."]
[]
[]
[]
["Nom et prénom de l'ingénieur forestier",null,null,null,null,null,"No de permis"]
[null,null,null,null,null,null,{"$f":"TODAY()","v":"2018-05-15"}]
[]
["Signature de l'ingénieur forestier",null,null,null,null,null,"Date (AAAA-MM-JJ)"]
[]
["(1) Si un ou plusieurs des critères établis à la prescription ne sont pas atteints, veuillez inscrire \"Non\". À la suite du dépôt de votre rapport, le responsable du dossier à l'Unité de gestion communiquera avec vous dans les meilleurs délais pour vous indiquer, le cas échéant, le montant de l'aide qui pourrait vous être accordé pour l'exécution des travaux. "]
[]
[]
[]
[]
[]
[]
[]
[]
[]
[]
[]
[]
[]
[]
[]
[]
[]
[]
[]
[]
[]
[]
[]
[]
[]
[]
[]
[]
[]
[]
[]
[]
[]
[]
[]
[]
[]
[]
[]
[]
[]
[]
[]
[]
[]
[]
[]
[]
[]
[]
[]
[]
[]
[]
[]
[]
[]
[]
[]
[]
[]
[]
[]
[]
[]
[]
[]
[]
[]
[]
[]
[]
[]
[]
[]
[]
[]
[]
[]
[]
[]
[]
[]
[]
[]
[]
[]
[]
[]
[]
[]
[]
[]
[]
[]
[]
[]
[]
[]
[]
[]
[]
[]
[]
[]
[]
[]
[]
[]
[]
[]
[]
[]
[]
[]
[]
[]
[]
[]
[]
[]
[]
[]
[]
[]
[]
[]
[]
[]
[]
[]
[]
[]
[]
[]
[]
[]
[]
[]
[]
[]
[]
[]
[]
[]
[]
[]
[]
[]
[]
[]
[]
[]
[]
[]
[]
[]
[]
[]
[]
[]
[]
[]
[]
[]
[]
[]
[]
[]
[]
[]
[]
[]
[]
[]
[]
[]
[]
[]
[]
[]
[]
[]
[]
[]
[]
[]
[]
[]
[]
[]
[]
[]
[]
[]
[]
[]
[]
[]
[]
[]
[]
[]
[]
[]
[]
[]
[]
[]
[]
[]
[]
[]
[]
[]
[]
[]
[]
[]
[]
[]
[]
[]
[]
[]
[]
[]
[]
[]
[]
[]
[]
[]
[]
[]
[]
[]
[]
[]
[]
[]
[]
[]
[]
[]
[]
[]
[]
[]
[]
[]
[]
[]
[]
[]
[]
[]
[]
[]
[]
[]
[]
[]
[]
[]
[]
[]
[]
[]
[]
[]
[]
[]
[]
[]
[]
[]
[]
[]
[]
[]
[]
[]
[]
[]
[]
[]
[]
[]
[]
[]
[]
[]
[]
[]
[]
[]
[]
[]
[]
[]
[]
[]
[]
[]
[]
[]
[]
[]
[]
[]
[]
[]
[]
[]
[]
[]
[]
[]
[]
[]
[]
[]
[]
[]
[]
[]
[]
[]
[]
[]
[]
[]
[]
[]
[]
[]
[]
[]
[]
[]
[]
[]
[]
[]
[]
[]
[]
[]
[]
[]
[]
[]
[]
[]
[]
[]
[]
[]
[]
[]
[]
[]
[]
[]
[]
[]
[]
[]
[]
[]
[]
[]
[]
[]
[]
[]
[]
[]
[]
[]
[]
[]
[]
[]
[]
[]
[]
[]
[]
[]
[]
[]
[]
[]
[]
[]
[]
[]
[]
[]
[]
[]
[]
[]
[]
[]
[]
[]
[]
[]
[]
[]
[]
[]
[]
[]
[]
[]
[]
[]
[]
[]
[]
[]
[]
[]
[]
[]
[]
[]
[]
[]
[]
[]
[]
[]
[]
[]
[]
[]
[]
[]
[]
[]
[]
[]
[]
[]
[]
[]
[]
[]
[]
[]
[]
[]
[]
[]
[]
[]
[]
[]
[]
[]
[]
[]
[]
[]
[]
[]
[]
[]
[]
[]
[]
[]
[]
[]
[]
[]
[]
[]
[]
[]
[]
[]
[]
[]
[]
[]
[]
[]
[]
[]
[]
[]
[]
[]
[]
[]
[]
[]
[]
[]
[]
[]
[]
[]
[]
[]
[]
[]
[]
[]
[]
[]
[]
[]
[]
[]
[]
[]
[]
[]
[]
[]
[]
[]
[]
[]
[]
[]
[]
[]
[]
[]
[]
[]
[]
[]
[]
[]
[]
[]
[]
[]
[]
[]
[]
[]
[]
[]
[]
[]
[]
[]
[]
[]
[]
[]
[]
[]
[]
[]
[]
[]
[]
[]
[]
[]
[]
[]
[]
[]
[]
[]
[]
[]
[]
[]
[]
[]
[]
[]
[]
[]
[]
[]
[]
[]
[]
[]
[]
[]
[]
[]
[]
[]
[]
[]
[]
[]
[]
[]
[]
[]
[]
[]
[]
[]
[]
[]
[]
[]
[]
[]
[]
[]
[]
[]
[]
[]
[]
[]
[]
[]
[]
[]
[]
[]
[]
[]
[]
[]
[]
[]
[]
[]
[]
[]
[]
[]
[]
[]
[]
[]
[]
[]
[]
[]
[]
[]
[]
[]
[]
[]
[]
[]
[]
[]
[]
[]
[]
[]
[]
[]
[]
[]
[]
[]
[]
[]
[]
[]
[]
[]
[]
[]
[]
[]
[]
[]
[]
[]
[]
[]
[]
[]
[]
[]
[]
[]
[]
[]
[]
[]
[]
[]
[]
[]
[]
[]
[]
[]
[]
[]
[]
[]
[]
[]
[]
[]
[]
[]
[]
[]
[]
[]
[]
[]
[]
[]
[]
[]
[]
[]
[]
[]
[]
[]
[]
[]
[]
[]
[]
[]
[]
[]
[]
[]
[]
[]
[]
[]
[]
[]
[]
[]
[]
[]
[]
[]
[]
[]
[]
[]
[]
[]
[]
[]
[]
[]
[]
[]
[]
[]
[]
[]
[]
[]
[]
[]
[]
[]
[]
[]
[]
[]
[]
[]
[]
[]
[]
[]
[]
[]
[]
[]
[]
[]
[]
[]
[]
[]
[]
[]
[]
[]
[]
[]
[]
[]
[]
[]
[]
[]
[]
[]
[]
[]
[]
[]
[]
[]
[]
[]
[]
[]
[]
[]
[]
[]
[]
[]
[]
[]
[]
[]
[]
[]
[]
[]
[]
[]
[]
[]
[]
[]
[]
[]
[]
[]
[]
[]
[]
[]
[]
[]
[]
[]
[]
[]
[]
[]
[]
[]
[]
[]
[]
[]
[]
[]
[]
[]
[]
[]
[]
[]
[]
[]
[]
[]
[]
[]
[]
[]
[]
[]
[]
[]
[]
[]
[]
[]
[]
[]
[]
[]
[]
[]
[]
[]
[]
[]
[]
[]
[]
[]
[]
[]
[]
[]
[]
[]
[]
[]
[]
[]
[]
[]
[]
[]
[]
[]
[]
[]
[]
[]
[]
[]
[]
[]
[]
[]
[]
[]
[]
[]
[]
[]
[]
[]
[]
[]
[]
[]
[]
[]
[]
[]
[]
[]
[]
[]
[]
[]
[]
[]
[]
[]
[]
[]
[]
[]
[]
[]
[]
[]
[]
[]
[]
[]
[]
[]
[]
[]
[]
[]
[]
[]
[]
[]
[]
[]
[]
[]
[]
[]
[]
[]
[]
[]
[]
[]
[]
[]
[]
[]
[]
[]
[]
[]
[]
[]
[]
[]
[]
[]
[]
[]
[]
[]
[]
[]
[]
[]
[]
[]
[]
[]
[]
[]
[]
[]
[]
[]
[]
[]
[]
[]
[]
[]
[]
[]
[]
[]
[]
[]
[]
[]
[]
[]
[]
[]
[]
[]
[]
[]
[]
[]
[]
[]
[]
[]
[]
[]
[]
[]
[]
[]
[]
[]
[]
[]
[]
[]
[]
[]
[]
[]
[]
[]
[]
[]
[]
[]
[]
[]
[]
[]
[]
[]
[]
[]
[]
[]
[]
[]
[]
[]
[]
[]
[]
[]
[]
[]
[]
[]
[]
[]
[]
[]
[]
[]
[]
[]
[]
[]
[]
[]
[]
[]
[]
[]
[]
[]
[]
[]
[]
[]
[]
[]
[]
[]
[]
[]
[]
[]
[]
[]
[]
[]
[]
[]
[]
[]
[]
[]
[]
[]
[]
[]
[]
[]
[]
[]
[]
[]
[]
[]
[]
[]
[]
[]
[]
[]
[]
[]
[]
[]
[]
[]
[]
[]
[]
[]
[]
[]
[]
[]
[]
[]
[]
[]
[]
[]
[]
[]
[]
[]
[]
[]
[]
[]
[]
[]
[]
[]
[]
[]
[]
[]
[]
[]
[]
[]
[]
[]
[]
[]
[]
[]
[]
[]
[]
[]
[]
[]
[]
[]
[]
[]
[]
[]
[]
[]
[]
[]
[]
[]
[]
[]
[]
[]
[]
[]
[]
[]
[]
[]
[]
[]
[]
[]
[]
[]
[]
[]
[]
[]
[]
[]
[]
[]
[]
[]
[]
[]
[]
[]
[]
[]
[]
[]
[]
[]
[]
[]
[]
[]
[]
[]
[]
[]
[]
[]
[]
[]
[]
[]
[]
[]
[]
[]
[]
[]
[]
[]
[]
[]
[]
[]
[]
[]
[]
[]
[]
[]
[]
[]
[]
[]
[]
[]
[]
[]
[]
[]
[]
[]
[]
[]
[]
[]
[]
[]
[]
[]
[]
[]
[]
[]
[]
[]
[]
[]
[]
[]
[]
[]
[]
[]
[]
[]
[]
[]
[]
[]
[]
[]
[]
[]
[]
[]
[]
[]
[]
[]
[]
[]
[]
[]
[]
[]
[]
[]
[]
[]
[]
[]
[]
[]
[]
[]
[]
[]
[]
[]
[]
[]
[]
[]
[]
[]
[]
[]
[]
[]
[]
[]
[]
[]
[]
[]
[]
[]
[]
[]
[]
[]
[]
[]
[]
[]
[]
[]
[]
[]
[]
[]
[]
[]
[]
[]
[]
[]
[]
[]
[]
[]
[]
[]
[]
[]
[]
[]
[]
[]
[]
[]
[]
[]
[]
[]
[]
[]
[]
[]
[]
[]
[]
[]
[]
[]
[]
[]
[]
[]
[]
[]
[]
[]
[]
[]
[]
[]
[]
[]
[]
[]
[]
[]
[]
[]
[]
[]
[]
[]
[]
[]
[]
[]
[]
[]
[]
[]
[]
[]
[]
[]
[]
[]
[]
[]
[]
[]
[]
[]
[]
[]
[]
[]
[]
[]
[]
[]
[]
[]
[]
[]
[]
[]
[]
[]
[]
[]
[]
[]
[]
[]
[]
[]
[]
[]
[]
[]
[]
[]
[]
[]
[]
[]
[]
[]
[]
[]
[]
[]
[]
[]
[]
[]
[]
[]
[]
[]
[]
[]
[]
[]
[]
[]
[]
[]
[]
[]
[]
[]
[]
[]
[]
[]
[]
[]
[]
[]
[]
[]
[]
[]
[]
[]
[]
[]
[]
[]
[]
[]
[]
[]
[]
[]
[]
[]
[]
[]
[]
[]
[]
[]
[]
[]
[]
[]
[]
[]
[]
[]
[]
[]
[]
[]
[]
[]
[]
[]
[]
[]
[]
[]
[]
[]
[]
[]
[]
[]
[]
[]
[]
[]
[]
[]
[]
[]
[]
[]
[]
[]
[]
[]
[]
[]
[]
[]
[]
[]
[]
[]
[]
[]
[]
[]
[]
[]
[]
[]
[]
[]
[]
[]
[]
[]
[]
[]
[]
[]
[]
[]
[]
[]
[]
[]
[]
[]
[]
[]
[]
[]
[]
[]
[]
[]
[]
[]
[]
[]
[]
[]
[]
[]
[]
[]
[]
[]
[]
[]
[]
[]
[]
[]
[]
[]
[]
[]
[]
[]
[]
[]
[]
[]
[]
[]
[]
[]
[]
[]
[]
[]
[]
[]
[]
[]
[]
[]
[]
[]
[]
[]
[]
[]
[]
[]
[]
[]
[]
[]
[]
[]
[]
[]
[]
[]
[]
[]
[]
[]
[]
[]
[]
[]
[]
[]
[]
[]
[]
[]
[]
[]
[]
[]
[]
[]
[]
[]
[]
[]
[]
[]
[]
[]
[]
[]
[]
[]
[]
[]
[]
[]
[]
[]
[]
[]
[]
[]
[]
[]
[]
[]
[]
[]
[]
[]
[]
[]
[]
[]
[]
[]
[]
[]
[]
[]
[]
[]
[]
[]
[]
[]
[]
[]
[]
[]
[]
[]
[]
[]
[]
[]
[]
[]
[]
[]
[]
[]
[]
[]
[]
[]
[]
[]
[]
[]
[]
[]
[]
[]
[]
[]
[]
[]
[]
[]
[]
[]
[]
[]
[]
[]
[]
[]
[]
[]
[]
[]
[]
[]
[]
[]
[]
[]
[]
[]
[]
[]
[]
[]
[]
[]
[]
[]
[]
[]
[]
[]
[]
[]
[]
[]
[]
[]
[]
[]
[]
[]
[]
[]
[]
[]
[]
[]
[]
[]
[]
[]
[]
[]
[]
[]
[]
[]
[]
[]
[]
[]
[]
[]
[]
[]
[]
[]
[]
[]
[]
[]
[]
[]
[]
[]
[]
[]
[]
[]
[]
[]
[]
[]
[]
[]
[]
[]
[]
[]
[]
[]
[]
[]
[]
[]
[]
[]
[]
[]
[]
[]
[]
[]
[]
[]
[]
[]
[]
[]
[]
[]
[]
[]
[]
[]
[]
[]
[]
[]
[]
[]
[]
[]
[]
[]
[]
[]
[]
[]
[]
[]
[]
[]
[]
[]
[]
[]
[]
[]
[]
[]
[]
[]
[]
[]
[]
[]
[]
[]
[]
[]
[]
[]
[]
[]
[]
[]
[]
[]
[]
[]
[]
[]
[]
[]
[]
[]
[]
[]
[]
[]
[]
[]
[]
[]
[]
[]
[]
[]
[]
[]
[]
[]
[]
[]
[]
[]
[]
[]
[]
[]
[]
[]
[]
[]
[]
[]
[]
[]
[]
[]
[]
[]
[]
[]
[]
[]
[]
[]
[]
[]
[]
[]
[]
[]
[]
[]
[]
[]
[]
[]
[]
[]
[]
[]
[]
[]
[]
[]
[]
[]
[]
[]
[]
[]
[]
[]
[]
[]
[]
[]
[]
[]
[]
[]
[]
[]
[]
[]
[]
[]
[]
[]
[]
[]
[]
[]
[]
[]
[]
[]
[]
[]
[]
[]
[]
[]
[]
[]
[]
[]
[]
[]
[]
[]
[]
[]
[]
[]
[]
[]
[]
[]
[]
[]
[]
[]
[]
[]
[]
[]
[]
[]
[]
[]
[]
[]
[]
[]
[]
[]
[]
[]
[]
[]
[]
[]
[]
[]
[]
[]
[]
[]
[]
[]
[]
[]
[]
[]
[]
[]
[]
[]
[]
[]
[]
[]
[]
[]
[]
[]
[]
[]
[]
[]
[]
[]
[]
[]
[]
[]
[]
[]
[]
[]
[]
[]
[]
[]
[]
[]
[]
[]
[]
[]
[]
[]
[]
[]
[]
[]
[]
[]
[]
[]
[]
[]
[]
[]
[]
[]
[]
[]
[]
[]
[]
[]
[]
[]
[]
[]
[]
[]
[]
[]
[]
[]
[]
[]
[]
[]
[]
[]
[]
[]
[]
[]
[]
[]
[]
[]
[]
[]
[]
[]
[]
[]
[]
[]
[]
[]
[]
[]
[]
[]
[]
[]
[]
[]
[]
[]
[]
[]
[]
[]
[]
[]
[]
[]
[]
[]
[]
[]
[]
[]
[]
[]
[]
[]
[]
[]
[]
[]
[]
[]
[]
[]
[]
[]
[]
[]
[]
[]
[]
[]
[]
[]
[]
[]
[]
[]
[]
[]
[]
[]
[]
[]
[]
[]
[]
[]
[]
[]
[]
[]
[]
[]
[]
[]
[]
[]
[]
[]
[]
[]
[]
[]
[]
[]
[]
[]
[]
[]
[]
[]
[]
[]
[]
[]
[]
[]
[]
[]
[]
[]
[]
[]
[]
[]
[]
[]
[]
[]
[]
[]
[]
[]
[]
[]
[]
[]
[]
[]
[]
[]
[]
[]
[]
[]
[]
[]
[]
[]
[]
[]
[]
[]
[]
[]
[]
[]
[]
[]
[]
[]
[]
[]
[]
[]
[]
[]
[]
[]
[]
[]
[]
[]
[]
[]
[]
[]
[]
[]
[]
[]
[]
[]
[]
[]
[]
[]
[]
[]
[]
[]
[]
[]
[]
[]
[]
[]
[]
[]
[]
[]
[]
[]
[]
[]
[]
[]
[]
[]
[]
[]
[]
[]
[]
[]
[]
[]
[]
[]
[]
[]
[]
[]
[]
[]
[]
[]
[]
[]
[]
[]
[]
[]
[]
[]
[]
[]
[]
[]
[]
[]
[]
[]
[]
[]
[]
[]
[]
[]
[]
[]
[]
[]
[]
[]
[]
[]
[]
[]
[]
[]
[]
[]
[]
[]
[]
[]
[]
[]
[]
[]
[]
[]
[]
[]
[]
[]
[]
[]
[]
[]
[]
[]
[]
[]
[]
[]
[]
[]
[]
[]
[]
[]
[]
[]
[]
[]
[]
[]
[]
[]
[]
[]
[]
[]
[]
[]
[]
[]
[]
[]
[]
[]
[]
[]
[]
[]
[]
[]
[]
[]
[]
[]
[]
[]
[]
[]
[]
[]
[]
[]
[]
[]
[]
[]
[]
[]
[]
[]
[]
[]
[]
[]
[]
[]
[]
[]
[]
[]
[]
[]
[]
[]
[]
[]
[]
[]
[]
[]
[]
[]
[]
[]
[]
[]
[]
[]
[]
[]
[]
[]
[]
[]
[]
[]
[]
[]
[]
[]
[]
[]
[]
[]
[]
[]
[]
[]
[]
[]
[]
[]
[]
[]
[]
[]
[]
[]
[]
[]
[]
[]
[]
[]
[]
[]
[]
[]
[]
[]
[]
[]
[]
[]
[]
[]
[]
[]
[]
[]
[]
[]
[]
[]
[]
[]
[]
[]
[]
[]
[]
[]
[]
[]
[]
[]
[]
[]
[]
[]
[]
[]
[]
[]
[]
[]
[]
[]
[]
[]
[]
[]
[]
[]
[]
[]
[]
[]
[]
[]
[]
[]
[]
[]
[]
[]
[]
[]
[]
[]
[]
[]
[]
[]
[]
[]
[]
[]
[]
[]
[]
[]
[]
[]
[]
[]
[]
[]
[]
[]
[]
[]
[]
[]
[]
[]
[]
[]
[]
[]
[]
[]
[]
[]
[]
[]
[]
[]
[]
[]
[]
[]
[]
[]
[]
[]
[]
[]
[]
[]
[]
[]
[]
[]
[]
[]
[]
[]
[]
[]
[]
[]
[]
[]
[]
[]
[]
[]
[]
[]
[]
[]
[]
[]
[]
[]
[]
[]
[]
[]
[]
[]
[]
[]
[]
[]
[]
[]
[]
[]
[]
[]
[]
[]
[]
[]
[]
[]
[]
[]
[]
[]
[]
[]
[]
[]
[]
[]
[]
[]
[]
[]
[]
[]
[]
[]
[]
[]
[]
[]
[]
[]
[]
[]
[]
[]
[]
[]
[]
[]
[]
[]
[]
[]
[]
[]
[]
[]
[]
[]
[]
[]
[]
[]
[]
[]
[]
[]
[]
[]
[]
[]
[]
[]
[]
[]
[]
[]
[]
[]
[]
[]
[]
[]
[]
[]
[]
[]
[]
[]
[]
[]
[]
[]
[]
[]
[]
[]
[]
[]
[]
[]
[]
[]
[]
[]
[]
[]
[]
[]
[]
[]
[]
[]
[]
[]
[]
[]
[]
[]
[]
[]
[]
[]
[]
[]
[]
[]
[]
[]
[]
[]
[]
[]
[]
[]
[]
[]
[]
[]
[]
[]
[]
[]
[]
[]
[]
[]
[]
[]
[]
[]
[]
[]
[]
[]
[]
[]
[]
[]
[]
[]
[]
[]
[]
[]
[]
[]
[]
[]
[]
[]
[]
[]
[]
[]
[]
[]
[]
[]
[]
[]
[]
[]
[]
[]
[]
[]
[]
[]
[]
[]
[]
[]
[]
[]
[]
[]
[]
[]
[]
[]
[]
[]
[]
[]
[]
[]
[]
[]
[]
[]
[]
[]
[]
[]
[]
[]
[]
[]
[]
[]
[]
[]
[]
[]
[]
[]
[]
[]
[]
[]
[]
[]
[]
[]
[]
[]
[]
[]
[]
[]
[]
[]
[]
[]
[]
[]
[]
[]
[]
[]
[]
[]
[]
[]
[]
[]
[]
[]
[]
[]
[]
[]
[]
[]
[]
[]
[]
[]
[]
[]
[]
[]
[]
[]
[]
[]
[]
[]
[]
[]
[]
[]
[]
[]
[]
[]
[]
[]
[]
[]
[]
[]
[]
[]
[]
[]
[]
[]
[]
[]
[]
[]
[]
[]
[]
[]
[]
[]
[]
[]
[]
[]
[]
[]
[]
[]
[]
[]
[]
[]
[]
[]
[]
[]
[]
[]
[]
[]
[]
[]
[]
[]
[]
[]
[]
[]
[]
[]
[]
[]
[]
[]
[]
[]
[]
[]
[]
[]
[]
[]
[]
[]
[]
[]
[]
[]
[]
[]
[]
[]
[]
[]
[]
[]
[]
[]
[]
[]
[]
[]
[]
[]
[]
[]
[]
[]
[]
[]
[]
[]
[]
[]
[]
[]
[]
[]
[]
[]
[]
[]
[]
[]
[]
[]
[]
[]
[]
[]
[]
[]
[]
[]
[]
[]
[]
[]
[]
[]
[]
[]
[]
[]
[]
[]
[]
[]
[]
[]
[]
[]
[]
[]
[]
[]
[]
[]
[]
[]
[]
[]
[]
[]
[]
[]
[]
[]
[]
[]
[]
[]
[]
[]
[]
[]
[]
[]
[]
[]
[]
[]
[]
[]
[]
[]
[]
[]
[]
[]
[]
[]
[]
[]
[]
[]
[]
[]
[]
[]
[]
[]
[]
[]
[]
[]
[]
[]
[]
[]
[]
[]
[]
[]
[]
[]
[]
[]
[]
[]
[]
[]
[]
[]
[]
[]
[]
[]
[]
[]
[]
[]
[]
[]
[]
[]
[]
[]
[]
[]
[]
[]
[]
[]
[]
[]
[]
[]
[]
[]
[]
[]
[]
[]
[]
[]
[]
[]
[]
[]
[]
[]
[]
[]
[]
[]
[]
[]
[]
[]
[]
[]
[]
[]
[]
[]
[]
[]
[]
[]
[]
[]
[]
[]
[]
[]
[]
[]
[]
[]
[]
[]
[]
[]
[]
[]
[]
[]
[]
[]
[]
[]
[]
[]
[]
[]
[]
[]
[]
[]
[]
[]
[]
[]
[]
[]
[]
[]
[]
[]
[]
[]
[]
[]
[]
[]
[]
[]
[]
[]
[]
[]
[]
[]
[]
[]
[]
[]
[]
[]
[]
[]
[]
[]
[]
[]
[]
[]
[]
[]
[]
[]
[]
[]
[]
[]
[]
[]
[]
[]
[]
[]
[]
[]
[]
[]
[]
[]
[]
[]
[]
[]
[]
[]
[]
[]
[]
[]
[]
[]
[]
[]
[]
[]
[]
[]
[]
[]
[]
[]
[]
[]
[]
[]
[]
[]
[]
[]
[]
[]
[]
[]
[]
[]
[]
[]
[]
[]
[]
[]
[]
[]
[]
[]
[]
[]
[]
[]
[]
[]
[]
[]
[]
[]
[]
[]
[]
[]
[]
[]
[]
[]
[]
[]
[]
[]
[]
[]
[]
[]
[]
[]
[]
[]
[]
[]
[]
[]
[]
[]
[]
[]
[]
[]
[]
[]
[]
[]
[]
[]
[]
[]
[]
[]
[]
[]
[]
[]
[]
[]
[]
[]
[]
[]
[]
[]
[]
[]
[]
[]
[]
[]
[]
[]
[]
[]
[]
[]
[]
[]
[]
[]
[]
[]
[]
[]
[]
[]
[]
[]
[]
[]
[]
[]
[]
[]
[]
[]
[]
[]
[]
[]
[]
[]
[]
[]
[]
[]
[]
[]
[]
[]
[]
[]
[]
[]
[]
[]
[]
[]
[]
[]
[]
[]
[]
[]
[]
[]
[]
[]
[]
[]
[]
[]
[]
[]
[]
[]
[]
[]
[]
[]
[]
[]
[]
[]
[]
[]
[]
[]
[]
[]
[]
[]
[]
[]
[]
[]
[]
[]
[]
[]
[]
[]
[]
[]
[]
[]
[]
[]
[]
[]
[]
[]
[]
[]
[]
[]
[]
[]
[]
[]
[]
[]
[]
[]
[]
[]
[]
[]
[]
[]
[]
[]
[]
[]
[]
[]
[]
[]
[]
[]
[]
[]
[]
[]
[]
[]
[]
[]
[]
[]
[]
[]
[]
[]
[]
[]
[]
[]
[]
[]
[]
[]
[]
[]
[]
[]
[]
[]
[]
[]
[]
[]
[]
[]
[]
[]
[]
[]
[]
[]
[]
[]
[]
[]
[]
[]
[]
[]
[]
[]
[]
[]
[]
[]
[]
[]
[]
[]
[]
[]
[]
[]
[]
[]
[]
[]
[]
[]
[]
[]
[]
[]
[]
[]
[]
[]
[]
[]
[]
[]
[]
[]
[]
[]
[]
[]
[]
[]
[]
[]
[]
[]
[]
[]
[]
[]
[]
[]
[]
[]
[]
[]
[]
[]
[]
[]
[]
[]
[]
[]
[]
[]
[]
[]
[]
[]
[]
[]
[]
[]
[]
[]
[]
[]
[]
[]
[]
[]
[]
[]
[]
[]
[]
[]
[]
[]
[]
[]
[]
[]
[]
[]
[]
[]
[]
[]
[]
[]
[]
[]
[]
[]
[]
[]
[]
[]
[]
[]
[]
[]
[]
[]
[]
[]
[]
[]
[]
[]
[]
[]
[]
[]
[]
[]
[]
[]
[]
[]
[]
[]
[]
[]
[]
[]
[]
[]
[]
[]
[]
[]
[]
[]
[]
[]
[]
[]
[]
[]
[]
[]
[]
[]
[]
[]
[]
[]
[]
[]
[]
[]
[]
[]
[]
[]
[]
[]
[]
[]
[]
[]
[]
[]
[]
[]
[]
[]
[]
[]
[]
[]
[]
[]
[]
[]
[]
[]
[]
[]
[]
[]
[]
[]
[]
[]
[]
[]
[]
[]
[]
[]
[]
[]
[]
[]
[]
[]
[]
[]
[]
[]
[]
[]
[]
[]
[]
[]
[]
[]
[]
[]
[]
[]
[]
[]
[]
[]
[]
[]
[]
[]
[]
[]
[]
[]
[]
[]
[]
[]
[]
[]
[]
[]
[]
[]
[]
[]
[]
[]
[]
[]
[]
[]
[]
[]
[]
[]
[]
[]
[]
[]
[]
[]
[]
[]
[]
[]
[]
[]
[]
[]
[]
[]
[]
[]
[]
[]
[]
[]
[]
[]
[]
[]
[]
[]
[]
[]
[]
[]
[]
[]
[]
[]
[]
[]
[]
[]
[]
[]
[]
[]
[]
[]
[]
[]
[]
[]
[]
[]
[]
[]
[]
[]
[]
[]
[]
[]
[]
[]
[]
[]
[]
[]
[]
[]
[]
[]
[]
[]
[]
[]
[]
[]
[]
[]
[]
[]
[]
[]
[]
[]
[]
[]
[]
[]
[]
[]
[]
[]
[]
[]
[]
[]
[]
[]
[]
[]
[]
[]
[]
[]
[]
[]
[]
[]
[]
[]
[]
[]
[]
[]
[]
[]
[]
[]
[]
[]
[]
[]
[]
[]
[]
[]
[]
[]
[]
[]
[]
[]
[]
[]
[]
[]
[]
[]
[]
[]
[]
[]
[]
[]
[]
[]
[]
[]
[]
[]
[]
[]
[]
[]
[]
[]
[]
[]
[]
[]
[]
[]
[]
[]
[]
[]
[]
[]
[]
[]
[]
[]
[]
[]
[]
[]
[]
[]
[]
[]
[]
[]
[]
[]
[]
[]
[]
[]
[]
[]
[]
[]
[]
[]
[]
[]
[]
[]
[]
[]
[]
[]
[]
[]
[]
[]
[]
[]
[]
[]
[]
[]
[]
[]
[]
[]
[]
[]
[]
[]
[]
[]
[]
[]
[]
[]
[]
[]
[]
[]
[]
[]
[]
[]
[]
[]
[]
[]
[]
[]
[]
[]
[]
[]
[]
[]
[]
[]
[]
[]
[]
[]
[]
[]
[]
[]
[]
[]
[]
[]
[]
[]
[]
[]
[]
[]
[]
[]
[]
[]
[]
[]
[]
[]
[]
[]
[]
[]
[]
[]
[]
[]
[]
[]
[]
[]
[]
[]
[]
[]
[]
[]
[]
[]
[]
[]
[]
[]
[]
[]
[]
[]
[]
[]
[]
[]
[]
[]
[]
[]
[]
[]
[]
[]
[]
[]
[]
[]
[]
[]
[]
[]
[]
[]
[]
[]
[]
[]
[]
[]
[]
[]
[]
[]
[]
[]
[]
[]
[]
[]
[]
[]
[]
[]
[]
[]
[]
[]
[]
[]
[]
[]
[]
[]
[]
[]
[]
[]
[]
[]
[]
[]
[]
[]
[]
[]
[]
[]
[]
[]
[]
[]
[]
[]
[]
[]
[]
[]
[]
[]
[]
[]
[]
[]
[]
[]
[]
[]
[]
[]
[null,null,null," "]
[]
[]
[]
[]
["Item","Équation_Texte","A","B","C","E","F","Équation_Calcul_ha","EMR1_Brut_ha","BNT1_Brut_ha","PE2_ha_PLANIF","PE2_ha_BGAD","PE2_ha_MFFP","MAN_ha_PLANIF","MAN_ha_BGAD","MAN_ha_MFFP","RUB1_ha_PLANIF","RUB1_ha_BGAD","RUB1_ha_MFFP","H2_ha_PLANIF","H2_ha_BGAD","H2_ha_MFFP"]
["C1","-0,0411P+(333,491/P)+4,6068",-4.1099999999999998E-2,333.49099999999999,4.6067999999999998,null,null,{"$f":"IFERROR(($C$1048512*'Calcul des taux (formules)'!$G$34+($D$1048512/'Calcul des taux (formules)'!$G$34)+$E$1048512),0)","v":0},"N/A","N/A","N/A","N/A","N/A","N/A","N/A","N/A","N/A","N/A","N/A","N/A","N/A","N/A"]
["C2","-0,0514P+(333,491/P)+5,2645",-5.1400000000000001E-2,333.49099999999999,5.2645,null,null,{"$f":"IFERROR(($C$1048513*'Calcul des taux (formules)'!$G$34+($D$1048513/'Calcul des taux (formules)'!$G$34)+$E$1048513),0)","v":0},"N/A","N/A","N/A","N/A","N/A","N/A","N/A","N/A","N/A","N/A","N/A","N/A","N/A","N/A"]
["Formule 1","( C1 + (4,861vr-0,682 - 7,487vp-0,391))x P",4.8609999999999998,-0.68200000000000005,7.4870000000000001,-0.39100000000000001,null,{"$f":"IFERROR((($H$1048512+($C$1048514*POWER('Calcul des taux (formules)'!$G$36,$D$1048514))-($E$1048514*POWER('Calcul des taux (formules)'!$G$35,$F$1048514)))*'Calcul des taux (formules)'!$G$34),0)","v":0},"N/A","N/A",{"$f":"IFERROR(SUMPRODUCT($C$55:$C$59,G$55:G$59)/G$60-$H1048514,0)","v":0},{"$f":"IFERROR(SUMPRODUCT($C$55:$C$59,H$55:H$59)/H$60-$H1048514,0)","v":0},{"$f":"IFERROR(SUMPRODUCT($C$55:$C$59,I$55:I$59)/I$60-$H1048514,0)","v":0},{"$f":"IFERROR(($K$1048514+$H$1048514)*VLOOKUP($G$63,Menus!$A$346:$C$348,2,0),0)","v":0},{"$f":"IFERROR(($L$1048514+$H$1048514)*VLOOKUP($H$63,Menus!$A$346:$C$348,2,0),0)","v":0},{"$f":"IFERROR(($M$1048514+$H$1048514)*VLOOKUP($I$63,Menus!$A$346:$C$348,2,0),0)","v":0},{"$f":"IFERROR(IF(OR(G$66<15,G$66=Menus!$A$352,G$66=\"\"),0,'Majorations applicables'!$B$26*POWER(G$66,'Majorations applicables'!$B$27))*(1+($K$1048514/$H$1048514)),0)","v":0},{"$f":"IFERROR(IF(OR(H$66<15,H$66=Menus!$A$352,H$66=\"\"),0,'Majorations applicables'!$B$26*POWER(H$66,'Majorations applicables'!$B$27))*(1+($L$1048514/$H$1048514)),0)","v":0},{"$f":"IFERROR(IF(OR(I$66<15,I$66=Menus!$A$352,I$66=\"\"),0,'Majorations applicables'!$B$26*POWER(I$66,'Majorations applicables'!$B$27))*(1+($M$1048514/$H$1048514)),0)","v":0},{"$f":"IFERROR((SUM(H1048514,K1048514,N1048514,Q1048514)*SUM(VLOOKUP($G$69,Menus!$A$341:$B$342,2,FALSE))),0)","v":0},{"$f":"IFERROR((SUM(H1048514,L1048514,O1048514,$R1048514)*SUM(VLOOKUP($H$69,Menus!$A$341:$B$342,2,FALSE))),0)","v":0},{"$f":"IFERROR((SUM(H1048514,M1048514,P1048514,S1048514)*SUM(VLOOKUP($I$69,Menus!$A$341:$B$342,2,FALSE))),0)","v":0}]
["Formule 2","( C1 + (14,385vr-0,237 - 10,187vp-0,237)-0,43) x P",14.385,-0.23699999999999999,10.186999999999999,-0.23699999999999999,0.43,{"$f":"IFERROR((($H$1048512+($C$1048515*POWER('Calcul des taux (formules)'!$G$36,$D$1048515))-($E$1048515*POWER('Calcul des taux (formules)'!$G$35,$F$1048515))-$G$1048515)*'Calcul des taux (formules)'!$G$34),0)","v":0},"N/A","N/A",{"$f":"IFERROR(IF($I$13=$A1048515,SUMPRODUCT($C$55:$C$59,G$55:G$59)/G$60-$H1048515,0),0)","v":0},0,0,"N/A","N/A","N/A",{"$f":"IFERROR(IF(OR(G$66<15,G$66=Menus!$A$352,G$66=\"\"),0,'Majorations applicables'!$B$26*POWER(G$66,'Majorations applicables'!$B$27))*(1+($K$1048515/$H$1048515)),0)","v":0},{"$f":"IFERROR(IF(OR(H$66<15,H$66=Menus!$A$352,H$66=\"\"),0,'Majorations applicables'!$B$26*POWER(H$66,'Majorations applicables'!$B$27))*(1+($L$1048515/$H$1048515)),0)","v":0},{"$f":"IFERROR(IF(OR(I$66<15,I$66=Menus!$A$352,I$66=\"\"),0,'Majorations applicables'!$B$26*POWER(I$66,'Majorations applicables'!$B$27))*(1+($M$1048515/$H$1048515)),0)","v":0},{"$f":"IFERROR((SUM(H1048515,K1048515,Q1048515)*SUM(VLOOKUP($G$69,Menus!$A$341:$B$342,2,FALSE))),0)","v":0},{"$f":"IFERROR((SUM(H1048515,L1048515,$R1048515)*SUM(VLOOKUP($H$69,Menus!$A$341:$B$342,2,FALSE))),0)","v":0},{"$f":"IFERROR((SUM(H1048515,M1048515,S1048515)*SUM(VLOOKUP($I$69,Menus!$A$341:$B$342,2,FALSE))),0)","v":0}]
["Formule 4","( C2 + (10,992vr-0,526 - 6,492vp-0,563)-0,43) x P",10.992000000000001,-0.52600000000000002,6.492,-0.56299999999999994,0.43,{"$f":"IFERROR((($H$1048513+($C$1048516*POWER('Calcul des taux (formules)'!$G$36,$D$1048516))-($E$1048516*POWER('Calcul des taux (formules)'!$G$35,$F$1048516))-$G$1048516)*'Calcul des taux (formules)'!$G$34),0)","v":0},{"$f":"IFERROR(($H$1048516*(-'Calcul des taux (formules)'!$G$41)),0)","v":0},{"$f":"IFERROR(IF(AND('Calcul des taux (formules)'!$G$48>0,OR('Calcul des taux (formules)'!$G$49>0,'Calcul des taux (formules)'!$G$50>0)),(-('Majorations applicables'!$B$19*POWER('Calcul des taux (formules)'!$G$44,'Majorations applicables'!$B$20)-('Majorations applicables'!$B$21*'Calcul des taux (formules)'!$G$44)+1)*($H$1048516+$I$1048516)),IF(AND('Calcul des taux (formules)'!$G$48>0,OR('Calcul des taux (formules)'!$G$49=0,'Calcul des taux (formules)'!$G$50=0)),(-('Majorations applicables'!$B$19*POWER('Calcul des taux (formules)'!$G$44,'Majorations applicables'!$B$20)-('Majorations applicables'!$B$21*'Calcul des taux (formules)'!$G$44)+1)*($H$1048516+$I$1048516)),0)),0)","v":0},0,0,0,"N/A","N/A","N/A",{"$f":"IFERROR(IF(OR(G$66<15,G$66=Menus!$A$352,G$66=\"\"),0,'Majorations applicables'!$B$26*POWER(G$66,'Majorations applicables'!$B$27))*(1+($K$1048516/$H$1048516)),0)","v":0},{"$f":"IFERROR(IF(OR(H$66<15,H$66=Menus!$A$352,H$66=\"\"),0,'Majorations applicables'!$B$26*POWER(H$66,'Majorations applicables'!$B$27))*(1+($L$1048516/$H$1048516)),0)","v":0},{"$f":"IFERROR(IF(OR(I$66<15,I$66=Menus!$A$352,I$66=\"\"),0,'Majorations applicables'!$B$26*POWER(I$66,'Majorations applicables'!$B$27))*(1+($M$1048516/$H$1048516)),0)","v":0},{"$f":"IFERROR((SUM(H1048516:J1048516,K1048516,Q1048516)*SUM(VLOOKUP($G$69,Menus!$A$341:$B$342,2,FALSE))),0)","v":0},{"$f":"IFERROR((SUM(H1048516:J1048516,L1048516,$R1048516)*SUM(VLOOKUP($H$69,Menus!$A$341:$B$342,2,FALSE))),0)","v":0},{"$f":"IFERROR((SUM(H1048516:J1048516,M1048516,S1048516)*SUM(VLOOKUP($I$69,Menus!$A$341:$B$342,2,FALSE))),0)","v":0}]
["Formule 5","( C2 + (10,523vr-0,535 - 6,406vp-0,563)-0,43) x P",10.523,-0.53500000000000003,6.4059999999999997,-0.56299999999999994,0.43,{"$f":"IFERROR((($H$1048513+($C$1048517*POWER('Calcul des taux (formules)'!$G$36,$D$1048517))-($E$1048517*POWER('Calcul des taux (formules)'!$G$35,$F$1048517))-$G$1048517)*'Calcul des taux (formules)'!$G$34),0)","v":0},{"$f":"IFERROR(($H$1048517*(-'Calcul des taux (formules)'!$G$41)),0)","v":0},{"$f":"IFERROR(IF(AND('Calcul des taux (formules)'!$G$48>0,OR('Calcul des taux (formules)'!$G$49>0,'Calcul des taux (formules)'!$G$50>0)),(-('Majorations applicables'!$B$19*POWER('Calcul des taux (formules)'!$G$44,'Majorations applicables'!$B$20)-('Majorations applicables'!$B$21*'Calcul des taux (formules)'!$G$44)+1)*($H$1048517+$I$1048517)),IF(AND('Calcul des taux (formules)'!$G$48>0,OR('Calcul des taux (formules)'!$G$49=0,'Calcul des taux (formules)'!$G$50=0)),(-('Majorations applicables'!$B$19*POWER('Calcul des taux (formules)'!$G$44,'Majorations applicables'!$B$20)-('Majorations applicables'!$B$21*'Calcul des taux (formules)'!$G$44)+1)*($H$1048517+$I$1048517)),0)),0)","v":0},0,0,0,"N/A","N/A","N/A",{"$f":"IFERROR(IF(OR(G$66<15,G$66=Menus!$A$352,G$66=\"\"),0,'Majorations applicables'!$B$26*POWER(G$66,'Majorations applicables'!$B$27))*(1+($K$1048517/$H$1048517)),0)","v":0},{"$f":"IFERROR(IF(OR(H$66<15,H$66=Menus!$A$352,H$66=\"\"),0,'Majorations applicables'!$B$26*POWER(H$66,'Majorations applicables'!$B$27))*(1+($L$1048517/$H$1048517)),0)","v":0},{"$f":"IFERROR(IF(OR(I$66<15,I$66=Menus!$A$352,I$66=\"\"),0,'Majorations applicables'!$B$26*POWER(I$66,'Majorations applicables'!$B$27))*(1+($M$1048517/$H$1048517)),0)","v":0},{"$f":"IFERROR((SUM(H1048517:J1048517,K1048517,Q1048517)*SUM(VLOOKUP($G$69,Menus!$A$341:$B$342,2,FALSE))),0)","v":0},{"$f":"IFERROR((SUM(H1048517:J1048517,L1048517,$R1048517)*SUM(VLOOKUP($H$69,Menus!$A$341:$B$342,2,FALSE))),0)","v":0},{"$f":"IFERROR((SUM(H1048517:J1048517,M1048517,S1048517)*SUM(VLOOKUP($I$69,Menus!$A$341:$B$342,2,FALSE))),0)","v":0}]
["Formule 6","( C2 + (7,638vr-0,534 - 6,310vp-0,564) x P",7.6379999999999999,-0.53400000000000003,6.31,-0.56399999999999995,null,{"$f":"IFERROR((($H$1048513+($C$1048518*POWER('Calcul des taux (formules)'!$G$36,$D$1048518))-($E$1048518*POWER('Calcul des taux (formules)'!$G$35,$F$1048518)))*'Calcul des taux (formules)'!$G$34),0)","v":0},{"$f":"IFERROR(($H$1048518*(-'Calcul des taux (formules)'!$G$41)),0)","v":0},{"$f":"IFERROR(IF(AND('Calcul des taux (formules)'!$G$48>0,OR('Calcul des taux (formules)'!$G$49>0,'Calcul des taux (formules)'!$G$50>0)),(-('Majorations applicables'!$B$19*POWER('Calcul des taux (formules)'!$G$44,'Majorations applicables'!$B$20)-('Majorations applicables'!$B$21*'Calcul des taux (formules)'!$G$44)+1)*($H$1048518+$I$1048518)),IF(AND('Calcul des taux (formules)'!$G$48>0,OR('Calcul des taux (formules)'!$G$49=0,'Calcul des taux (formules)'!$G$50=0)),(-('Majorations applicables'!$B$19*POWER('Calcul des taux (formules)'!$G$44,'Majorations applicables'!$B$20)-('Majorations applicables'!$B$21*'Calcul des taux (formules)'!$G$44)+1)*($H$1048518+$I$1048518)),0)),0)","v":0},0,0,0,"N/A","N/A","N/A","N/A","N/A","N/A",{"$f":"IFERROR((SUM(H1048518:J1048518,K1048518,Q1048518)*SUM(VLOOKUP($G$69,Menus!$A$341:$B$342,2,FALSE))),0)","v":0},{"$f":"IFERROR((SUM(H1048518:J1048518,L1048518,$R1048518)*SUM(VLOOKUP($H$69,Menus!$A$341:$B$342,2,FALSE))),0)","v":0},{"$f":"IFERROR((SUM(H1048518:J1048518,M1048518,S1048518)*SUM(VLOOKUP($I$69,Menus!$A$341:$B$342,2,FALSE))),0)","v":0}]
["Formule 7","( C2 + (7,487vr-0,643 - 6,310vp-0,564) x P",7.4870000000000001,-0.64300000000000002,6.31,-0.56399999999999995,null,{"$f":"IFERROR((($H$1048513+($C$1048519*POWER('Calcul des taux (formules)'!$G$36,$D$1048519))-($E$1048519*POWER('Calcul des taux (formules)'!$G$35,$F$1048519)))*'Calcul des taux (formules)'!$G$34),0)","v":0},{"$f":"IFERROR(($H$1048519*(-'Calcul des taux (formules)'!$G$41)),0)","v":0},{"$f":"IFERROR(IF(AND('Calcul des taux (formules)'!$G$48>0,OR('Calcul des taux (formules)'!$G$49>0,'Calcul des taux (formules)'!$G$50>0)),(-('Majorations applicables'!$B$19*POWER('Calcul des taux (formules)'!$G$44,'Majorations applicables'!$B$20)-('Majorations applicables'!$B$21*'Calcul des taux (formules)'!$G$44)+1)*($H$1048519+$I$1048519)),IF(AND('Calcul des taux (formules)'!$G$48>0,OR('Calcul des taux (formules)'!$G$49=0,'Calcul des taux (formules)'!$G$50=0)),(-('Majorations applicables'!$B$19*POWER('Calcul des taux (formules)'!$G$44,'Majorations applicables'!$B$20)-('Majorations applicables'!$B$21*'Calcul des taux (formules)'!$G$44)+1)*($H$1048519+$I$1048519)),0)),0)","v":0},{"$f":"IFERROR(IF($I$13=$A1048519,SUMPRODUCT($C$55:$C$59,G$55:G$59)/G$60-$H1048519,0),0)","v":0},0,0,"N/A","N/A","N/A",{"$f":"IFERROR(IF(OR(G$66<15,G$66=Menus!$A$352,G$66=\"\"),0,'Majorations applicables'!$B$26*POWER(G$66,'Majorations applicables'!$B$27))*(1+($K$1048519/$H$1048519)),0)","v":0},{"$f":"IFERROR(IF(OR(H$66<15,H$66=Menus!$A$352,H$66=\"\"),0,'Majorations applicables'!$B$26*POWER(H$66,'Majorations applicables'!$B$27))*(1+($L$1048519/$H$1048519)),0)","v":0},{"$f":"IFERROR(IF(OR(I$66<15,I$66=Menus!$A$352,I$66=\"\"),0,'Majorations applicables'!$B$26*POWER(I$66,'Majorations applicables'!$B$27))*(1+($M$1048519/$H$1048519)),0)","v":0},{"$f":"IFERROR((SUM(H1048519:J1048519,K1048519,Q1048519)*SUM(VLOOKUP($G$69,Menus!$A$341:$B$342,2,FALSE))),0)","v":0},{"$f":"IFERROR((SUM(H1048519:J1048519,L1048519,$R1048519)*SUM(VLOOKUP($H$69,Menus!$A$341:$B$342,2,FALSE))),0)","v":0},{"$f":"IFERROR((SUM(H1048519:J1048519,M1048519,S1048519)*SUM(VLOOKUP($I$69,Menus!$A$341:$B$342,2,FALSE))),0)","v":0}]
["Inscrire une valeur","Veuillez inscrire une formule à G12"]

{"sheet":"Aide suppl. (volets I et II)","index":1,"n_rows":180,"n_cols":103,"rows_kept":180,"cut":false,"hidden":false,"merged":[[11,0,11,5],[10,0,10,3],[10,4,10,5],[2,0,2,6],[25,3,25,5],[7,0,7,5],[2,7,2,8],[28,0,28,8],[31,0,31,5],[32,0,32,5],[8,6,8,8],[8,0,8,5],[18,0,19,2],[18,3,18,5],[19,3,19,5],[17,0,17,8],[21,0,25,2],[21,3,21,5],[22,3,22,5],[23,3,23,5],[24,3,24,5],[26,0,26,5],[35,0,35,5],[43,0,43,5],[44,0,44,5],[45,0,45,5],[36,0,36,5],[37,0,37,5],[38,0,38,5],[39,0,39,5],[40,0,40,5],[42,0,42,8],[33,0,33,5],[34,0,34,5],[27,0,27,5],[29,0,29,5],[30,0,30,5],[61,0,61,8],[0,0,0,8],[13,0,13,5],[14,0,14,5],[15,0,15,5],[16,0,16,5],[5,0,5,5],[1,0,1,5],[12,0,12,8],[6,0,6,5],[3,0,3,5],[5,6,5,8],[6,6,6,8],[7,6,7,8],[3,6,3,8],[4,0,4,8],[51,0,53,5],[51,6,53,8],[54,0,54,5],[54,6,54,8],[46,0,46,8],[48,0,48,8],[49,0,49,8],[50,0,50,8],[68,0,68,5],[68,6,68,8],[79,0,79,5],[79,6,79,8],[69,0,69,8],[70,0,70,8],[71,0,71,8],[72,0,72,8],[73,0,75,5],[73,6,75,8],[76,0,76,5],[76,6,76,8],[77,0,78,5],[77,6,78,8],[65,0,65,5],[65,6,65,8],[66,0,67,5],[66,6,67,8],[20,0,20,5],[41,0,41,5],[62,6,64,8],[57,0,57,5],[57,6,57,8],[47,0,47,8],[55,0,56,5],[55,6,56,8],[58,0,58,8],[59,0,59,8],[60,0,60,8],[62,0,64,5]]}
[]
["Annexe au rapport et au calcul de l'aide supplémentaire à \n    l’aménagement des forêts feuillues et mixtes\n   2018-2019                     \nForêt publique"]
[" *** Veuillez saisir les informations dans les cellules blanches (Planification et BGAD) et jaunes (Ministère) ***",null,null,null,null,null,null,"Version 2 : 2018-05-15"]
["Contexte d'utilisation",null,null,null,null,null,"Inscrire une valeur",null,null,null,null,null,null,null,null,null,null,null,null,null,null,null,null,null,null,null,null,null,null,null,null,null,null,null,null,null,null,null,null,null,null,null,null,null,null,null,null,null,null,null,null,null,null,null,null,null,null,null,null,null,null,null,null,null,null,null,null,null,null,null,null,null,null,null,null,null,null,null,null,null,null,null,null,null,null,null,null,null,null,null,null,null,null,null,null,null,null,null,null,"UAF","Zone","Taux","OUI"]
["Identification"]
["UA",null,null,null,null,null,null,null,null,null,null,null,null,null,null,null,null,null,null,null,null,null,null,null,null,null,null,null,null,null,null,null,null,null,null,null,null,null,null,null,null,null,null,null,null,null,null,null,null,null,null,null,null,null,null,null,null,null,null,null,null,null,null,null,null,null,null,null,null,null,null,null,null,null,null,null,null,null,null,null,null,null,null,null,null,null,null,null,null,null,null,null,null,null,null,null,null,null,null,null,null,null,"NON"]
["Secteur d'intervention",null,null,null,null,null,null,null,null,null,null,null,null,null,null,null,null,null,null,null,null,null,null,null,null,null,null,null,null,null,null,null,null,null,null,null,null,null,null,null,null,null,null,null,null,null,null,null,null,null,null,null,null,null,null,null,null,null,null,null,null,null,null,null,null,null,null,null,null,null,null,null,null,null,null,null,null,null,null,null,null,null,null,null,null,null,null,null,null,null,null,null,null,null,null,null,null,null,null,"01151",151,0]
["Unité de compilation",null,null,null,null,null,null,null,null,null,null,null,null,null,null,null,null,null,null,null,null,null,null,null,null,null,null,null,null,null,null,null,null,null,null,null,null,null,null,null,null,null,null,null,null,null,null,null,null,null,null,null,null,null,null,null,null,null,null,null,null,null,null,null,null,null,null,null,null,null,null,null,null,null,null,null,null,null,null,null,null,null,null,null,null,null,null,null,null,null,null,null,null,null,null,null,null,null,null,"01152",152,0]
["Numéro de la prescription",null,null,null,null,null,null,null,null,null,null,null,null,null,null,null,null,null,null,null,null,null,null,null,null,null,null,null,null,null,null,null,null,null,null,null,null,null,null,null,null,null,null,null,null,null,null,null,null,null,null,null,null,null,null,null,null,null,null,null,null,null,null,null,null,null,null,null,null,null,null,null,null,null,null,null,null,null,null,null,null,null,null,null,null,null,null,null,null,null,null,null,null,null,null,null,null,null,null,"01251",153,0]
["Traitement (code DICA)",null,null,null,null,null,null,null,null,null,null,null,null,null,null,null,null,null,null,null,null,null,null,null,null,null,null,null,null,null,null,null,null,null,null,null,null,null,null,null,null,null,null,null,null,null,null,null,null,null,null,null,null,null,null,null,null,null,null,null,null,null,null,null,null,null,null,null,null,null,null,null,null,null,null,null,null,null,null,null,null,null,null,null,null,null,null,null,null,null,null,null,null,null,null,null,null,null,null,"01252",154,0]
["Traitement (Code RATF)",null,null,null,{"$f":"IFERROR(VLOOKUP($I$10,Menus!$A$219:$E$327,3,FALSE),Menus!$C$327)","v":"RATF_Utilisateur"}]
["Inscrire les renseignements dans la colonne associée au contexte d'utilisation",null,null,null,null,null,"Planification","BGAD","Ministère"]
["Admissibilité",null,null,null,null,null,null,null,null,null,null,null,null,null,null,null,null,null,null,null,null,null,null,null,null,null,null,null,null,null,null,null,null,null,null,null,null,null,null,null,null,null,null,null,null,null,null,null,null,null,null,null,null,null,null,null,null,null,null,null,null,null,null,null,null,null,null,null,null,null,null,null,null,null,null,null,null,null,null,null,null,null,null,null,null,null,null,null,null,null,null,null,null,null,null,null,null,null,null,"01253",155,0]
["Secteur d'intervention dont la composition est feuillue ou mixte à dominance feuillue",null,null,null,null,null,null,null,null,null,null,null,null,null,null,null,null,null,null,null,null,null,null,null,null,null,null,null,null,null,null,null,null,null,null,null,null,null,null,null,null,null,null,null,null,null,null,null,null,null,null,null,null,null,null,null,null,null,null,null,null,null,null,null,null,null,null,null,null,null,null,null,null,null,null,null,null,null,null,null,null,null,null,null,null,null,null,null,null,null,null,null,null,null,null,null,null,null,null,"02251",157,0]
["Admissible à l'aide financière pour les coupes partielles",null,null,null,null,null,null,null,null,null,null,null,null,null,null,null,null,null,null,null,null,null,null,null,null,null,null,null,null,null,null,null,null,null,null,null,null,null,null,null,null,null,null,null,null,null,null,null,null,null,null,null,null,null,null,null,null,null,null,null,null,null,null,null,null,null,null,null,null,null,null,null,null,null,null,null,null,null,null,null,null,null,null,null,null,null,null,null,null,null,null,null,null,null,null,null,null,null,null,"02351",158,0]
["Pourcentage de récupération des bois de trituration",null,null,null,null,null,null,null,null,null,null,null,null,null,null,null,null,null,null,null,null,null,null,null,null,null,null,null,null,null,null,null,null,null,null,null,null,null,null,null,null,null,null,null,null,null,null,null,null,null,null,null,null,null,null,null,null,null,null,null,null,null,null,null,null,null,null,null,null,null,null,null,null,null,null,null,null,null,null,null,null,null,null,null,null,null,null,null,null,null,null,null,null,null,null,null,null,null,null,"02352",180,0]
["Superficie admissible (ha)",null,null,null,null,null,null,null,null,null,null,null,null,null,null,null,null,null,null,null,null,null,null,null,null,null,null,null,null,null,null,null,null,null,null,null,null,null,null,null,null,null,null,null,null,null,null,null,null,null,null,null,null,null,null,null,null,null,null,null,null,null,null,null,null,null,null,null,null,null,null,null,null,null,null,null,null,null,null,null,null,null,null,null,null,null,null,null,null,null,null,null,null,null,null,null,null,null,null,"02451",181,80]
["Volet I : Mesure d'accès au marché (bois de trituration)",null,null,null,null,null,null,null,null,null,null,null,null,null,null,null,null,null,null,null,null,null,null,null,null,null,null,null,null,null,null,null,null,null,null,null,null,null,null,null,null,null,null,null,null,null,null,null,null,null,null,null,null,null,null,null,null,null,null,null,null,null,null,null,null,null,null,null,null,null,null,null,null,null,null,null,null,null,null,null,null,null,null,null,null,null,null,null,null,null,null,null,null,null,null,null,null,null,null,"02452",182,0]
["Aide supplémentaire pour les bois de trituration livrés selon la zone de tarification",null,null,"Zone de tarification",null,null,null,null,null,null,null,null,null,null,null,null,null,null,null,null,null,null,null,null,null,null,null,null,null,null,null,null,null,null,null,null,null,null,null,null,null,null,null,null,null,null,null,null,null,null,null,null,null,null,null,null,null,null,null,null,null,null,null,null,null,null,null,null,null,null,null,null,null,null,null,null,null,null,null,null,null,null,null,null,null,null,null,null,null,null,null,null,null,null,null,null,null,null,null,"02651",184,200]
[null,null,null,"Proportion des bois assignée à ce calcul (%)",null,null,null,null,null,null,null,null,null,null,null,null,null,null,null,null,null,null,null,null,null,null,null,null,null,null,null,null,null,null,null,null,null,null,null,null,null,null,null,null,null,null,null,null,null,null,null,null,null,null,null,null,null,null,null,null,null,null,null,null,null,null,null,null,null,null,null,null,null,null,null,null,null,null,null,null,null,null,null,null,null,null,null,null,null,null,null,null,null,null,null,null,null,null,null,"02661",185,80]
["Sous-total selon la zone de tarification ($/ha)",null,null,null,null,null,{"$f":"IFERROR(VLOOKUP($G$19,Menus!$A$488:$B$673,2,FALSE)*$G$16*$G$20,0)","v":0},{"$f":"IFERROR(IF(OR($G$4=Menus!$A$677,$G$4=Menus!$A$678),VLOOKUP($H$19,Menus!$A$488:$B$673,2,FALSE)*$H$16*$H$20,0),0)","v":0},{"$f":"IFERROR(IF($G$4=Menus!$A$678,VLOOKUP($I$19,Menus!$A$488:$B$673,2,FALSE)*$I$16*$I$20,0),0)","v":0},null,null,null,null,null,null,null,null,null,null,null,null,null,null,null,null,null,null,null,null,null,null,null,null,null,null,null,null,null,null,null,null,null,null,null,null,null,null,null,null,null,null,null,null,null,null,null,null,null,null,null,null,null,null,null,null,null,null,null,null,null,null,null,null,null,null,null,null,null,null,null,null,null,null,null,null,null,null,null,null,null,null,null,null,null,null,null,null,null,null,"02662",186,80]
["Aide supplémentaire pour les bois de trituration livrés à une autre destination",null,null,"Proportion des bois assignée à ce calcul (%)",null,null,{"$f":"IF($G$20=\"\",\"\",1-$G$20)","v":""},{"$f":"IF($H$20=\"\",\"\",1-$H$20)","v":""},{"$f":"IF($I$20=\"\",\"\",1-$I$20)","v":""},null,null,null,null,null,null,null,null,null,null,null,null,null,null,null,null,null,null,null,null,null,null,null,null,null,null,null,null,null,null,null,null,null,null,null,null,null,null,null,null,null,null,null,null,null,null,null,null,null,null,null,null,null,null,null,null,null,null,null,null,null,null,null,null,null,null,null,null,null,null,null,null,null,null,null,null,null,null,null,null,null,null,null,null,null,null,null,null,null,null,"02664",190,220]
[null,null,null,"Destination",null,null,null,null,null,null,null,null,null,null,null,null,null,null,null,null,null,null,null,null,null,null,null,null,null,null,null,null,null,null,null,null,null,null,null,null,null,null,null,null,null,null,null,null,null,null,null,null,null,null,null,null,null,null,null,null,null,null,null,null,null,null,null,null,null,null,null,null,null,null,null,null,null,null,null,null,null,null,null,null,null,null,null,null,null,null,null,null,null,null,null,null,null,null,null,"02665",191,220]
[null,null,null,"Numéro de projet de mesurage",null,null,null,null,null,null,null,null,null,null,null,null,null,null,null,null,null,null,null,null,null,null,null,null,null,null,null,null,null,null,null,null,null,null,null,null,null,null,null,null,null,null,null,null,null,null,null,null,null,null,null,null,null,null,null,null,null,null,null,null,null,null,null,null,null,null,null,null,null,null,null,null,null,null,null,null,null,null,null,null,null,null,null,null,null,null,null,null,null,null,null,null,null,null,null,"02666",192,140]
[null,null,null,"Volume déclaré (m³)",null,null,null,null,null,null,null,null,null,null,null,null,null,null,null,null,null,null,null,null,null,null,null,null,null,null,null,null,null,null,null,null,null,null,null,null,null,null,null,null,null,null,null,null,null,null,null,null,null,null,null,null,null,null,null,null,null,null,null,null,null,null,null,null,null,null,null,null,null,null,null,null,null,null,null,null,null,null,null,null,null,null,null,null,null,null,null,null,null,null,null,null,null,null,null,"02751",193,80]
[null,null,null,"Distance (km)",null,null,null,null,null,null,null,null,null,null,null,null,null,null,null,null,null,null,null,null,null,null,null,null,null,null,null,null,null,null,null,null,null,null,null,null,null,null,null,null,null,null,null,null,null,null,null,null,null,null,null,null,null,null,null,null,null,null,null,null,null,null,null,null,null,null,null,null,null,null,null,null,null,null,null,null,null,null,null,null,null,null,null,null,null,null,null,null,null,null,null,null,null,null,null,"03151",194,20]
["Sous-total aide autre destination ($/ha)",null,null,null,null,null,{"$f":"IFERROR(IF($G$23=\"\",0,IF((('Majorations applicables'!$A$33*$G$26)-'Majorations applicables'!$A$34)<0,0,IF((('Majorations applicables'!$A$33*$G$26)-'Majorations applicables'!$A$34)<LARGE(Menus!$B$488:$B$673,1),(('Majorations applicables'!$A$33*$G$26)-'Majorations applicables'!$A$34),LARGE(Menus!$B$488:$B$673,1)))*$G$22)*$G$16,0)","v":0},{"$f":"IFERROR(IF(OR($G$4=Menus!$A$677,$G$4=Menus!$A$678),IF($H$23=\"\",0,IF((('Majorations applicables'!$A$33*$H$26)-'Majorations applicables'!$A$34)<0,0,IF((('Majorations applicables'!$A$33*$H$26)-'Majorations applicables'!$A$34)<LARGE(Menus!$B$488:$B$673,1),(('Majorations applicables'!$A$33*$H$26)-'Majorations applicables'!$A$34),LARGE(Menus!$B$488:$B$673,1)))*$H$22)*$H$16,0),0)","v":0},{"$f":"IFERROR(IF($G$4=Menus!$A$678,IF($I$23=\"\",0,IF((('Majorations applicables'!$A$33*$I$26)-'Majorations applicables'!$A$34)<0,0,IF((('Majorations applicables'!$A$33*$I$26)-'Majorations applicables'!$A$34)<LARGE(Menus!$B$488:$B$673,1),(('Majorations applicables'!$A$33*$I$26)-'Majorations applicables'!$A$34),LARGE(Menus!$B$488:$B$673,1)))*$I$22)*$I$16,0),0)","v":0},null,null,null,null,null,null,null,null,null,null,null,null,null,null,null,null,null,null,null,null,null,null,null,null,null,null,null,null,null,null,null,null,null,null,null,null,null,null,null,null,null,null,null,null,null,null,null,null,null,null,null,null,null,null,null,null,null,null,null,null,null,null,null,null,null,null,null,null,null,null,null,null,null,null,null,null,null,null,null,null,null,null,null,null,null,null,null,null,null,null,"03152",195,0]
["Taux global pour l'aide volet I ($/ha) - taux à inscrire à l'état d'avancement et au RATF",null,null,null,null,null,{"$f":"IFERROR(IF(AND($G$14=\"OUI\",$G$15=\"OUI\"),SUM($G$21,$G$27),0),0)","v":0},{"$f":"IFERROR(IF(OR($G$4=Menus!$A$677,$G$4=Menus!$A$678),IF(AND($H$14=\"OUI\",$H$15=\"OUI\"),SUM($H$21,$H$27),0),0),0)","v":0},{"$f":"IFERROR(IF(OR($G$4=Menus!$A$677,$G$4=Menus!$A$678),IF(AND($I$14=\"OUI\",$I$15=\"OUI\"),SUM($I$21,$I$27),0),0),0)","v":0},null,null,null,null,null,null,null,null,null,null,null,null,null,null,null,null,null,null,null,null,null,null,null,null,null,null,null,null,null,null,null,null,null,null,null,null,null,null,null,null,null,null,null,null,null,null,null,null,null,null,null,null,null,null,null,null,null,null,null,null,null,null,null,null,null,null,null,null,null,null,null,null,null,null,null,null,null,null,null,null,null,null,null,null,null,null,null,null,null,null,"03153",240,0]
["Volet II : Transport et mesurage optimisés des bois feuillus en longueur",null,null,null,null,null,null,null,null,null,null,null,null,null,null,null,null,null,null,null,null,null,null,null,null,null,null,null,null,null,null,null,null,null,null,null,null,null,null,null,null,null,null,null,null,null,null,null,null,null,null,null,null,null,null,null,null,null,null,null,null,null,null,null,null,null,null,null,null,null,null,null,null,null,null,null,null,null,null,null,null,null,null,null,null,null,null,null,null,null,null,null,null,null,null,null,null,null,null,"03351",241,60]
["Transport des bois feuillus en longueur",null,null,null,null,null,null,null,null,null,null,null,null,null,null,null,null,null,null,null,null,null,null,null,null,null,null,null,null,null,null,null,null,null,null,null,null,null,null,null,null,null,null,null,null,null,null,null,null,null,null,null,null,null,null,null,null,null,null,null,null,null,null,null,null,null,null,null,null,null,null,null,null,null,null,null,null,null,null,null,null,null,null,null,null,null,null,null,null,null,null,null,null,null,null,null,null,null,null,"03451",242,140]
["Proportion des bois feuillus transportés en longueur (%)",null,null,null,null,null,null,null,null,null,null,null,null,null,null,null,null,null,null,null,null,null,null,null,null,null,null,null,null,null,null,null,null,null,null,null,null,null,null,null,null,null,null,null,null,null,null,null,null,null,null,null,null,null,null,null,null,null,null,null,null,null,null,null,null,null,null,null,null,null,null,null,null,null,null,null,null,null,null,null,null,null,null,null,null,null,null,null,null,null,null,null,null,null,null,null,null,null,null,"03453",243,140]
["Destination",null,null,null,null,null,null,null,null,null,null,null,null,null,null,null,null,null,null,null,null,null,null,null,null,null,null,null,null,null,null,null,null,null,null,null,null,null,null,null,null,null,null,null,null,null,null,null,null,null,null,null,null,null,null,null,null,null,null,null,null,null,null,null,null,null,null,null,null,null,null,null,null,null,null,null,null,null,null,null,null,null,null,null,null,null,null,null,null,null,null,null,null,null,null,null,null,null,null,"03551",244,260]
["Numéro de projet de mesurage",null,null,null,null,null,null,null,null,null,null,null,null,null,null,null,null,null,null,null,null,null,null,null,null,null,null,null,null,null,null,null,null,null,null,null,null,null,null,null,null,null,null,null,null,null,null,null,null,null,null,null,null,null,null,null,null,null,null,null,null,null,null,null,null,null,null,null,null,null,null,null,null,null,null,null,null,null,null,null,null,null,null,null,null,null,null,null,null,null,null,null,null,null,null,null,null,null,null,"04151",245,260]
["Volume déclaré (m³)",null,null,null,null,null,null,null,null,null,null,null,null,null,null,null,null,null,null,null,null,null,null,null,null,null,null,null,null,null,null,null,null,null,null,null,null,null,null,null,null,null,null,null,null,null,null,null,null,null,null,null,null,null,null,null,null,null,null,null,null,null,null,null,null,null,null,null,null,null,null,null,null,null,null,null,null,null,null,null,null,null,null,null,null,null,null,null,null,null,null,null,null,null,null,null,null,null,null,"04251",246,260]
["Sous-total aide au transport ($/ha)",null,null,null,null,null,{"$f":"IFERROR(IF(AND($G$14=\"Oui\",$G$15=\"Oui\",$G$30=\"Oui\",$G$33<>\"\"),'Majorations applicables'!$B$37,0)*$G$31,0)","v":0},{"$f":"IFERROR(IF(OR($G$4=Menus!$A$677,$G$4=Menus!$A$678),IF(AND($H$14=\"Oui\",$H$15=\"Oui\",$H$30=\"Oui\",$H$33<>\"\"),'Majorations applicables'!$B$37,0)*$H$31,0),0)","v":0},{"$f":"IFERROR(IF($G$4=Menus!$A$678,IF(AND($I$14=\"Oui\",$I$15=\"Oui\",$I$30=\"Oui\",$I$33<>\"\"),'Majorations applicables'!$B$37,0)*$I$31,0),0)","v":0},null,null,null,null,null,null,null,null,null,null,null,null,null,null,null,null,null,null,null,null,null,null,null,null,null,null,null,null,null,null,null,null,null,null,null,null,null,null,null,null,null,null,null,null,null,null,null,null,null,null,null,null,null,null,null,null,null,null,null,null,null,null,null,null,null,null,null,null,null,null,null,null,null,null,null,null,null,null,null,null,null,null,null,null,null,null,null,null,null,null,"04351",247,280]
["Mesurage optimisé des bois feuillus",null,null,null,null,null,null,null,null,null,null,null,null,null,null,null,null,null,null,null,null,null,null,null,null,null,null,null,null,null,null,null,null,null,null,null,null,null,null,null,null,null,null,null,null,null,null,null,null,null,null,null,null,null,null,null,null,null,null,null,null,null,null,null,null,null,null,null,null,null,null,null,null,null,null,null,null,null,null,null,null,null,null,null,null,null,null,null,null,null,null,null,null,null,null,null,null,null,null,"04352",250,260]
["Proportion des bois feuillus mesurés (%)",null,null,null,null,null,null,null,null,null,null,null,null,null,null,null,null,null,null,null,null,null,null,null,null,null,null,null,null,null,null,null,null,null,null,null,null,null,null,null,null,null,null,null,null,null,null,null,null,null,null,null,null,null,null,null,null,null,null,null,null,null,null,null,null,null,null,null,null,null,null,null,null,null,null,null,null,null,null,null,null,null,null,null,null,null,null,null,null,null,null,null,null,null,null,null,null,null,null,"05151",251,280]
["Destination",null,null,null,null,null,null,null,null,null,null,null,null,null,null,null,null,null,null,null,null,null,null,null,null,null,null,null,null,null,null,null,null,null,null,null,null,null,null,null,null,null,null,null,null,null,null,null,null,null,null,null,null,null,null,null,null,null,null,null,null,null,null,null,null,null,null,null,null,null,null,null,null,null,null,null,null,null,null,null,null,null,null,null,null,null,null,null,null,null,null,null,null,null,null,null,null,null,null,"06151",252,280]
["Numéro de projet de mesurage",null,null,null,null,null,null,null,null,null,null,null,null,null,null,null,null,null,null,null,null,null,null,null,null,null,null,null,null,null,null,null,null,null,null,null,null,null,null,null,null,null,null,null,null,null,null,null,null,null,null,null,null,null,null,null,null,null,null,null,null,null,null,null,null,null,null,null,null,null,null,null,null,null,null,null,null,null,null,null,null,null,null,null,null,null,null,null,null,null,null,null,null,null,null,null,null,null,null,"06152",253,280]
["Volume déclaré (m³)",null,null,null,null,null,null,null,null,null,null,null,null,null,null,null,null,null,null,null,null,null,null,null,null,null,null,null,null,null,null,null,null,null,null,null,null,null,null,null,null,null,null,null,null,null,null,null,null,null,null,null,null,null,null,null,null,null,null,null,null,null,null,null,null,null,null,null,null,null,null,null,null,null,null,null,null,null,null,null,null,null,null,null,null,null,null,null,null,null,null,null,null,null,null,null,null,null,null,"06251",254,280]
["Sous-total aide au mesurage optimisé ($/ha)",null,null,null,null,null,{"$f":"IFERROR(IF($G$37<=$G$31,(IF(AND($G$14=\"OUI\",$G$15=\"OUI\",$G$36=\"OUI\",$G$39<>\"\"),'Majorations applicables'!$B$38,0)*$G$37),0),0)","v":0},{"$f":"IFERROR(IF(OR($G$4=Menus!$A$677,$G$4=Menus!$A$678),IF($H$37<=$H$31,(IF(AND($H$14=\"OUI\",$H$15=\"OUI\",$H$36=\"OUI\",$H$39<>\"\"),'Majorations applicables'!$B$38,0)*$H$37),0),0),0)","v":0},{"$f":"IFERROR(IF($G$4=Menus!$A$678,IF($I$37<=$I$31,(IF(AND($I$14=\"OUI\",$I$15=\"OUI\",$I$36=\"OUI\",$I$39<>\"\"),'Majorations applicables'!$B$38,0)*$I$37),0),0),0)","v":0},null,null,null,null,null,null,null,null,null,null,null,null,null,null,null,null,null,null,null,null,null,null,null,null,null,null,null,null,null,null,null,null,null,null,null,null,null,null,null,null,null,null,null,null,null,null,null,null,null,null,null,null,null,null,null,null,null,null,null,null,null,null,null,null,null,null,null,null,null,null,null,null,null,null,null,null,null,null,null,null,null,null,null,null,null,null,null,null,null,null,"06252",255,120]
["Taux global pour l'aide volet II ($/ha) - taux à inscrire à l'état d'avancement et au RATF",null,null,null,null,null,{"$f":"IFERROR(SUM($G$35,$G$41),0)","v":0},{"$f":"IFERROR(SUM($H$35,$H$41),0)","v":0},{"$f":"IFERROR(SUM($I$35,$I$41),0)","v":0},null,null,null,null,null,null,null,null,null,null,null,null,null,null,null,null,null,null,null,null,null,null,null,null,null,null,null,null,null,null,null,null,null,null,null,null,null,null,null,null,null,null,null,null,null,null,null,null,null,null,null,null,null,null,null,null,null,null,null,null,null,null,null,null,null,null,null,null,null,null,null,null,null,null,null,null,null,null,null,null,null,null,null,null,null,null,null,null,null,null,"06451",256,200]
["Résumé de l'aide supplémentaire",null,null,null,null,null,null,null,null,null,null,null,null,null,null,null,null,null,null,null,null,null,null,null,null,null,null,null,null,null,null,null,null,null,null,null,null,null,null,null,null,null,null,null,null,null,null,null,null,null,null,null,null,null,null,null,null,null,null,null,null,null,null,null,null,null,null,null,null,null,null,null,null,null,null,null,null,null,null,null,null,null,null,null,null,null,null,null,null,null,null,null,null,null,null,null,null,null,null,"06452",257,280]
["Grand total aide volet I ($)",null,null,null,null,null,{"$f":"IFERROR($G$17*$G$28,0)","v":0},{"$f":"IFERROR($H$17*$H$28,0)","v":0},{"$f":"IFERROR($I$17*$I$28,0)","v":0},null,null,null,null,null,null,null,null,null,null,null,null,null,null,null,null,null,null,null,null,null,null,null,null,null,null,null,null,null,null,null,null,null,null,null,null,null,null,null,null,null,null,null,null,null,null,null,null,null,null,null,null,null,null,null,null,null,null,null,null,null,null,null,null,null,null,null,null,null,null,null,null,null,null,null,null,null,null,null,null,null,null,null,null,null,null,null,null,null,null,"07151",258,280]
["Grand total aide volet II ($)",null,null,null,null,null,{"$f":"IFERROR($G$17*$G$42,0)","v":0},{"$f":"IFERROR($H$17*$H$42,0)","v":0},{"$f":"IFERROR($I$17*$I$42,0)","v":0},null,null,null,null,null,null,null,null,null,null,null,null,null,null,null,null,null,null,null,null,null,null,null,null,null,null,null,null,null,null,null,null,null,null,null,null,null,null,null,null,null,null,null,null,null,null,null,null,null,null,null,null,null,null,null,null,null,null,null,null,null,null,null,null,null,null,null,null,null,null,null,null,null,null,null,null,null,null,null,null,null,null,null,null,null,null,null,null,null,null,"07152",259,280]
["Grand total admissible ($)",null,null,null,null,null,{"$f":"IFERROR(SUM($G$44:$G$45),0)","v":0},{"$f":"IFERROR(SUM($H$44:$H$45),0)","v":0},{"$f":"IFERROR(SUM($I$44:$I$45),0)","v":0},null,null,null,null,null,null,null,null,null,null,null,null,null,null,null,null,null,null,null,null,null,null,null,null,null,null,null,null,null,null,null,null,null,null,null,null,null,null,null,null,null,null,null,null,null,null,null,null,null,null,null,null,null,null,null,null,null,null,null,null,null,null,null,null,null,null,null,null,null,null,null,null,null,null,null,null,null,null,null,null,null,null,null,null,null,null,null,null,null,null,"07251",260,280]
[null,null,null,null,null,null,null,null,null,null,null,null,null,null,null,null,null,null,null,null,null,null,null,null,null,null,null,null,null,null,null,null,null,null,null,null,null,null,null,null,null,null,null,null,null,null,null,null,null,null,null,null,null,null,null,null,null,null,null,null,null,null,null,null,null,null,null,null,null,null,null,null,null,null,null,null,null,null,null,null,null,null,null,null,null,null,null,null,null,null,null,null,null,null,null,null,null,null,null,"07351",261,280]
["Section réservée à l'usage de la Planification",null,null,null,null,null,null,null,null,null,null,null,null,null,null,null,null,null,null,null,null,null,null,null,null,null,null,null,null,null,null,null,null,null,null,null,null,null,null,null,null,null,null,null,null,null,null,null,null,null,null,null,null,null,null,null,null,null,null,null,null,null,null,null,null,null,null,null,null,null,null,null,null,null,null,null,null,null,null,null,null,null,null,null,null,null,null,null,null,null,null,null,null,null,null,null,null,null,null,"07352",262,280]
["Remarques",null,null,null,null,null,null,null,null,null,null,null,null,null,null,null,null,null,null,null,null,null,null,null,null,null,null,null,null,null,null,null,null,null,null,null,null,null,null,null,null,null,null,null,null,null,null,null,null,null,null,null,null,null,null,null,null,null,null,null,null,null,null,null,null,null,null,null,null,null,null,null,null,null,null,null,null,null,null,null,null,null,null,null,null,null,null,null,null,null,null,null,null,null,null,null,null,null,null,"07451",263,280]
[null,null,null,null,null,null,null,null,null,null,null,null,null,null,null,null,null,null,null,null,null,null,null,null,null,null,null,null,null,null,null,null,null,null,null,null,null,null,null,null,null,null,null,null,null,null,null,null,null,null,null,null,null,null,null,null,null,null,null,null,null,null,null,null,null,null,null,null,null,null,null,null,null,null,null,null,null,null,null,null,null,null,null,null,null,null,null,null,null,null,null,null,null,null,null,null,null,null,null,"08251",266,200]
["J'atteste que les renseignements fournis dans ce document afin de calculer l'aide supplémentaire sont complets et conformes à la vérité, au meilleur de mes connaissances.",null,null,null,null,null,null,null,null,null,null,null,null,null,null,null,null,null,null,null,null,null,null,null,null,null,null,null,null,null,null,null,null,null,null,null,null,null,null,null,null,null,null,null,null,null,null,null,null,null,null,null,null,null,null,null,null,null,null,null,null,null,null,null,null,null,null,null,null,null,null,null,null,null,null,null,null,null,null,null,null,null,null,null,null,null,null,null,null,null,null,null,null,null,null,null,null,null,null,"08665",276,280]
[null,null,null,null,null,null,null,null,null,null,null,null,null,null,null,null,null,null,null,null,null,null,null,null,null,null,null,null,null,null,null,null,null,null,null,null,null,null,null,null,null,null,null,null,null,null,null,null,null,null,null,null,null,null,null,null,null,null,null,null,null,null,null,null,null,null,null,null,null,null,null,null,null,null,null,null,null,null,null,null,null,null,null,null,null,null,null,null,null,null,null,null,null,null,null,null,null,null,null,"08666",277,280]
[null,null,null,null,null,null,null,null,null,null,null,null,null,null,null,null,null,null,null,null,null,null,null,null,null,null,null,null,null,null,null,null,null,null,null,null,null,null,null,null,null,null,null,null,null,null,null,null,null,null,null,null,null,null,null,null,null,null,null,null,null,null,null,null,null,null,null,null,null,null,null,null,null,null,null,null,null,null,null,null,null,null,null,null,null,null,null,null,null,null,null,null,null,null,null,null,null,null,null,"08751",278,280]
[null,null,null,null,null,null,null,null,null,null,null,null,null,null,null,null,null,null,null,null,null,null,null,null,null,null,null,null,null,null,null,null,null,null,null,null,null,null,null,null,null,null,null,null,null,null,null,null,null,null,null,null,null,null,null,null,null,null,null,null,null,null,null,null,null,null,null,null,null,null,null,null,null,null,null,null,null,null,null,null,null,null,null,null,null,null,null,null,null,null,null,null,null,null,null,null,null,null,null,"08762",279,280]
["Nom et prénom de l'ingénieur forestier",null,null,null,null,null,"No de permis",null,null,null,null,null,null,null,null,null,null,null,null,null,null,null,null,null,null,null,null,null,null,null,null,null,null,null,null,null,null,null,null,null,null,null,null,null,null,null,null,null,null,null,null,null,null,null,null,null,null,null,null,null,null,null,null,null,null,null,null,null,null,null,null,null,null,null,null,null,null,null,null,null,null,null,null,null,null,null,null,null,null,null,null,null,null,null,null,null,null,null,null,"08763",280,280]
[null,null,null,null,null,null,{"$f":"TODAY()","v":"2018-05-15"},null,null,null,null,null,null,null,null,null,null,null,null,null,null,null,null,null,null,null,null,null,null,null,null,null,null,null,null,null,null,null,null,null,null,null,null,null,null,null,null,null,null,null,null,null,null,null,null,null,null,null,null,null,null,null,null,null,null,null,null,null,null,null,null,null,null,null,null,null,null,null,null,null,null,null,null,null,null,null,null,null,null,null,null,null,null,null,null,null,null,null,null,"08764",281,280]
[null,null,null,null,null,null,null,null,null,null,null,null,null,null,null,null,null,null,null,null,null,null,null,null,null,null,null,null,null,null,null,null,null,null,null,null,null,null,null,null,null,null,null,null,null,null,null,null,null,null,null,null,null,null,null,null,null,null,null,null,null,null,null,null,null,null,null,null,null,null,null,null,null,null,null,null,null,null,null,null,null,null,null,null,null,null,null,null,null,null,null,null,null,null,null,null,null,null,null,"09351",282,280]
["Signature de l'ingénieur forestier",null,null,null,null,null,"Date (AAAA-MM-JJ)",null,null,null,null,null,null,null,null,null,null,null,null,null,null,null,null,null,null,null,null,null,null,null,null,null,null,null,null,null,null,null,null,null,null,null,null,null,null,null,null,null,null,null,null,null,null,null,null,null,null,null,null,null,null,null,null,null,null,null,null,null,null,null,null,null,null,null,null,null,null,null,null,null,null,null,null,null,null,null,null,null,null,null,null,null,null,null,null,null,null,null,null,"09352",283,280]
["Section réservée à l'usage du BGAD",null,null,null,null,null,null,null,null,null,null,null,null,null,null,null,null,null,null,null,null,null,null,null,null,null,null,null,null,null,null,null,null,null,null,null,null,null,null,null,null,null,null,null,null,null,null,null,null,null,null,null,null,null,null,null,null,null,null,null,null,null,null,null,null,null,null,null,null,null,null,null,null,null,null,null,null,null,null,null,null,null,null,null,null,null,null,null,null,null,null,null,null,null,null,null,null,null,null,"09451",284,280]
["Remarques",null,null,null,null,null,null,null,null,null,null,null,null,null,null,null,null,null,null,null,null,null,null,null,null,null,null,null,null,null,null,null,null,null,null,null,null,null,null,null,null,null,null,null,null,null,null,null,null,null,null,null,null,null,null,null,null,null,null,null,null,null,null,null,null,null,null,null,null,null,null,null,null,null,null,null,null,null,null,null,null,null,null,null,null,null,null,null,null,null,null,null,null,null,null,null,null,null,null,"09452",285,280]
[null,null,null,null,null,null,null,null,null,null,null,null,null,null,null,null,null,null,null,null,null,null,null,null,null,null,null,null,null,null,null,null,null,null,null,null,null,null,null,null,null,null,null,null,null,null,null,null,null,null,null,null,null,null,null,null,null,null,null,null,null,null,null,null,null,null,null,null,null,null,null,null,null,null,null,null,null,null,null,null,null,null,null,null,null,null,null,null,null,null,null,null,null,null,null,null,null,null,null,"09551",286,280]
["J'atteste que les renseignements fournis dans ce document afin de calculer l'aide supplémentaire sont complets et conformes à la vérité, au meilleur de mes connaissances.",null,null,null,null,null,null,null,null,null,null,null,null,null,null,null,null,null,null,null,null,null,null,null,null,null,null,null,null,null,null,null,null,null,null,null,null,null,null,null,null,null,null,null,null,null,null,null,null,null,null,null,null,null,null,null,null,null,null,null,null,null,null,null,null,null,null,null,null,null,null,null,null,null,null,null,null,null,null,null,null,null,null,null,null,null,null,null,null,null,null,null,null,null,null,null,null,null,null,"09751",287,280]
[null,null,null,null,null,null,null,null,null,null,null,null,null,null,null,null,null,null,null,null,null,null,null,null,null,null,null,null,null,null,null,null,null,null,null,null,null,null,null,null,null,null,null,null,null,null,null,null,null,null,null,null,null,null,null,null,null,null,null,null,null,null,null,null,null,null,null,null,null,null,null,null,null,null,null,null,null,null,null,null,null,null,null,null,null,null,null,null,null,null,null,null,null,null,null,null,null,null,null,"11161",288,280]
[null,null,null,null,null,null,null,null,null,null,null,null,null,null,null,null,null,null,null,null,null,null,null,null,null,null,null,null,null,null,null,null,null,null,null,null,null,null,null,null,null,null,null,null,null,null,null,null,null,null,null,null,null,null,null,null,null,null,null,null,null,null,null,null,null,null,null,null,null,null,null,null,null,null,null,null,null,null,null,null,null,null,null,null,null,null,null,null,null,null,null,null,null,null,null,null,null,null,null,"11262",289,280]
[null,null,null,null,null,null,null,null,null,null,null,null,null,null,null,null,null,null,null,null,null,null,null,null,null,null,null,null,null,null,null,null,null,null,null,null,null,null,null,null,null,null,null,null,null,null,null,null,null,null,null,null,null,null,null,null,null,null,null,null,null,null,null,null,null,null,null,null,null,null,null,null,null,null,null,null,null,null,null,null,null,null,null,null,null,null,null,null,null,null,null,null,null,null,null,null,null,null,null,"11263",290,280]
["Nom et prénom de l'ingénieur forestier",null,null,null,null,null,"No de permis",null,null,null,null,null,null,null,null,null,null,null,null,null,null,null,null,null,null,null,null,null,null,null,null,null,null,null,null,null,null,null,null,null,null,null,null,null,null,null,null,null,null,null,null,null,null,null,null,null,null,null,null,null,null,null,null,null,null,null,null,null,null,null,null,null,null,null,null,null,null,null,null,null,null,null,null,null,null,null,null,null,null,null,null,null,null,null,null,null,null,null,null,null,291,280]
[null,null,null,null,null,null,{"$f":"TODAY()","v":"2018-05-15"},null,null,null,null,null,null,null,null,null,null,null,null,null,null,null,null,null,null,null,null,null,null,null,null,null,null,null,null,null,null,null,null,null,null,null,null,null,null,null,null,null,null,null,null,null,null,null,null,null,null,null,null,null,null,null,null,null,null,null,null,null,null,null,null,null,null,null,null,null,null,null,null,null,null,null,null,null,null,null,null,null,null,null,null,null,null,null,null,null,null,null,null,null,292,280]
[null,null,null,null,null,null,null,null,null,null,null,null,null,null,null,null,null,null,null,null,null,null,null,null,null,null,null,null,null,null,null,null,null,null,null,null,null,null,null,null,null,null,null,null,null,null,null,null,null,null,null,null,null,null,null,null,null,null,null,null,null,null,null,null,null,null,null,null,null,null,null,null,null,null,null,null,null,null,null,null,null,null,null,null,null,null,null,null,null,null,null,null,null,null,null,null,null,null,null,null,350,0]
["Signature de l'ingénieur forestier",null,null,null,null,null,"Date (AAAA-MM-JJ)",null,null,null,null,null,null,null,null,null,null,null,null,null,null,null,null,null,null,null,null,null,null,null,null,null,null,null,null,null,null,null,null,null,null,null,null,null,null,null,null,null,null,null,null,null,null,null,null,null,null,null,null,null,null,null,null,null,null,null,null,null,null,null,null,null,null,null,null,null,null,null,null,null,null,null,null,null,null,null,null,null,null,null,null,null,null,null,null,null,null,null,null,null,351,0]
["Section réservée à l'usage du Ministère",null,null,null,null,null,null,null,null,null,null,null,null,null,null,null,null,null,null,null,null,null,null,null,null,null,null,null,null,null,null,null,null,null,null,null,null,null,null,null,null,null,null,null,null,null,null,null,null,null,null,null,null,null,null,null,null,null,null,null,null,null,null,null,null,null,null,null,null,null,null,null,null,null,null,null,null,null,null,null,null,null,null,null,null,null,null,null,null,null,null,null,null,null,null,null,null,null,null,null,352,40]
["Remarques",null,null,null,null,null,null,null,null,null,null,null,null,null,null,null,null,null,null,null,null,null,null,null,null,null,null,null,null,null,null,null,null,null,null,null,null,null,null,null,null,null,null,null,null,null,null,null,null,null,null,null,null,null,null,null,null,null,null,null,null,null,null,null,null,null,null,null,null,null,null,null,null,null,null,null,null,null,null,null,null,null,null,null,null,null,null,null,null,null,null,null,null,null,null,null,null,null,null,null,353,40]
[null,null,null,null,null,null,null,null,null,null,null,null,null,null,null,null,null,null,null,null,null,null,null,null,null,null,null,null,null,null,null,null,null,null,null,null,null,null,null,null,null,null,null,null,null,null,null,null,null,null,null,null,null,null,null,null,null,null,null,null,null,null,null,null,null,null,null,null,null,null,null,null,null,null,null,null,null,null,null,null,null,null,null,null,null,null,null,null,null,null,null,null,null,null,null,null,null,null,null,null,354,120]
["J'atteste que les renseignements fournis dans ce document afin de calculer l'aide supplémentaire sont complets et conformes à la vérité, au meilleur de mes connaissances.",null,null,null,null,null,null,null,null,null,null,null,null,null,null,null,null,null,null,null,null,null,null,null,null,null,null,null,null,null,null,null,null,null,null,null,null,null,null,null,null,null,null,null,null,null,null,null,null,null,null,null,null,null,null,null,null,null,null,null,null,null,null,null,null,null,null,null,null,null,null,null,null,null,null,null,null,null,null,null,null,null,null,null,null,null,null,null,null,null,null,null,null,null,null,null,null,null,null,null,355,180]
[null,null,null,null,null,null,null,null,null,null,null,null,null,null,null,null,null,null,null,null,null,null,null,null,null,null,null,null,null,null,null,null,null,null,null,null,null,null,null,null,null,null,null,null,null,null,null,null,null,null,null,null,null,null,null,null,null,null,null,null,null,null,null,null,null,null,null,null,null,null,null,null,null,null,null,null,null,null,null,null,null,null,null,null,null,null,null,null,null,null,null,null,null,null,null,null,null,null,null,null,356,240]
[null,null,null,null,null,null,null,null,null,null,null,null,null,null,null,null,null,null,null,null,null,null,null,null,null,null,null,null,null,null,null,null,null,null,null,null,null,null,null,null,null,null,null,null,null,null,null,null,null,null,null,null,null,null,null,null,null,null,null,null,null,null,null,null,null,null,null,null,null,null,null,null,null,null,null,null,null,null,null,null,null,null,null,null,null,null,null,null,null,null,null,null,null,null,null,null,null,null,null,null,357,240]
[null,null,null,null,null,null,null,null,null,null,null,null,null,null,null,null,null,null,null,null,null,null,null,null,null,null,null,null,null,null,null,null,null,null,null,null,null,null,null,null,null,null,null,null,null,null,null,null,null,null,null,null,null,null,null,null,null,null,null,null,null,null,null,null,null,null,null,null,null,null,null,null,null,null,null,null,null,null,null,null,null,null,null,null,null,null,null,null,null,null,null,null,null,null,null,null,null,null,null,null,450,60]
["Nom et prénom de l'ingénieur forestier",null,null,null,null,null,"No de permis",null,null,null,null,null,null,null,null,null,null,null,null,null,null,null,null,null,null,null,null,null,null,null,null,null,null,null,null,null,null,null,null,null,null,null,null,null,null,null,null,null,null,null,null,null,null,null,null,null,null,null,null,null,null,null,null,null,null,null,null,null,null,null,null,null,null,null,null,null,null,null,null,null,null,null,null,null,null,null,null,null,null,null,null,null,null,null,null,null,null,null,null,null,451,0]
[null,null,null,null,null,null,{"$f":"TODAY()","v":"2018-05-15"},null,null,null,null,null,null,null,null,null,null,null,null,null,null,null,null,null,null,null,null,null,null,null,null,null,null,null,null,null,null,null,null,null,null,null,null,null,null,null,null,null,null,null,null,null,null,null,null,null,null,null,null,null,null,null,null,null,null,null,null,null,null,null,null,null,null,null,null,null,null,null,null,null,null,null,null,null,null,null,null,null,null,null,null,null,null,null,null,null,null,null,null,null,452,0]
[null,null,null,null,null,null,null,null,null,null,null,null,null,null,null,null,null,null,null,null,null,null,null,null,null,null,null,null,null,null,null,null,null,null,null,null,null,null,null,null,null,null,null,null,null,null,null,null,null,null,null,null,null,null,null,null,null,null,null,null,null,null,null,null,null,null,null,null,null,null,null,null,null,null,null,null,null,null,null,null,null,null,null,null,null,null,null,null,null,null,null,null,null,null,null,null,null,null,null,null,453,0]
["Signature de l'ingénieur forestier",null,null,null,null,null,"Date (AAAA-MM-JJ)",null,null,null,null,null,null,null,null,null,null,null,null,null,null,null,null,null,null,null,null,null,null,null,null,null,null,null,null,null,null,null,null,null,null,null,null,null,null,null,null,null,null,null,null,null,null,null,null,null,null,null,null,null,null,null,null,null,null,null,null,null,null,null,null,null,null,null,null,null,null,null,null,null,null,null,null,null,null,null,null,null,null,null,null,null,null,null,null,null,null,null,null,null,454,0]
[null,null,null,null,null,null,null,null,null,null,null,null,null,null,null,null,null,null,null,null,null,null,null,null,null,null,null,null,null,null,null,null,null,null,null,null,null,null,null,null,null,null,null,null,null,null,null,null,null,null,null,null,null,null,null,null,null,null,null,null,null,null,null,null,null,null,null,null,null,null,null,null,null,null,null,null,null,null,null,null,null,null,null,null,null,null,null,null,null,null,null,null,null,null,null,null,null,null,null,null,455,0]
[null,null,null,null,null,null,null,null,null,null,null,null,null,null,null,null,null,null,null,null,null,null,null,null,null,null,null,null,null,null,null,null,null,null,null,null,null,null,null,null,null,null,null,null,null,null,null,null,null,null,null,null,null,null,null,null,null,null,null,null,null,null,null,null,null,null,null,null,null,null,null,null,null,null,null,null,null,null,null,null,null,null,null,null,null,null,null,null,null,null,null,null,null,null,null,null,null,null,null,null,456,0]
[null,null,null,null,null,null,null,null,null,null,null,null,null,null,null,null,null,null,null,null,null,null,null,null,null,null,null,null,null,null,null,null,null,null,null,null,null,null,null,null,null,null,null,null,null,null,null,null,null,null,null,null,null,null,null,null,null,null,null,null,null,null,null,null,null,null,null,null,null,null,null,null,null,null,null,null,null,null,null,null,null,null,null,null,null,null,null,null,null,null,null,null,null,null,null,null,null,null,null,null,457,0]
[null,null,null,null,null,null,null,null,null,null,null,null,null,null,null,null,null,null,null,null,null,null,null,null,null,null,null,null,null,null,null,null,null,null,null,null,null,null,null,null,null,null,null,null,null,null,null,null,null,null,null,null,null,null,null,null,null,null,null,null,null,null,null,null,null,null,null,null,null,null,null,null,null,null,null,null,null,null,null,null,null,null,null,null,null,null,null,null,null,null,null,null,null,null,null,null,null,null,null,null,458,60]
[null,null,null,null,null,null,null,null,null,null,null,null,null,null,null,null,null,null,null,null,null,null,null,null,null,null,null,null,null,null,null,null,null,null,null,null,null,null,null,null,null,null,null,null,null,null,null,null,null,null,null,null,null,null,null,null,null,null,null,null,null,null,null,null,null,null,null,null,null,null,null,null,null,null,null,null,null,null,null,null,null,null,null,null,null,null,null,null,null,null,null,null,null,null,null,null,null,null,null,null,459,60]
[null,null,null,null,null,null,null,null,null,null,null,null,null,null,null,null,null,null,null,null,null,null,null,null,null,null,null,null,null,null,null,null,null,null,null,null,null,null,null,null,null,null,null,null,null,null,null,null,null,null,null,null,null,null,null,null,null,null,null,null,null,null,null,null,null,null,null,null,null,null,null,null,null,null,null,null,null,null,null,null,null,null,null,null,null,null,null,null,null,null,null,null,null,null,null,null,null,null,null,null,460,200]
[null,null,null,null,null,null,null,null,null,null,null,null,null,null,null,null,null,null,null,null,null,null,null,null,null,null,null,null,null,null,null,null,null,null,null,null,null,null,null,null,null,null,null,null,null,null,null,null,null,null,null,null,null,null,null,null,null,null,null,null,null,null,null,null,null,null,null,null,null,null,null,null,null,null,null,null,null,null,null,null,null,null,null,null,null,null,null,null,null,null,null,null,null,null,null,null,null,null,null,null,461,240]
[null,null,null,null,null,null,null,null,null,null,null,null,null,null,null,null,null,null,null,null,null,null,null,null,null,null,null,null,null,null,null,null,null,null,null,null,null,null,null,null,null,null,null,null,null,null,null,null,null,null,null,null,null,null,null,null,null,null,null,null,null,null,null,null,null,null,null,null,null,null,null,null,null,null,null,null,null,null,null,null,null,null,null,null,null,null,null,null,null,null,null,null,null,null,null,null,null,null,null,null,551,0]
[null,null,null,null,null,null,null,null,null,null,null,null,null,null,null,null,null,null,null,null,null,null,null,null,null,null,null,null,null,null,null,null,null,null,null,null,null,null,null,null,null,null,null,null,null,null,null,null,null,null,null,null,null,null,null,null,null,null,null,null,null,null,null,null,null,null,null,null,null,null,null,null,null,null,null,null,null,null,null,null,null,null,null,null,null,null,null,null,null,null,null,null,null,null,null,null,null,null,null,null,650,0]
[null,null,null,null,null,null,null,null,null,null,null,null,null,null,null,null,null,null,null,null,null,null,null,null,null,null,null,null,null,null,null,null,null,null,null,null,null,null,null,null,null,null,null,null,null,null,null,null,null,null,null,null,null,null,null,null,null,null,null,null,null,null,null,null,null,null,null,null,null,null,null,null,null,null,null,null,null,null,null,null,null,null,null,null,null,null,null,null,null,null,null,null,null,null,null,null,null,null,null,null,651,40]
[null,null,null,null,null,null,null,null,null,null,null,null,null,null,null,null,null,null,null,null,null,null,null,null,null,null,null,null,null,null,null,null,null,null,null,null,null,null,null,null,null,null,null,null,null,null,null,null,null,null,null,null,null,null,null,null,null,null,null,null,null,null,null,null,null,null,null,null,null,null,null,null,null,null,null,null,null,null,null,null,null,null,null,null,null,null,null,null,null,null,null,null,null,null,null,null,null,null,null,null,652,200]
[null,null,null,null,null,null,null,null,null,null,null,null,null,null,null,null,null,null,null,null,null,null,null,null,null,null,null,null,null,null,null,null,null,null,null,null,null,null,null,null,null,null,null,null,null,null,null,null,null,null,null,null,null,null,null,null,null,null,null,null,null,null,null,null,null,null,null,null,null,null,null,null,null,null,null,null,null,null,null,null,null,null,null,null,null,null,null,null,null,null,null,null,null,null,null,null,null,null,null,null,653,140]
[null,null,null,null,null,null,null,null,null,null,null,null,null,null,null,null,null,null,null,null,null,null,null,null,null,null,null,null,null,null,null,null,null,null,null,null,null,null,null,null,null,null,null,null,null,null,null,null,null,null,null,null,null,null,null,null,null,null,null,null,null,null,null,null,null,null,null,null,null,null,null,null,null,null,null,null,null,null,null,null,null,null,null,null,null,null,null,null,null,null,null,null,null,null,null,null,null,null,null,null,654,200]
[null,null,null,null,null,null,null,null,null,null,null,null,null,null,null,null,null,null,null,null,null,null,null,null,null,null,null,null,null,null,null,null,null,null,null,null,null,null,null,null,null,null,null,null,null,null,null,null,null,null,null,null,null,null,null,null,null,null,null,null,null,null,null,null,null,null,null,null,null,null,null,null,null,null,null,null,null,null,null,null,null,null,null,null,null,null,null,null,null,null,null,null,null,null,null,null,null,null,null,null,655,40]
[null,null,null,null,null,null,null,null,null,null,null,null,null,null,null,null,null,null,null,null,null,null,null,null,null,null,null,null,null,null,null,null,null,null,null,null,null,null,null,null,null,null,null,null,null,null,null,null,null,null,null,null,null,null,null,null,null,null,null,null,null,null,null,null,null,null,null,null,null,null,null,null,null,null,null,null,null,null,null,null,null,null,null,null,null,null,null,null,null,null,null,null,null,null,null,null,null,null,null,null,656,140]
[null,null,null,null,null,null,null,null,null,null,null,null,null,null,null,null,null,null,null,null,null,null,null,null,null,null,null,null,null,null,null,null,null,null,null,null,null,null,null,null,null,null,null,null,null,null,null,null,null,null,null,null,null,null,null,null,null,null,null,null,null,null,null,null,null,null,null,null,null,null,null,null,null,null,null,null,null,null,null,null,null,null,null,null,null,null,null,null,null,null,null,null,null,null,null,null,null,null,null,null,657,140]
[null,null,null,null,null,null,null,null,null,null,null,null,null,null,null,null,null,null,null,null,null,null,null,null,null,null,null,null,null,null,null,null,null,null,null,null,null,null,null,null,null,null,null,null,null,null,null,null,null,null,null,null,null,null,null,null,null,null,null,null,null,null,null,null,null,null,null,null,null,null,null,null,null,null,null,null,null,null,null,null,null,null,null,null,null,null,null,null,null,null,null,null,null,null,null,null,null,null,null,null,658,220]
[null,null,null,null,null,null,null,null,null,null,null,null,null,null,null,null,null,null,null,null,null,null,null,null,null,null,null,null,null,null,null,null,null,null,null,null,null,null,null,null,null,null,null,null,null,null,null,null,null,null,null,null,null,null,null,null,null,null,null,null,null,null,null,null,null,null,null,null,null,null,null,null,null,null,null,null,null,null,null,null,null,null,null,null,null,null,null,null,null,null,null,null,null,null,null,null,null,null,null,null,659,280]
[null,null,null,null,null,null,null,null,null,null,null,null,null,null,null,null,null,null,null,null,null,null,null,null,null,null,null,null,null,null,null,null,null,null,null,null,null,null,null,null,null,null,null,null,null,null,null,null,null,null,null,null,null,null,null,null,null,null,null,null,null,null,null,null,null,null,null,null,null,null,null,null,null,null,null,null,null,null,null,null,null,null,null,null,null,null,null,null,null,null,null,null,null,null,null,null,null,null,null,null,660,160]
[null,null,null,null,null,null,null,null,null,null,null,null,null,null,null,null,null,null,null,null,null,null,null,null,null,null,null,null,null,null,null,null,null,null,null,null,null,null,null,null,null,null,null,null,null,null,null,null,null,null,null,null,null,null,null,null,null,null,null,null,null,null,null,null,null,null,null,null,null,null,null,null,null,null,null,null,null,null,null,null,null,null,null,null,null,null,null,null,null,null,null,null,null,null,null,null,null,null,null,null,661,40]
[null,null,null,null,null,null,null,null,null,null,null,null,null,null,null,null,null,null,null,null,null,null,null,null,null,null,null,null,null,null,null,null,null,null,null,null,null,null,null,null,null,null,null,null,null,null,null,null,null,null,null,null,null,null,null,null,null,null,null,null,null,null,null,null,null,null,null,null,null,null,null,null,null,null,null,null,null,null,null,null,null,null,null,null,null,null,null,null,null,null,null,null,null,null,null,null,null,null,null,null,662,0]
[null,null,null,null,null,null,null,null,null,null,null,null,null,null,null,null,null,null,null,null,null,null,null,null,null,null,null,null,null,null,null,null,null,null,null,null,null,null,null,null,null,null,null,null,null,null,null,null,null,null,null,null,null,null,null,null,null,null,null,null,null,null,null,null,null,null,null,null,null,null,null,null,null,null,null,null,null,null,null,null,null,null,null,null,null,null,null,null,null,null,null,null,null,null,null,null,null,null,null,null,750,0]
[null,null,null,null,null,null,null,null,null,null,null,null,null,null,null,null,null,null,null,null,null,null,null,null,null,null,null,null,null,null,null,null,null,null,null,null,null,null,null,null,null,null,null,null,null,null,null,null,null,null,null,null,null,null,null,null,null,null,null,null,null,null,null,null,null,null,null,null,null,null,null,null,null,null,null,null,null,null,null,null,null,null,null,null,null,null,null,null,null,null,null,null,null,null,null,null,null,null,null,null,751,40]
[null,null,null,null,null,null,null,null,null,null,null,null,null,null,null,null,null,null,null,null,null,null,null,null,null,null,null,null,null,null,null,null,null,null,null,null,null,null,null,null,null,null,null,null,null,null,null,null,null,null,null,null,null,null,null,null,null,null,null,null,null,null,null,null,null,null,null,null,null,null,null,null,null,null,null,null,null,null,null,null,null,null,null,null,null,null,null,null,null,null,null,null,null,null,null,null,null,null,null,null,752,220]
[null,null,null,null,null,null,null,null,null,null,null,null,null,null,null,null,null,null,null,null,null,null,null,null,null,null,null,null,null,null,null,null,null,null,null,null,null,null,null,null,null,null,null,null,null,null,null,null,null,null,null,null,null,null,null,null,null,null,null,null,null,null,null,null,null,null,null,null,null,null,null,null,null,null,null,null,null,null,null,null,null,null,null,null,null,null,null,null,null,null,null,null,null,null,null,null,null,null,null,null,753,280]
[null,null,null,null,null,null,null,null,null,null,null,null,null,null,null,null,null,null,null,null,null,null,null,null,null,null,null,null,null,null,null,null,null,null,null,null,null,null,null,null,null,null,null,null,null,null,null,null,null,null,null,null,null,null,null,null,null,null,null,null,null,null,null,null,null,null,null,null,null,null,null,null,null,null,null,null,null,null,null,null,null,null,null,null,null,null,null,null,null,null,null,null,null,null,null,null,null,null,null,null,754,80]
[null,null,null,null,null,null,null,null,null,null,null,null,null,null,null,null,null,null,null,null,null,null,null,null,null,null,null,null,null,null,null,null,null,null,null,null,null,null,null,null,null,null,null,null,null,null,null,null,null,null,null,null,null,null,null,null,null,null,null,null,null,null,null,null,null,null,null,null,null,null,null,null,null,null,null,null,null,null,null,null,null,null,null,null,null,null,null,null,null,null,null,null,null,null,null,null,null,null,null,null,755,60]
[null,null,null,null,null,null,null,null,null,null,null,null,null,null,null,null,null,null,null,null,null,null,null,null,null,null,null,null,null,null,null,null,null,null,null,null,null,null,null,null,null,null,null,null,null,null,null,null,null,null,null,null,null,null,null,null,null,null,null,null,null,null,null,null,null,null,null,null,null,null,null,null,null,null,null,null,null,null,null,null,null,null,null,null,null,null,null,null,null,null,null,null,null,null,null,null,null,null,null,null,756,260]
[null,null,null,null,null,null,null,null,null,null,null,null,null,null,null,null,null,null,null,null,null,null,null,null,null,null,null,null,null,null,null,null,null,null,null,null,null,null,null,null,null,null,null,null,null,null,null,null,null,null,null,null,null,null,null,null,null,null,null,null,null,null,null,null,null,null,null,null,null,null,null,null,null,null,null,null,null,null,null,null,null,null,null,null,null,null,null,null,null,null,null,null,null,null,null,null,null,null,null,null,757,260]
[null,null,null,null,null,null,null,null,null,null,null,null,null,null,null,null,null,null,null,null,null,null,null,null,null,null,null,null,null,null,null,null,null,null,null,null,null,null,null,null,null,null,null,null,null,null,null,null,null,null,null,null,null,null,null,null,null,null,null,null,null,null,null,null,null,null,null,null,null,null,null,null,null,null,null,null,null,null,null,null,null,null,null,null,null,null,null,null,null,null,null,null,null,null,null,null,null,null,null,null,758,280]
[null,null,null,null,null,null,null,null,null,null,null,null,null,null,null,null,null,null,null,null,null,null,null,null,null,null,null,null,null,null,null,null,null,null,null,null,null,null,null,null,null,null,null,null,null,null,null,null,null,null,null,null,null,null,null,null,null,null,null,null,null,null,null,null,null,null,null,null,null,null,null,null,null,null,null,null,null,null,null,null,null,null,null,null,null,null,null,null,null,null,null,null,null,null,null,null,null,null,null,null,850,0]
[null,null,null,null,null,null,null,null,null,null,null,null,null,null,null,null,null,null,null,null,null,null,null,null,null,null,null,null,null,null,null,null,null,null,null,null,null,null,null,null,null,null,null,null,null,null,null,null,null,null,null,null,null,null,null,null,null,null,null,null,null,null,null,null,null,null,null,null,null,null,null,null,null,null,null,null,null,null,null,null,null,null,null,null,null,null,null,null,null,null,null,null,null,null,null,null,null,null,null,null,851,0]
[null,null,null,null,null,null,null,null,null,null,null,null,null,null,null,null,null,null,null,null,null,null,null,null,null,null,null,null,null,null,null,null,null,null,null,null,null,null,null,null,null,null,null,null,null,null,null,null,null,null,null,null,null,null,null,null,null,null,null,null,null,null,null,null,null,null,null,null,null,null,null,null,null,null,null,null,null,null,null,null,null,null,null,null,null,null,null,null,null,null,null,null,null,null,null,null,null,null,null,null,852,0]
[null,null,null,null,null,null,null,null,null,null,null,null,null,null,null,null,null,null,null,null,null,null,null,null,null,null,null,null,null,null,null,null,null,null,null,null,null,null,null,null,null,null,null,null,null,null,null,null,null,null,null,null,null,null,null,null,null,null,null,null,null,null,null,null,null,null,null,null,null,null,null,null,null,null,null,null,null,null,null,null,null,null,null,null,null,null,null,null,null,null,null,null,null,null,null,null,null,null,null,null,853,0]
[null,null,null,null,null,null,null,null,null,null,null,null,null,null,null,null,null,null,null,null,null,null,null,null,null,null,null,null,null,null,null,null,null,null,null,null,null,null,null,null,null,null,null,null,null,null,null,null,null,null,null,null,null,null,null,null,null,null,null,null,null,null,null,null,null,null,null,null,null,null,null,null,null,null,null,null,null,null,null,null,null,null,null,null,null,null,null,null,null,null,null,null,null,null,null,null,null,null,null,null,854,0]
[null,null,null,null,null,null,null,null,null,null,null,null,null,null,null,null,null,null,null,null,null,null,null,null,null,null,null,null,null,null,null,null,null,null,null,null,null,null,null,null,null,null,null,null,null,null,null,null,null,null,null,null,null,null,null,null,null,null,null,null,null,null,null,null,null,null,null,null,null,null,null,null,null,null,null,null,null,null,null,null,null,null,null,null,null,null,null,null,null,null,null,null,null,null,null,null,null,null,null,null,855,0]
[null,null,null,null,null,null,null,null,null,null,null,null,null,null,null,null,null,null,null,null,null,null,null,null,null,null,null,null,null,null,null,null,null,null,null,null,null,null,null,null,null,null,null,null,null,null,null,null,null,null,null,null,null,null,null,null,null,null,null,null,null,null,null,null,null,null,null,null,null,null,null,null,null,null,null,null,null,null,null,null,null,null,null,null,null,null,null,null,null,null,null,null,null,null,null,null,null,null,null,null,856,60]
[null,null,null,null,null,null,null,null,null,null,null,null,null,null,null,null,null,null,null,null,null,null,null,null,null,null,null,null,null,null,null,null,null,null,null,null,null,null,null,null,null,null,null,null,null,null,null,null,null,null,null,null,null,null,null,null,null,null,null,null,null,null,null,null,null,null,null,null,null,null,null,null,null,null,null,null,null,null,null,null,null,null,null,null,null,null,null,null,null,null,null,null,null,null,null,null,null,null,null,null,857,80]
[null,null,null,null,null,null,null,null,null,null,null,null,null,null,null,null,null,null,null,null,null,null,null,null,null,null,null,null,null,null,null,null,null,null,null,null,null,null,null,null,null,null,null,null,null,null,null,null,null,null,null,null,null,null,null,null,null,null,null,null,null,null,null,null,null,null,null,null,null,null,null,null,null,null,null,null,null,null,null,null,null,null,null,null,null,null,null,null,null,null,null,null,null,null,null,null,null,null,null,null,858,100]
[null,null,null,null,null,null,null,null,null,null,null,null,null,null,null,null,null,null,null,null,null,null,null,null,null,null,null,null,null,null,null,null,null,null,null,null,null,null,null,null,null,null,null,null,null,null,null,null,null,null,null,null,null,null,null,null,null,null,null,null,null,null,null,null,null,null,null,null,null,null,null,null,null,null,null,null,null,null,null,null,null,null,null,null,null,null,null,null,null,null,null,null,null,null,null,null,null,null,null,null,859,180]
[null,null,null,null,null,null,null,null,null,null,null,null,null,null,null,null,null,null,null,null,null,null,null,null,null,null,null,null,null,null,null,null,null,null,null,null,null,null,null,null,null,null,null,null,null,null,null,null,null,null,null,null,null,null,null,null,null,null,null,null,null,null,null,null,null,null,null,null,null,null,null,null,null,null,null,null,null,null,null,null,null,null,null,null,null,null,null,null,null,null,null,null,null,null,null,null,null,null,null,null,860,260]
[null,null,null,null,null,null,null,null,null,null,null,null,null,null,null,null,null,null,null,null,null,null,null,null,null,null,null,null,null,null,null,null,null,null,null,null,null,null,null,null,null,null,null,null,null,null,null,null,null,null,null,null,null,null,null,null,null,null,null,null,null,null,null,null,null,null,null,null,null,null,null,null,null,null,null,null,null,null,null,null,null,null,null,null,null,null,null,null,null,null,null,null,null,null,null,null,null,null,null,null,861,240]
[null,null,null,null,null,null,null,null,null,null,null,null,null,null,null,null,null,null,null,null,null,null,null,null,null,null,null,null,null,null,null,null,null,null,null,null,null,null,null,null,null,null,null,null,null,null,null,null,null,null,null,null,null,null,null,null,null,null,null,null,null,null,null,null,null,null,null,null,null,null,null,null,null,null,null,null,null,null,null,null,null,null,null,null,null,null,null,null,null,null,null,null,null,null,null,null,null,null,null,null,862,280]
[null,null,null,null,null,null,null,null,null,null,null,null,null,null,null,null,null,null,null,null,null,null,null,null,null,null,null,null,null,null,null,null,null,null,null,null,null,null,null,null,null,null,null,null,null,null,null,null,null,null,null,null,null,null,null,null,null,null,null,null,null,null,null,null,null,null,null,null,null,null,null,null,null,null,null,null,null,null,null,null,null,null,null,null,null,null,null,null,null,null,null,null,null,null,null,null,null,null,null,null,863,280]
[null,null,null,null,null,null,null,null,null,null,null,null,null,null,null,null,null,null,null,null,null,null,null,null,null,null,null,null,null,null,null,null,null,null,null,null,null,null,null,null,null,null,null,null,null,null,null,null,null,null,null,null,null,null,null,null,null,null,null,null,null,null,null,null,null,null,null,null,null,null,null,null,null,null,null,null,null,null,null,null,null,null,null,null,null,null,null,null,null,null,null,null,null,null,null,null,null,null,null,null,864,280]
[null,null,null,null,null,null,null,null,null,null,null,null,null,null,null,null,null,null,null,null,null,null,null,null,null,null,null,null,null,null,null,null,null,null,null,null,null,null,null,null,null,null,null,null,null,null,null,null,null,null,null,null,null,null,null,null,null,null,null,null,null,null,null,null,null,null,null,null,null,null,null,null,null,null,null,null,null,null,null,null,null,null,null,null,null,null,null,null,null,null,null,null,null,null,null,null,null,null,null,null,865,280]
[null,null,null,null,null,null,null,null,null,null,null,null,null,null,null,null,null,null,null,null,null,null,null,null,null,null,null,null,null,null,null,null,null,null,null,null,null,null,null,null,null,null,null,null,null,null,null,null,null,null,null,null,null,null,null,null,null,null,null,null,null,null,null,null,null,null,null,null,null,null,null,null,null,null,null,null,null,null,null,null,null,null,null,null,null,null,null,null,null,null,null,null,null,null,null,null,null,null,null,null,866,280]
[null,null,null,null,null,null,null,null,null,null,null,null,null,null,null,null,null,null,null,null,null,null,null,null,null,null,null,null,null,null,null,null,null,null,null,null,null,null,null,null,null,null,null,null,null,null,null,null,null,null,null,null,null,null,null,null,null,null,null,null,null,null,null,null,null,null,null,null,null,null,null,null,null,null,null,null,null,null,null,null,null,null,null,null,null,null,null,null,null,null,null,null,null,null,null,null,null,null,null,null,867,280]
[null,null,null,null,null,null,null,null,null,null,null,null,null,null,null,null,null,null,null,null,null,null,null,null,null,null,null,null,null,null,null,null,null,null,null,null,null,null,null,null,null,null,null,null,null,null,null,null,null,null,null,null,null,null,null,null,null,null,null,null,null,null,null,null,null,null,null,null,null,null,null,null,null,null,null,null,null,null,null,null,null,null,null,null,null,null,null,null,null,null,null,null,null,null,null,null,null,null,null,null,868,280]
[null,null,null,null,null,null,null,null,null,null,null,null,null,null,null,null,null,null,null,null,null,null,null,null,null,null,null,null,null,null,null,null,null,null,null,null,null,null,null,null,null,null,null,null,null,null,null,null,null,null,null,null,null,null,null,null,null,null,null,null,null,null,null,null,null,null,null,null,null,null,null,null,null,null,null,null,null,null,null,null,null,null,null,null,null,null,null,null,null,null,null,null,null,null,null,null,null,null,null,null,869,280]
[null,null,null,null,null,null,null,null,null,null,null,null,null,null,null,null,null,null,null,null,null,null,null,null,null,null,null,null,null,null,null,null,null,null,null,null,null,null,null,null,null,null,null,null,null,null,null,null,null,null,null,null,null,null,null,null,null,null,null,null,null,null,null,null,null,null,null,null,null,null,null,null,null,null,null,null,null,null,null,null,null,null,null,null,null,null,null,null,null,null,null,null,null,null,null,null,null,null,null,null,870,280]
[null,null,null,null,null,null,null,null,null,null,null,null,null,null,null,null,null,null,null,null,null,null,null,null,null,null,null,null,null,null,null,null,null,null,null,null,null,null,null,null,null,null,null,null,null,null,null,null,null,null,null,null,null,null,null,null,null,null,null,null,null,null,null,null,null,null,null,null,null,null,null,null,null,null,null,null,null,null,null,null,null,null,null,null,null,null,null,null,null,null,null,null,null,null,null,null,null,null,null,null,871,280]
[null,null,null,null,null,null,null,null,null,null,null,null,null,null,null,null,null,null,null,null,null,null,null,null,null,null,null,null,null,null,null,null,null,null,null,null,null,null,null,null,null,null,null,null,null,null,null,null,null,null,null,null,null,null,null,null,null,null,null,null,null,null,null,null,null,null,null,null,null,null,null,null,null,null,null,null,null,null,null,null,null,null,null,null,null,null,null,null,null,null,null,null,null,null,null,null,null,null,null,null,872,280]
[null,null,null,null,null,null,null,null,null,null,null,null,null,null,null,null,null,null,null,null,null,null,null,null,null,null,null,null,null,null,null,null,null,null,null,null,null,null,null,null,null,null,null,null,null,null,null,null,null,null,null,null,null,null,null,null,null,null,null,null,null,null,null,null,null,null,null,null,null,null,null,null,null,null,null,null,null,null,null,null,null,null,null,null,null,null,null,null,null,null,null,null,null,null,null,null,null,null,null,null,873,280]
[null,null,null,null,null,null,null,null,null,null,null,null,null,null,null,null,null,null,null,null,null,null,null,null,null,null,null,null,null,null,null,null,null,null,null,null,null,null,null,null,null,null,null,null,null,null,null,null,null,null,null,null,null,null,null,null,null,null,null,null,null,null,null,null,null,null,null,null,null,null,null,null,null,null,null,null,null,null,null,null,null,null,null,null,null,null,null,null,null,null,null,null,null,null,null,null,null,null,null,null,874,280]
[null,null,null,null,null,null,null,null,null,null,null,null,null,null,null,null,null,null,null,null,null,null,null,null,null,null,null,null,null,null,null,null,null,null,null,null,null,null,null,null,null,null,null,null,null,null,null,null,null,null,null,null,null,null,null,null,null,null,null,null,null,null,null,null,null,null,null,null,null,null,null,null,null,null,null,null,null,null,null,null,null,null,null,null,null,null,null,null,null,null,null,null,null,null,null,null,null,null,null,null,875,280]
[null,null,null,null,null,null,null,null,null,null,null,null,null,null,null,null,null,null,null,null,null,null,null,null,null,null,null,null,null,null,null,null,null,null,null,null,null,null,null,null,null,null,null,null,null,null,null,null,null,null,null,null,null,null,null,null,null,null,null,null,null,null,null,null,null,null,null,null,null,null,null,null,null,null,null,null,null,null,null,null,null,null,null,null,null,null,null,null,null,null,null,null,null,null,null,null,null,null,null,null,876,280]
[null,null,null,null,null,null,null,null,null,null,null,null,null,null,null,null,null,null,null,null,null,null,null,null,null,null,null,null,null,null,null,null,null,null,null,null,null,null,null,null,null,null,null,null,null,null,null,null,null,null,null,null,null,null,null,null,null,null,null,null,null,null,null,null,null,null,null,null,null,null,null,null,null,null,null,null,null,null,null,null,null,null,null,null,null,null,null,null,null,null,null,null,null,null,null,null,null,null,null,null,877,280]
[null,null,null,null,null,null,null,null,null,null,null,null,null,null,null,null,null,null,null,null,null,null,null,null,null,null,null,null,null,null,null,null,null,null,null,null,null,null,null,null,null,null,null,null,null,null,null,null,null,null,null,null,null,null,null,null,null,null,null,null,null,null,null,null,null,null,null,null,null,null,null,null,null,null,null,null,null,null,null,null,null,null,null,null,null,null,null,null,null,null,null,null,null,null,null,null,null,null,null,null,878,280]
[null,null,null,null,null,null,null,null,null,null,null,null,null,null,null,null,null,null,null,null,null,null,null,null,null,null,null,null,null,null,null,null,null,null,null,null,null,null,null,null,null,null,null,null,null,null,null,null,null,null,null,null,null,null,null,null,null,null,null,null,null,null,null,null,null,null,null,null,null,null,null,null,null,null,null,null,null,null,null,null,null,null,null,null,null,null,null,null,null,null,null,null,null,null,null,null,null,null,null,null,879,280]
[null,null,null,null,null,null,null,null,null,null,null,null,null,null,null,null,null,null,null,null,null,null,null,null,null,null,null,null,null,null,null,null,null,null,null,null,null,null,null,null,null,null,null,null,null,null,null,null,null,null,null,null,null,null,null,null,null,null,null,null,null,null,null,null,null,null,null,null,null,null,null,null,null,null,null,null,null,null,null,null,null,null,null,null,null,null,null,null,null,null,null,null,null,null,null,null,null,null,null,null,880,280]
[null,null,null,null,null,null,null,null,null,null,null,null,null,null,null,null,null,null,null,null,null,null,null,null,null,null,null,null,null,null,null,null,null,null,null,null,null,null,null,null,null,null,null,null,null,null,null,null,null,null,null,null,null,null,null,null,null,null,null,null,null,null,null,null,null,null,null,null,null,null,null,null,null,null,null,null,null,null,null,null,null,null,null,null,null,null,null,null,null,null,null,null,null,null,null,null,null,null,null,null,881,280]
[null,null,null,null,null,null,null,null,null,null,null,null,null,null,null,null,null,null,null,null,null,null,null,null,null,null,null,null,null,null,null,null,null,null,null,null,null,null,null,null,null,null,null,null,null,null,null,null,null,null,null,null,null,null,null,null,null,null,null,null,null,null,null,null,null,null,null,null,null,null,null,null,null,null,null,null,null,null,null,null,null,null,null,null,null,null,null,null,null,null,null,null,null,null,null,null,null,null,null,null,882,280]
[null,null,null,null,null,null,null,null,null,null,null,null,null,null,null,null,null,null,null,null,null,null,null,null,null,null,null,null,null,null,null,null,null,null,null,null,null,null,null,null,null,null,null,null,null,null,null,null,null,null,null,null,null,null,null,null,null,null,null,null,null,null,null,null,null,null,null,null,null,null,null,null,null,null,null,null,null,null,null,null,null,null,null,null,null,null,null,null,null,null,null,null,null,null,null,null,null,null,null,null,883,280]
[null,null,null,null,null,null,null,null,null,null,null,null,null,null,null,null,null,null,null,null,null,null,null,null,null,null,null,null,null,null,null,null,null,null,null,null,null,null,null,null,null,null,null,null,null,null,null,null,null,null,null,null,null,null,null,null,null,null,null,null,null,null,null,null,null,null,null,null,null,null,null,null,null,null,null,null,null,null,null,null,null,null,null,null,null,null,null,null,null,null,null,null,null,null,null,null,null,null,null,null,884,280]
[null,null,null,null,null,null,null,null,null,null,null,null,null,null,null,null,null,null,null,null,null,null,null,null,null,null,null,null,null,null,null,null,null,null,null,null,null,null,null,null,null,null,null,null,null,null,null,null,null,null,null,null,null,null,null,null,null,null,null,null,null,null,null,null,null,null,null,null,null,null,null,null,null,null,null,null,null,null,null,null,null,null,null,null,null,null,null,null,null,null,null,null,null,null,null,null,null,null,null,null,885,280]
[null,null,null,null,null,null,null,null,null,null,null,null,null,null,null,null,null,null,null,null,null,null,null,null,null,null,null,null,null,null,null,null,null,null,null,null,null,null,null,null,null,null,null,null,null,null,null,null,null,null,null,null,null,null,null,null,null,null,null,null,null,null,null,null,null,null,null,null,null,null,null,null,null,null,null,null,null,null,null,null,null,null,null,null,null,null,null,null,null,null,null,null,null,null,null,null,null,null,null,null,886,280]
[null,null,null,null,null,null,null,null,null,null,null,null,null,null,null,null,null,null,null,null,null,null,null,null,null,null,null,null,null,null,null,null,null,null,null,null,null,null,null,null,null,null,null,null,null,null,null,null,null,null,null,null,null,null,null,null,null,null,null,null,null,null,null,null,null,null,null,null,null,null,null,null,null,null,null,null,null,null,null,null,null,null,null,null,null,null,null,null,null,null,null,null,null,null,null,null,null,null,null,null,887,280]
[null,null,null,null,null,null,null,null,null,null,null,null,null,null,null,null,null,null,null,null,null,null,null,null,null,null,null,null,null,null,null,null,null,null,null,null,null,null,null,null,null,null,null,null,null,null,null,null,null,null,null,null,null,null,null,null,null,null,null,null,null,null,null,null,null,null,null,null,null,null,null,null,null,null,null,null,null,null,null,null,null,null,null,null,null,null,null,null,null,null,null,null,null,null,null,null,null,null,null,null,888,280]
[null,null,null,null,null,null,null,null,null,null,null,null,null,null,null,null,null,null,null,null,null,null,null,null,null,null,null,null,null,null,null,null,null,null,null,null,null,null,null,null,null,null,null,null,null,null,null,null,null,null,null,null,null,null,null,null,null,null,null,null,null,null,null,null,null,null,null,null,null,null,null,null,null,null,null,null,null,null,null,null,null,null,null,null,null,null,null,null,null,null,null,null,null,null,null,null,null,null,null,null,889,240]
[null,null,null,null,null,null,null,null,null,null,null,null,null,null,null,null,null,null,null,null,null,null,null,null,null,null,null,null,null,null,null,null,null,null,null,null,null,null,null,null,null,null,null,null,null,null,null,null,null,null,null,null,null,null,null,null,null,null,null,null,null,null,null,null,null,null,null,null,null,null,null,null,null,null,null,null,null,null,null,null,null,null,null,null,null,null,null,null,null,null,null,null,null,null,null,null,null,null,null,null,890,280]
[null,null,null,null,null,null,null,null,null,null,null,null,null,null,null,null,null,null,null,null,null,null,null,null,null,null,null,null,null,null,null,null,null,null,null,null,null,null,null,null,null,null,null,null,null,null,null,null,null,null,null,null,null,null,null,null,null,null,null,null,null,null,null,null,null,null,null,null,null,null,null,null,null,null,null,null,null,null,null,null,null,null,null,null,null,null,null,null,null,null,null,null,null,null,null,null,null,null,null,null,891,280]
[null,null,null,null,null,null,null,null,null,null,null,null,null,null,null,null,null,null,null,null,null,null,null,null,null,null,null,null,null,null,null,null,null,null,null,null,null,null,null,null,null,null,null,null,null,null,null,null,null,null,null,null,null,null,null,null,null,null,null,null,null,null,null,null,null,null,null,null,null,null,null,null,null,null,null,null,null,null,null,null,null,null,null,null,null,null,null,null,null,null,null,null,null,null,null,null,null,null,null,null,892,280]
[null,null,null,null,null,null,null,null,null,null,null,null,null,null,null,null,null,null,null,null,null,null,null,null,null,null,null,null,null,null,null,null,null,null,null,null,null,null,null,null,null,null,null,null,null,null,null,null,null,null,null,null,null,null,null,null,null,null,null,null,null,null,null,null,null,null,null,null,null,null,null,null,null,null,null,null,null,null,null,null,null,null,null,null,null,null,null,null,null,null,null,null,null,null,null,null,null,null,null,null,950,280]
[null,null,null,null,null,null,null,null,null,null,null,null,null,null,null,null,null,null,null,null,null,null,null,null,null,null,null,null,null,null,null,null,null,null,null,null,null,null,null,null,null,null,null,null,null,null,null,null,null,null,null,null,null,null,null,null,null,null,null,null,null,null,null,null,null,null,null,null,null,null,null,null,null,null,null,null,null,null,null,null,null,null,null,null,null,null,null,null,null,null,null,null,null,null,null,null,null,null,null,null,951,280]
[null,null,null,null,null,null,null,null,null,null,null,null,null,null,null,null,null,null,null,null,null,null,null,null,null,null,null,null,null,null,null,null,null,null,null,null,null,null,null,null,null,null,null,null,null,null,null,null,null,null,null,null,null,null,null,null,null,null,null,null,null,null,null,null,null,null,null,null,null,null,null,null,null,null,null,null,null,null,null,null,null,null,null,null,null,null,null,null,null,null,null,null,null,null,null,null,null,null,null,null,952,280]
[null,null,null,null,null,null,null,null,null,null,null,null,null,null,null,null,null,null,null,null,null,null,null,null,null,null,null,null,null,null,null,null,null,null,null,null,null,null,null,null,null,null,null,null,null,null,null,null,null,null,null,null,null,null,null,null,null,null,null,null,null,null,null,null,null,null,null,null,null,null,null,null,null,null,null,null,null,null,null,null,null,null,null,null,null,null,null,null,null,null,null,null,null,null,null,null,null,null,null,null,953,280]
[null,null,null,null,null,null,null,null,null,null,null,null,null,null,null,null,null,null,null,null,null,null,null,null,null,null,null,null,null,null,null,null,null,null,null,null,null,null,null,null,null,null,null,null,null,null,null,null,null,null,null,null,null,null,null,null,null,null,null,null,null,null,null,null,null,null,null,null,null,null,null,null,null,null,null,null,null,null,null,null,null,null,null,null,null,null,null,null,null,null,null,null,null,null,null,null,null,null,null,null,954,280]
[null,null,null,null,null,null,null,null,null,null,null,null,null,null,null,null,null,null,null,null,null,null,null,null,null,null,null,null,null,null,null,null,null,null,null,null,null,null,null,null,null,null,null,null,null,null,null,null,null,null,null,null,null,null,null,null,null,null,null,null,null,null,null,null,null,null,null,null,null,null,null,null,null,null,null,null,null,null,null,null,null,null,null,null,null,null,null,null,null,null,null,null,null,null,null,null,null,null,null,null,955,280]
[null,null,null,null,null,null,null,null,null,null,null,null,null,null,null,null,null,null,null,null,null,null,null,null,null,null,null,null,null,null,null,null,null,null,null,null,null,null,null,null,null,null,null,null,null,null,null,null,null,null,null,null,null,null,null,null,null,null,null,null,null,null,null,null,null,null,null,null,null,null,null,null,null,null,null,null,null,null,null,null,null,null,null,null,null,null,null,null,null,null,null,null,null,null,null,null,null,null,null,null,956,280]
[null,null,null,null,null,null,null,null,null,null,null,null,null,null,null,null,null,null,null,null,null,null,null,null,null,null,null,null,null,null,null,null,null,null,null,null,null,null,null,null,null,null,null,null,null,null,null,null,null,null,null,null,null,null,null,null,null,null,null,null,null,null,null,null,null,null,null,null,null,null,null,null,null,null,null,null,null,null,null,null,null,null,null,null,null,null,null,null,null,null,null,null,null,null,null,null,null,null,null,null,957,280]
[null,null,null,null,null,null,null,null,null,null,null,null,null,null,null,null,null,null,null,null,null,null,null,null,null,null,null,null,null,null,null,null,null,null,null,null,null,null,null,null,null,null,null,null,null,null,null,null,null,null,null,null,null,null,null,null,null,null,null,null,null,null,null,null,null,null,null,null,null,null,null,null,null,null,null,null,null,null,null,null,null,null,null,null,null,null,null,null,null,null,null,null,null,null,null,null,null,null,null,null,960,280]
[null,null,null,null,null,null,null,null,null,null,null,null,null,null,null,null,null,null,null,null,null,null,null,null,null,null,null,null,null,null,null,null,null,null,null,null,null,null,null,null,null,null,null,null,null,null,null,null,null,null,null,null,null,null,null,null,null,null,null,null,null,null,null,null,null,null,null,null,null,null,null,null,null,null,null,null,null,null,null,null,null,null,null,null,null,null,null,null,null,null,null,null,null,null,null,null,null,null,null,null,961,280]
[null,null,null,null,null,null,null,null,null,null,null,null,null,null,null,null,null,null,null,null,null,null,null,null,null,null,null,null,null,null,null,null,null,null,null,null,null,null,null,null,null,null,null,null,null,null,null,null,null,null,null,null,null,null,null,null,null,null,null,null,null,null,null,null,null,null,null,null,null,null,null,null,null,null,null,null,null,null,null,null,null,null,null,null,null,null,null,null,null,null,null,null,null,null,null,null,null,null,null,null,962,280]
[null,null,null,null,null,null,null,null,null,null,null,null,null,null,null,null,null,null,null,null,null,null,null,null,null,null,null,null,null,null,null,null,null,null,null,null,null,null,null,null,null,null,null,null,null,null,null,null,null,null,null,null,null,null,null,null,null,null,null,null,null,null,null,null,null,null,null,null,null,null,null,null,null,null,null,null,null,null,null,null,null,null,null,null,null,null,null,null,null,null,null,null,null,null,null,null,null,null,null,null,963,280]
[null,null,null,null,null,null,null,null,null,null,null,null,null,null,null,null,null,null,null,null,null,null,null,null,null,null,null,null,null,null,null,null,null,null,null,null,null,null,null,null,null,null,null,null,null,null,null,null,null,null,null,null,null,null,null,null,null,null,null,null,null,null,null,null,null,null,null,null,null,null,null,null,null,null,null,null,null,null,null,null,null,null,null,null,null,null,null,null,null,null,null,null,null,null,null,null,null,null,null,null,964,280]
[null,null,null,null,null,null,null,null,null,null,null,null,null,null,null,null,null,null,null,null,null,null,null,null,null,null,null,null,null,null,null,null,null,null,null,null,null,null,null,null,null,null,null,null,null,null,null,null,null,null,null,null,null,null,null,null,null,null,null,null,null,null,null,null,null,null,null,null,null,null,null,null,null,null,null,null,null,null,null,null,null,null,null,null,null,null,null,null,null,null,null,null,null,null,null,null,null,null,null,null,965,280]
[null,null,null,null,null,null,null,null,null,null,null,null,null,null,null,null,null,null,null,null,null,null,null,null,null,null,null,null,null,null,null,null,null,null,null,null,null,null,null,null,null,null,null,null,null,null,null,null,null,null,null,null,null,null,null,null,null,null,null,null,null,null,null,null,null,null,null,null,null,null,null,null,null,null,null,null,null,null,null,null,null,null,null,null,null,null,null,null,null,null,null,null,null,null,null,null,null,null,null,null,966,280]
[null,null,null,null,null,null,null,null,null,null,null,null,null,null,null,null,null,null,null,null,null,null,null,null,null,null,null,null,null,null,null,null,null,null,null,null,null,null,null,null,null,null,null,null,null,null,null,null,null,null,null,null,null,null,null,null,null,null,null,null,null,null,null,null,null,null,null,null,null,null,null,null,null,null,null,null,null,null,null,null,null,null,null,null,null,null,null,null,null,null,null,null,null,null,null,null,null,null,null,null,967,280]
[null,null,null,null,null,null,null,null,null,null,null,null,null,null,null,null,null,null,null,null,null,null,null,null,null,null,null,null,null,null,null,null,null,null,null,null,null,null,null,null,null,null,null,null,null,null,null,null,null,null,null,null,null,null,null,null,null,null,null,null,null,null,null,null,null,null,null,null,null,null,null,null,null,null,null,null,null,null,null,null,null,null,null,null,null,null,null,null,null,null,null,null,null,null,null,null,null,null,null,null,970,280]
[null,null,null,null,null,null,null,null,null,null,null,null,null,null,null,null,null,null,null,null,null,null,null,null,null,null,null,null,null,null,null,null,null,null,null,null,null,null,null,null,null,null,null,null,null,null,null,null,null,null,null,null,null,null,null,null,null,null,null,null,null,null,null,null,null,null,null,null,null,null,null,null,null,null,null,null,null,null,null,null,null,null,null,null,null,null,null,null,null,null,null,null,null,null,null,null,null,null,null,null,980,280]
[null,null,null,null,null,null,null,null,null,null,null,null,null,null,null,null,null,null,null,null,null,null,null,null,null,null,null,null,null,null,null,null,null,null,null,null,null,null,null,null,null,null,null,null,null,null,null,null,null,null,null,null,null,null,null,null,null,null,null,null,null,null,null,null,null,null,null,null,null,null,null,null,null,null,null,null,null,null,null,null,null,null,null,null,null,null,null,null,null,null,null,null,null,null,null,null,null,null,null,null,981,280]
[null,null,null,null,null,null,null,null,null,null,null,null,null,null,null,null,null,null,null,null,null,null,null,null,null,null,null,null,null,null,null,null,null,null,null,null,null,null,null,null,null,null,null,null,null,null,null,null,null,null,null,null,null,null,null,null,null,null,null,null,null,null,null,null,null,null,null,null,null,null,null,null,null,null,null,null,null,null,null,null,null,null,null,null,null,null,null,null,null,null,null,null,null,null,null,null,null,null,null,null,982,280]
[null,null,null,null,null,null,null,null,null,null,null,null,null,null,null,null,null,null,null,null,null,null,null,null,null,null,null,null,null,null,null,null,null,null,null,null,null,null,null,null,null,null,null,null,null,null,null,null,null,null,null,null,null,null,null,null,null,null,null,null,null,null,null,null,null,null,null,null,null,null,null,null,null,null,null,null,null,null,null,null,null,null,null,null,null,null,null,null,null,null,null,null,null,null,null,null,null,null,null,null,983,280]
[null,null,null,null,null,null,null,null,null,null,null,null,null,null,null,null,null,null,null,null,null,null,null,null,null,null,null,null,null,null,null,null,null,null,null,null,null,null,null,null,null,null,null,null,null,null,null,null,null,null,null,null,null,null,null,null,null,null,null,null,null,null,null,null,null,null,null,null,null,null,null,null,null,null,null,null,null,null,null,null,null,null,null,null,null,null,null,null,null,null,null,null,null,null,null,null,null,null,null,null,984,280]
[null,null,null,null,null,null,null,null,null,null,null,null,null,null,null,null,null,null,null,null,null,null,null,null,null,null,null,null,null,null,null,null,null,null,null,null,null,null,null,null,null,null,null,null,null,null,null,null,null,null,null,null,null,null,null,null,null,null,null,null,null,null,null,null,null,null,null,null,null,null,null,null,null,null,null,null,null,null,null,null,null,null,null,null,null,null,null,null,null,null,null,null,null,null,null,null,null,null,null,null,985,280]
[null,null,null,null,null,null,null,null,null,null,null,null,null,null,null,null,null,null,null,null,null,null,null,null,null,null,null,null,null,null,null,null,null,null,null,null,null,null,null,null,null,null,null,null,null,null,null,null,null,null,null,null,null,null,null,null,null,null,null,null,null,null,null,null,null,null,null,null,null,null,null,null,null,null,null,null,null,null,null,null,null,null,null,null,null,null,null,null,null,null,null,null,null,null,null,null,null,null,null,null,986,280]
[null,null,null,null,null,null,null,null,null,null,null,null,null,null,null,null,null,null,null,null,null,null,null,null,null,null,null,null,null,null,null,null,null,null,null,null,null,null,null,null,null,null,null,null,null,null,null,null,null,null,null,null,null,null,null,null,null,null,null,null,null,null,null,null,null,null,null,null,null,null,null,null,null,null,null,null,null,null,null,null,null,null,null,null,null,null,null,null,null,null,null,null,null,null,null,null,null,null,null,null,987,280]
[null,null,null,null,null,null,null,null,null,null,null,null,null,null,null,null,null,null,null,null,null,null,null,null,null,null,null,null,null,null,null,null,null,null,null,null,null,null,null,null,null,null,null,null,null,null,null,null,null,null,null,null,null,null,null,null,null,null,null,null,null,null,null,null,null,null,null,null,null,null,null,null,null,null,null,null,null,null,null,null,null,null,null,null,null,null,null,null,null,null,null,null,null,null,null,null,null,null,null,null,990,280]
[null,null,null,null,null,null,null,null,null,null,null,null,null,null,null,null,null,null,null,null,null,null,null,null,null,null,null,null,null,null,null,null,null,null,null,null,null,null,null,null,null,null,null,null,null,null,null,null,null,null,null,null,null,null,null,null,null,null,null,null,null,null,null,null,null,null,null,null,null,null,null,null,null,null,null,null,null,null,null,null,null,null,null,null,null,null,null,null,null,null,null,null,null,null,null,null,null,null,null,null,995,0]

{"sheet":"Martelage","index":2,"n_rows":96,"n_cols":7,"rows_kept":96,"cut":false,"hidden":false,"merged":[[73,0,73,5],[76,0,76,4],[78,2,79,4],[66,0,66,6],[67,0,69,5],[67,6,69,6],[70,0,70,5],[71,0,72,5],[71,6,72,6],[65,0,65,6],[54,0,54,5],[55,0,55,5],[56,0,56,5],[57,0,57,5],[58,0,58,5],[59,0,59,5],[60,0,60,5],[61,0,61,5],[62,0,62,5],[63,0,63,6],[64,0,64,6],[53,0,53,5],[42,0,42,5],[43,0,43,5],[44,0,44,5],[45,0,45,5],[46,0,46,5],[47,0,47,5],[48,0,48,5],[49,0,49,5],[50,0,50,5],[51,0,51,6],[52,0,52,5],[41,0,41,5],[30,0,30,6],[31,0,31,5],[32,0,32,5],[33,0,33,5],[34,0,34,5],[35,0,35,6],[36,0,36,4],[37,0,37,4],[38,0,38,6],[39,0,39,6],[40,0,40,5],[14,0,14,6],[15,0,15,6],[16,0,16,6],[29,0,29,6],[18,0,18,6],[19,0,19,6],[20,1,20,5],[21,1,21,5],[22,1,22,3],[23,0,23,5],[24,0,24,6],[25,0,25,6],[26,0,26,6],[27,0,27,4],[28,0,28,4],[87,3,87,4],[5,0,5,5],[0,0,0,6],[1,0,1,5],[3,0,3,6],[4,0,4,5],[2,0,2,5],[17,0,17,5],[6,0,6,5],[7,0,7,5],[8,0,8,5],[9,0,9,5],[10,0,10,6],[11,0,11,5],[12,0,12,5],[13,0,13,5]]}
[]
["Annexe au calcul des activités liées au martelage\n   2018-2019                        \nForêt publique"]
[" *** Veuillez saisir les informations dans les cellules blanches seulement ***",null,null,null,null,null,"Version 2 : 2018-05-15"]
["Identification"]
["UA"]
["Secteur d'intervention"]
["Unité de compilation"]
["Numéro de la prescription"]
["Traitement (code DICA)"]
["Traitement (code RATF)"]
["Traitement d'éducation de peuplement à taux fixe ou variable"]
["Traitement",null,null,null,null,null,"Inscrire une valeur"]
["Taux de base",null,null,null,null,null,{"$f":"IFERROR((VLOOKUP($G$12,Menus!$A$689:$C$693,2,FALSE)),0)","v":0}]
["Unité de mesure",null,null,null,null,null,{"$f":"IFERROR((VLOOKUP($G$12,Menus!$A$689:$C$693,3,FALSE)),0)","v":"-"}]
["Taux d'exécution à déterminer selon la formule suivante"]
[{"$f":"IFERROR((VLOOKUP($G$12,'Majorations applicables'!$A$43:$B$44,2,FALSE)),\"\")","v":""}]
["Superficie"]
["Superficie du traitement (hectares)"]
[{"$f":"\"Valeurs spécifiques à remplir selon le traitement - \"&G12","v":"Valeurs spécifiques à remplir selon le traitement - Inscrire une valeur"}]
["Valeurs spécifiques à remplir selon le traitement - Martelage"]
["PF","Proportion de feuillus (Surface terrière des feuillus commerciaux par rapport à la surface terrière totale du peuplement)"]
["NbMSCROP","Nombre de priorité de récolte combinant MSCR et OP                                                       Valeur de 0 à 8 : MO-MP-SO-SP-CO-CP-RO-RP"]
["TC","Type de coupe",null,null,"Valeur",{"$f":"IFERROR((VLOOKUP($G$23,Menus!$A$695:$B$700,2,FALSE)),\"\")","v":""}]
["Taux par hectare calculé à partir de l'équation et des variables reliées à l'activité",null,null,null,null,null,{"$f":"IFERROR((('Calculs grille'!$I$5-('Calculs grille'!$I$6)*SUM($G$21)+('Calculs grille'!$I$7*SUM($G$22)))*SUM($F$23)),0)","v":0}]
[{"$f":"\"Majorations applicables à l'exécution - \"&$G$12","v":"Majorations applicables à l'exécution - Inscrire une valeur"}]
["H3 - D200"]
["Majoration pour l'hébergement et la distance du secteur d'intervention (H3 et D200)"]
["Hébergement (H3)",null,null,null,null,{"$f":"IF($G$28=\"\",\"\",IF($G$28=Menus!$A$703,Menus!$B$703,IF($G$28=Menus!$A$704,Menus!$B$704,IF($G$28=Menus!$A$705,Menus!$B$705,IF($G$28<=Menus!$B$704,$G$28,\"Max \"&TEXT(Menus!$B$704,\"0,0%\"))))))","v":""}]
["Distance du secteur d'intervention (D200)",null,null,null,null,{"$f":"IF($G$29=Menus!$A$708,Menus!$B$708,IF($G$29=Menus!$A$709,Menus!$B$709,\"\"))","v":""}]
["Vérification"]
["Vérification - Tous"]
["Délimitation des secteurs (taux par kilomètre délimité)"]
["Nombre de kilomètres délimités"]
["Inventaire après traitement (taux par hectare martelé)"]
["Nombre de placettes inventoriées"]
["Vérification - Majoration pour l'hébergement et la distance du secteur d'intervention (H3 et D200)"]
["Hébergement (H3)",null,null,null,null,{"$f":"IF(G37=\"\",\"\",IF(G37=Menus!A703,Menus!B703,IF(G37=Menus!A704,Menus!B704,IF(G37=Menus!A705,Menus!B705,IF(G37<=0.091,G37,\"Max 9,1%\")))))","v":""}]
["Distance du secteur d'intervention (D200)",null,null,null,null,{"$f":"IF(G38=Menus!A708,Menus!B708,IF(G38=Menus!A709,Menus!B709,\"\"))","v":""}]
["Total"]
["Calculs -  Martelage"]
["Taux d'exécution de base",null,null,null,null,null,{"$f":"IFERROR($G$24,0)","v":0}]
["Taux H3",null,null,null,null,null,{"$f":"IFERROR(($G$41*$F$28),0)","v":0}]
["Taux D200",null,null,null,null,null,{"$f":"IFERROR(($G$41*$F$29),0)","v":0}]
["Taux exécution total et majoration(s) admissible(s)",null,null,null,null,null,{"$f":"IFERROR((ROUND(SUM($G$41:$G$43),2)),0)","v":0}]
["Taux vérification",null,null,null,null,null,{"$f":"IFERROR(((($G$32*$G$33)+($G$34*$G$35))/$G$18),0)","v":0}]
["Taux H3 et/ou D200",null,null,null,null,null,{"$f":"IFERROR(($G$45*SUM($F$37:$F$38)),0)","v":0}]
["Taux exécution et vérification total",null,null,null,null,null,{"$f":"IFERROR((ROUND(SUM($G$44:$G$46),2)),0)","v":0}]
["Superficie (hectares)",null,null,null,null,null,{"$f":"IFERROR($G$18,0)","v":0}]
["Total exécution",null,null,null,null,null,{"$f":"IFERROR(($G$44*$G$48),0)","v":0}]
["Total vérification",null,null,null,null,null,{"$f":"IFERROR((ROUND(SUM($G$45:$G$46),2)*$G$48),0)","v":0}]
["Grand total admissible",null,null,null,null,null,{"$f":"IFERROR(SUM($G$49:$G$50),0)","v":0}]
["Calculs - Martelage positif et négatif  - EC (résineux ou mixte résineux)"]
["Taux d'exécution de base",null,null,null,null,null,{"$f":"IFERROR($G$13,0)","v":0}]
["Taux H3",null,null,null,null,null,{"$f":"IFERROR(($G$53*$F$28),0)","v":0}]
["Taux D200",null,null,null,null,null,{"$f":"IFERROR(($G$53*$F$29),0)","v":0}]
["Taux exécution total et majoration(s) admissible(s)",null,null,null,null,null,{"$f":"IFERROR((ROUND(SUM($G$53:$G$55),2)),0)","v":0}]
["Taux vérification",null,null,null,null,null,{"$f":"IFERROR(((($G$32*$G$33)+($G$34*$G$35))/$G$18),0)","v":0}]
["Taux H3 et/ou D200",null,null,null,null,null,{"$f":"IFERROR(($G$57*SUM($F$37:$F$38)),0)","v":0}]
["Taux exécution et vérification total",null,null,null,null,null,{"$f":"IFERROR((ROUND(SUM($G$56:$G$58),2)),0)","v":0}]
["Superficie",null,null,null,null,null,{"$f":"IFERROR($G$18,0)","v":0}]
["Total exécution",null,null,null,null,null,{"$f":"IFERROR(($G$56*$G$60),0)","v":0}]
["Total vérification",null,null,null,null,null,{"$f":"IFERROR((ROUND(SUM($G$57:$G$58),2)*$G$60),0)","v":0}]
["Grand total admissible",null,null,null,null,null,{"$f":"IFERROR(SUM($G$61:$G$62),0)","v":0}]
[]
["Remarques"]
[]
["J'atteste que les renseignements fournis dans ce document afin de calculer le taux du traitement sont complets et conformes à la vérité, au meilleur de mes connaissances."]
[]
[]
[]
["Nom et prénom de l'ingénieur forestier",null,null,null,null,null,"No de permis"]
[null,null,null,null,null,null,{"$f":"TODAY()","v":"2018-05-15"}]
[]
["Signature de l'ingénieur forestier",null,null,null,null,null,"Date (AAAA-MM-JJ)"]
[]
[]
["Section réservée au suivi du contrat"]
[]
[null,"Numéro de la prescription :",{"$f":"IF($G$8<>\"\",$G$8,\"\")","v":""}]
[]
[null,"Numéro du contrat :"]
[null,"Numéro du projet :"]
[null,"U.G. :"]
[null,"MRC :"]
[null,"Code de traitement DICA :",{"$f":"IF($G$9<>\"\",$G$9,\"\")","v":""}]
[null,"Code de traitement RATF :",{"$f":"IF($G$10<>\"\",$G$10,\"\")","v":""}]
[null,"Type d'attribution : "]
[null,{"$f":"IFERROR(IF($D$88=Menus!$A$730,\"Taux AOP (avec vérif.) :\",IF($D$88=Menus!$A$731,\"Taux AOP (sans vérif.) :\",\"Taux AOP :\")),\"Taux AOP :\")","v":"Taux AOP :"},null,"Inscrire une valeur"]
[null,{"$f":"IFERROR(IF($D$88=Menus!$A$731,\"Taux Grille (sans vérif.) :\",\"Taux Grille (avec vérif.) :\"),\"Taux Grille (avec vérif.) :\")","v":"Taux Grille (avec vérif.) :"},{"$f":"IFERROR(IF(OR($D$88=\"\",$D$88=Menus!$A$732),VLOOKUP($G$12,RXF!$A$1:$G$33,3,FALSE),IF($D$88=Menus!$A$730,VLOOKUP($G$12,RXF!$A$1:$G$4,3,FALSE),IF($D$88=Menus!$A$731,VLOOKUP($G$12,RXF!$A$1:$G$4,4,FALSE)))),0)","v":0}]
[null,"Ratio AOP/Grille :",{"$f":"IF(AND($C$88<>\"\",$C$89>0),ROUND($C$88/$C$89,4),\"S/O\")","v":"S/O"}]
[null,"Grand total AOP :",{"$f":"IF(OR($C$88=\"\",$C$89=0),\"S/O\",IF(AND($C$88>0,OR($D$88=Menus!$A$730,$D$88=Menus!$A$732)),ROUND(VLOOKUP($G$12,RXF!$A$1:$G$4,5,FALSE)*$C$90,2),IF(AND($C$88>0,$D$88=Menus!$A$731),ROUND(VLOOKUP($G$12,RXF!$A$1:$G$4,7,FALSE)*$C$90,2))))","v":"S/O"}]
[null,"Nom de l'entrepreneur : "]
[null,"Numéro de fournisseur : "]
[null,"Date de début :"]
[null,"Date de fin :"]
[null,"Commentaires :"]

{"sheet":"Traitements admissibles","index":3,"n_rows":106,"n_cols":7,"rows_kept":106,"cut":false,"hidden":false,"merged":[[80,1,105,1],[80,0,105,0],[67,3,79,3],[65,2,79,2],[54,1,79,1],[54,0,79,0],[54,2,64,2],[54,3,56,3],[65,3,66,3],[9,2,14,2],[9,3,14,3],[9,4,14,4],[0,0,0,6],[1,0,2,0],[1,1,2,1],[1,2,2,2],[1,3,2,3],[1,4,2,4],[1,5,2,5],[1,6,2,6],[18,2,43,2],[3,0,8,0],[3,1,8,1],[3,2,8,2],[3,3,8,3],[15,0,15,6],[16,0,17,0],[16,1,17,1],[16,2,17,2],[16,3,17,3],[16,4,17,4],[16,5,17,5],[16,6,17,6],[3,4,8,4],[9,0,14,0],[9,1,14,1],[18,0,53,0],[18,1,53,1],[18,3,27,3],[18,4,23,4],[24,4,27,4],[28,3,30,3],[28,4,30,4],[31,4,32,4],[33,4,38,4],[44,2,53,2],[44,3,45,3],[46,3,47,3],[46,4,47,4],[48,3,53,3],[48,4,53,4],[31,3,43,3],[67,4,68,4],[69,4,74,4],[54,4,56,4],[57,3,64,3],[57,4,58,4],[59,4,64,4],[65,4,66,4],[91,4,92,4],[93,4,94,4],[95,4,100,4],[80,2,90,2],[80,3,82,3],[80,4,82,4],[83,3,90,3],[83,4,84,4],[85,4,90,4],[91,3,92,3],[93,3,105,3],[91,2,105,2]]}
["Éclaircies commerciales : traitements admissibles 2018-2019"]
["Compositions","Sélections des tiges à récolter","Patrons d'intervention","Structures cibles","Traitements","Codes DICA","Formules à utiliser"]
[]
["SEPM, mixtes à dominance résineuse et feuillus intolérants","--","Uniforme","Régulière","Éclaircie commerciale","EC_SEL-BAS",1]
[null,null,null,null,null,"EC_SEL-HAUT",1]
[null,null,null,null,null,"EC_SEL-NEUTRE",1]
[null,null,null,null,null,"EC_MIXTE-BAS",1]
[null,null,null,null,null,"EC_MIXTE-HAUT",1]
[null,null,null,null,null,"EC_MIXTE-NEUTRE",1]
["Feuillus tolérants, autres résineux et mixtes à dominance feuillue","--","Uniforme","Régulière","Éclaircie commerciale","EC_SEL-BAS",2]
[null,null,null,null,null,"EC_SEL-HAUT",2]
[null,null,null,null,null,"EC_SEL-NEUTRE",2]
[null,null,null,null,null,"EC_MIXTE-BAS",2]
[null,null,null,null,null,"EC_MIXTE-HAUT",2]
[null,null,null,null,null,"EC_MIXTE-NEUTRE",2]
["Autres coupes partielles : traitements admissibles 2018-2019"]
["Compositions","Sélections des tiges à récolter","Patrons d'intervention","Structures cibles","Traitements","Codes DICA","Formules à utiliser"]
[]
["Feuillus tolérants, mixte à dominance de feuillus tolérants, autres résineux et mixtes autres résineux","Martelage ou opérateur","Uniforme","Jardinée / gestion par arbres","Coupe de jardinage par pieds d'arbres ou pieds d'arbres et groupes d'arbres","CJP-AM",4]
[null,null,null,null,null,"CJP-HQ",4]
[null,null,null,null,null,"CJP-QM",4]
[null,null,null,null,null,"CJPG-AM",4]
[null,null,null,null,null,"CJPG-HQ",4]
[null,null,null,null,null,"CJPG-QM",4]
[null,null,null,null,"Éclaircie jardinatoire par pieds d'arbres ou pieds d'arbres et groupes d'arbres","EJ_P-CLAS",4]
[null,null,null,null,null,"EJ_P-INI",4]
[null,null,null,null,null,"EJ_PG-CLAS",4]
[null,null,null,null,null,"EJ_PG-INI",4]
[null,null,null,"Régulière","Coupe progressive régulière","CPR_U-PR",4]
[null,null,null,null,null,"CPR_U-ENS",4]
[null,null,null,null,null,"CPR_U-SEC",4]
[null,null,null,"Irrégulière","Coupe progressive irrégulière à couvert permanent","CPI_CP-ENS_U",4]
[null,null,null,null,null,"CPI_CP-SEC_U",4]
[null,null,null,null,"Coupe progressive irrégulière à régénération lente","CPI_RL-2I_ENS",4]
[null,null,null,null,null,"CPI_RL-2I_SEC",4]
[null,null,null,null,null,"CPI_RL-3I_ENS",4]
[null,null,null,null,null,"CPI_RL-3I_SEC",4]
[null,null,null,null,null,"CPI_RL-MUL",4]
[null,null,null,null,null,"CPI_RL-PR",4]
[null,null,null,null,"Coupe progressive irrégulière à régénération lente en 1 intervention et abandon du volume résiduel phase d'ensemencement","CPI_RL-1INR_ENS",4]
[null,null,null,null,"Coupe progressive irrégulière à régénération lente en 1 intervention et abandon du volume résiduel phase secondaire ou d'abri","CPI_RL-1INR_SEC",4]
[null,null,null,null,"Coupe progressive irrégulière à régénération lente en 1 intervention et abandon du volume résiduel multiples phases","CPI_RL-1INR_MUL",4]
[null,null,null,null,"Coupe progressive irrégulière à régénération lente en 2 interventions multiples phases","CPI_RL-2I_MUL",4]
[null,null,null,null,"Coupe progressive irrégulière à régénération lente en 3 interventions multiples phases","CPI_RL-3I_MUL",4]
[null,null,"Par bandes ou par trouées","Jardinée / gestion avec cohortes juxtaposées","Coupe de jardinage par bande avec éclaircie dans la matrice résiduelle","CJB-EMR",4]
[null,null,null,null,"Coupe de jardinage par troués avec éclaircie dans la matrice résiduelle","CJT-EMR",4]
[null,null,null,"Régulière","Coupe progressive régulière par bandes ou trouées","CPR_BA",4]
[null,null,null,null,null,"CPR_T",4]
[null,null,null,"Irrégulière","Coupe progressive irrégulière à régénération lente","CPI_RL-2I_ENS",4]
[null,null,null,null,null,"CPI_RL-2I_SEC",4]
[null,null,null,null,null,"CPI_RL-3I_ENS",4]
[null,null,null,null,null,"CPI_RL-3I_SEC",4]
[null,null,null,null,null,"CPI_RL-MUL",4]
[null,null,null,null,null,"CPI_RL-PR",4]
["SEPM, mixtes à dominance résineuse  et feuillus intolérants","Opérateur","Uniforme","Régulière","Coupe progressive régulière","CPR_U-PR",6]
[null,null,null,null,null,"CPR_U-ENS",6]
[null,null,null,null,null,"CPR_U-SEC",6]
[null,null,null,"Irrégulière","Coupe progressive irrégulière à couvert permanent","CPI_CP-ENS_U",6]
[null,null,null,null,null,"CPI_CP-SEC_U",6]
[null,null,null,null,"Coupe progressive irrégulière à régénération lente","CPI_RL-2I_ENS",6]
[null,null,null,null,null,"CPI_RL-2I_SEC",6]
[null,null,null,null,null,"CPI_RL-3I_ENS",6]
[null,null,null,null,null,"CPI_RL-3I_SEC",6]
[null,null,null,null,null,"CPI_RL-MUL",6]
[null,null,null,null,null,"CPI_RL-PR",6]
[null,null,"Par bandes ou par trouées","Régulière","Coupe progressive régulière par bandes ou trouées","CPR_BA",6]
[null,null,null,null,null,"CPR_T",6]
[null,null,null,"Irrégulière","Coupe progressive irrégulière à couvert permanent par bandes","CPI_CP-ENS_B",6]
[null,null,null,null,null,"CPI_CP-SEC_B",6]
[null,null,null,null,"Coupe progressive irrégulière à régénération lente","CPI_RL-2I_ENS",6]
[null,null,null,null,null,"CPI_RL-2I_SEC",6]
[null,null,null,null,null,"CPI_RL-3I_ENS",6]
[null,null,null,null,null,"CPI_RL-3I_SEC",6]
[null,null,null,null,null,"CPI_RL-MUL",6]
[null,null,null,null,null,"CPI_RL-PR",6]
[null,null,null,null,"Coupe progressive irrégulière à régénération lente en 1 intervention et abandon du volume résiduel phase d'ensemencement","CPI_RL-1INR_ENS",6]
[null,null,null,null,"Coupe progressive irrégulière à régénération lente en 1 intervention et abandon du volume résiduel phase secondaire ou d'abri","CPI_RL-1INR_SEC",6]
[null,null,null,null,"Coupe progressive irrégulière à régénération lente en 1 intervention et abandon du volume résiduel multiples phases","CPI_RL-1INR_MUL",6]
[null,null,null,null,"Coupe progressive irrégulière à régénération lente en 2 interventions multiples phases","CPI_RL-2I_MUL",6]
[null,null,null,null,"Coupe progressive irrégulière à régénération lente en 3 interventions multiples phases","CPI_RL-3I_MUL",6]
["SEPM, mixtes à dominance résineuse  et feuillus intolérants","Martelage","Uniforme","Régulière","Coupe progressive régulière","CPR_U-PR",7]
[null,null,null,null,null,"CPR_U-ENS",7]
[null,null,null,null,null,"CPR_U-SEC",7]
[null,null,null,"Irrégulière","Coupe progressive irrégulière à couvert permanent","CPI_CP-ENS_U",7]
[null,null,null,null,null,"CPI_CP-SEC_U",7]
[null,null,null,null,"Coupe progressive irrégulière à régénération lente","CPI_RL-2I_ENS",7]
[null,null,null,null,null,"CPI_RL-2I_SEC",7]
[null,null,null,null,null,"CPI_RL-3I_ENS",7]
[null,null,null,null,null,"CPI_RL-3I_SEC",7]
[null,null,null,null,null,"CPI_RL-MUL",7]
[null,null,null,null,null,"CPI_RL-PR",7]
[null,null,"Par bandes ou par trouées","Régulière","Coupe progressive régulière par bandes ou trouées","CPR_BA",7]
[null,null,null,null,null,"CPR_T",7]
[null,null,null,"Irrégulière","Coupe progressive irrégulière à couvert permanent par bandes","CPI_CP-ENS_B",7]
[null,null,null,null,null,"CPI_CP-SEC_B",7]
[null,null,null,null,"Coupe progressive irrégulière à régénération lente","CPI_RL-2I_ENS",7]
[null,null,null,null,null,"CPI_RL-2I_SEC",7]
[null,null,null,null,null,"CPI_RL-3I_ENS",7]
[null,null,null,null,null,"CPI_RL-3I_SEC",7]
[null,null,null,null,null,"CPI_RL-MUL",7]
[null,null,null,null,null,"CPI_RL-PR",7]
[null,null,null,null,"Coupe progressive irrégulière à régénération lente en 1 intervention et abandon du volume résiduel phase d'ensemencement","CPI_RL-1INR_ENS",7]
[null,null,null,null,"Coupe progressive irrégulière à régénération lente en 1 intervention et abandon du volume résiduel phase secondaire ou d'abri","CPI_RL-1INR_SEC",7]
[null,null,null,null,"Coupe progressive irrégulière à régénération lente en 1 intervention et abandon du volume résiduel multiples phases","CPI_RL-1INR_MUL",7]
[null,null,null,null,"Coupe progressive irrégulière à régénération lente en 2 interventions multiples phases","CPI_RL-2I_MUL",7]
[null,null,null,null,"Coupe progressive irrégulière à régénération lente en 3 interventions multiples phases","CPI_RL-3I_MUL",7]

{"sheet":"Réductions zones-bandes","index":4,"n_rows":58,"n_cols":40,"rows_kept":58,"cut":false,"hidden":false,"merged":[[62,30,62,33],[57,23,57,24],[57,25,57,26],[57,27,57,28],[57,29,57,32],[57,33,57,35],[59,21,59,27],[40,44,41,48],[42,39,42,42],[43,4,46,16],[46,31,46,32],[48,31,48,32],[50,2,50,3],[50,4,50,5],[50,6,50,7],[50,8,50,11],[50,12,50,14],[39,10,39,11],[39,22,39,36],[18,31,18,32],[29,23,29,24],[29,25,29,26],[29,27,29,28],[29,29,29,32],[29,33,29,35],[33,1,33,15],[33,26,33,30],[34,26,35,30],[36,18,36,20],[18,11,18,12],[12,44,13,48],[14,13,14,16],[14,39,14,42],[15,11,15,12],[16,11,16,12],[17,11,17,12],[0,0,0,26],[3,0,3,1],[4,0,5,1],[7,0,7,1],[11,1,11,9],[11,22,11,36]]}
["Coupes partielles : exemples de calculs de réductions pour bandes ou zones non traitées"]
[]
["Définition des termes utilisés dans la feuille de calcul :"]
["Bandes* :",null,"Forme étroite et allongée donnée par une coupe qui traverse toute la largeur ou la longueur d'un peuplement ou d'un secteur d'intervention"]
[null,null,"Note 1 : Une bande peut être coupée totalement, coupée partiellement ou résiduelle (non coupée)"]
[null,null,"Note 2 : La largeur d'une bande équivaut minimalement à la demi-hauteur d'un arbre mature (généralement, 10 mètres et plus)"]
[null,null,"*Inspiré du glossaire du Guide sylvicole du Québec"]
["Zones :",null,"Même définition que le terme bande à l'exception du non-respect de la largeur minimale (moins de 10 mètres)"]
[]
["1er cas : Coupe progressive uniforme (avec zones non traitées de moins de 10 mètres de largeur)",null,null,null,null,null,null,null,null,null,null,null,null,null,null,null,null,null,null,null,null,"2e cas : Coupe progressive par bandes (plus de 10 mètres de largeur)"]
[]
[]
[]
[]
[]
[null,null,null,null,null,null,null,null,null,null,null,null,null,"Bande partiellement récoltée (15 m)",null,null,null,null,null,null,null,null,null,null,null,null,null,null,null,null,null,null,null,null,null,null,null,null,null,"Bande partiellement récoltée (15m)"]
[null,null,null,null,null,null,null,null,null,null,null,null,null,"Bande entièrement récoltée (0 m)",null,null,null,null,null,null,null,null,null,null,null,null,null,null,null,null,null,null,null,null,null,null,null,null,null,"Bande entièrement récoltée (0 m)"]
[null,null,null,null,null,null,null,null,null,null,null,null,null,"Zone non traitée (5 m)",null,null,null,null,null,null,null,null,null,null,null,null,null,null,null,null,null,null,null,null,null,null,null,null,null,"Bande non traitée (15m)"]
[null,null,null,"5m         5m",null,"5m         5m",null,"5m         5m",null,null,null,null,null,"Sentier de débardage (maintenant inclus dans la largeur de la bande)",null,null,null,null,null,null,null,null,null,null,null,"5m","5m",null,null,"5m",null,"5m",null,null,null,null,null,null,null,"Sentier de débardage (maintenant inclus dans la largeur de la bande)"]
[]
[]
[null,null,null,null,null,null,null,null,null,null,null,"BP : Largeur de la zone ou bande partiellement récoltée (m) : 15 m",null,null,null,null,null,null,null,null,null,null,null,null,null,null,null,null,null,null,null,null,null,null,null,null,null,null,"BP : Largeur de la zone ou bande partiellement récoltée (m) : 15 m"]
[null,null,null,null,null,null,null,null,null,null,null,"BE : Largeur de la zone ou bande entièrement récoltée (m) : 0 m",null,null,null,null,null,null,null,null,null,null,null,null,null,null,null,null,null,null,null,null,null,null,null,null,null,null,"BE : Largeur de la zone ou bande entièrement récoltée (m) : 0 m"]
[null,null,null,null,null,null,null,null,null,null,null,"ZNT : Largeur de la zone ou bande non traitée (m) : 5 m",null,null,null,null,null,null,null,null,null,null,null,null,null,null,null,null,null,null,null,null,null,null,null,null,null,null,"ZNT : Largeur de la zone ou bande non traitée (m) : 15 m"]
[null,null,null,null,null,null,null,null,null,null,null,"Résultat : réduction du taux de 10%",null,null,null,null,null,null,null,null,null,null,null,null,null,null,null,null,null,null,null,null,null,null,null,null,null,null,"Résultat : réduction du taux de 30%"]
[]
[]
[]
[]
[null,null,"5m","I--15 m--I","5m","I--15 m--I","5m","I--15 m--I","5m",null,null,null,null,null,null,null,null,null,null,null,null,null,null,"15 m",null,"I-----15 m-----I",null,"15 m",null,"I-----15 m-----I",null,null,null,"15 m"]
[]
[]
[]
[null,null,null,null,null,null,null,null,null,null,null,null,null,null,null,null,null,null,null,null,null,null,null,null,null,null,"Calcul de la réduction"]
[null,null,null,null,null,null,null,null,null,null,null,null,null,null,null,null,null,null,null,null,null,null,null,null,null,null,"À inscrire dans la feuille de calcul : cellules G48, G49 et G50"]
[]
[]
[]
[null,null,null,null,null,null,null,null,null,null,null,null,null,null,null,null,null,null,null,null,null,"3e cas : Coupe totale par bandes alternes (plus de 10 mètres de largeur)"]
[]
[]
[]
[]
[null,null,null,null,"Non financé, aucune coupe partielle",null,null,null,null,null,null,null,null,null,null,null,null,null,null,null,null,null,null,null,null,null,null,null,null,null,null,null,null,null,null,null,null,null,null,"Bande entièrement récoltée (15m)"]
[null,null,null,null,null,null,null,null,null,null,null,null,null,null,null,null,null,null,null,null,null,null,null,null,null,null,null,null,null,null,null,null,null,null,null,null,null,null,null,"Bande non traitée (15m)"]
[null,null,null,null,null,null,null,null,null,null,null,null,null,null,null,null,null,null,null,null,null,null,null,null,null,null,null,null,null,null,null,null,null,null,null,null,null,null,null,"Sentier de débardage (maintenant inclus dans la largeur de la bande)"]
[]
[]
[null,null,null,null,null,null,null,null,null,null,null,null,null,null,null,null,null,null,null,null,null,null,null,null,null,"5m","5m",null,null,"5m",null,"5m",null,null,null,null,null,null,"BP : Largeur de la zone ou bande partiellement récoltée (m) : 0 m"]
[null,null,null,null,null,null,null,null,null,null,null,null,null,null,null,null,null,null,null,null,null,null,null,null,null,null,null,null,null,null,null,null,null,null,null,null,null,null,"BE : Largeur de la zone ou bande entièrement récoltée (m) : 15 m"]
[null,null,null,null,null,null,null,null,null,null,null,null,null,null,null,null,null,null,null,null,null,null,null,null,null,null,null,null,null,null,null,null,null,null,null,null,null,null,"ZNT : Largeur de la zone ou bande non traitée (m) : 15 m"]
[null,null,null,null,null,null,null,null,null,null,null,null,null,null,null,null,null,null,null,null,null,null,null,null,null,null,null,null,null,null,null,null,null,null,null,null,null,null,"Résultat : non financé"]
[]
[]
[]
[]
[]
[null,null,null,null,null,null,null,null,null,null,null,null,null,null,null,null,null,null,null,null,null,null,null,"15 m",null,"I-----15 m-----I",null,"15 m",null,"I-----15 m-----I",null,null,null,"15 m"]

{"sheet":"Étapes calcul majorations","index":5,"n_rows":9,"n_cols":3,"rows_kept":9,"cut":false,"hidden":false,"merged":[]}
["Formule ou activité","Étapes pour appliquer les majorations/réductions à l'exécution","Étapes pour appliquer les majorations à la vérification"]
["Formule 1","Taux = (EXE * (1 + PE2) * (1 + MAN) + RUB1 * (1 + PE2)) * (1 + H1)","N/A"]
["Formule 2","Taux = (EXE + RUB1) * (1 + PE2)  * (1 + H1)","N/A"]
["Formule 4","Taux = ((EXE + RUB1) * (1 + PE2) - EMR1 - BNT1) * (1 + H1)","N/A"]
["Formule 6","Taux = (EXE * (1 + PE2) - EMR1 - BNT1) * (1 + H1)","N/A"]
["Formule 7","Taux = ((EXE + RUB1) * (1 + PE2) - EMR1 - BNT1) * (1 + H1)","N/A"]
["Martelage","Taux = EXE * (1 + H3 + D200)","Taux = VERIF * (1 + H3 + D200)"]
["Martelage négatif - EC (résineux ou mixte résineux)","Taux = EXE * (1 + H3 + D200)","Taux = VERIF * (1 + H3 + D200)"]
["Martelage positif - EC (résineux ou mixte résineux)","Taux = EXE * (1 + H3 + D200)","Taux = VERIF * (1 + H3 + D200)"]

{"sheet":"Versions du fichier","index":6,"n_rows":12,"n_cols":20,"rows_kept":12,"cut":false,"hidden":false,"merged":[[0,0,0,16],[0,19,0,24]]}
["Suivi des versions du fichier de l’annexe au rapport et au calcul des taux d'investissement pour les coupes partielles et de l'aide supplémentaire                                                                                                                                                                                                                à l'aménagement des forêts feuillues et mixtes 2018-2019                                                                                                                                                                                                                                                                                                                       Forêt publique",null,null,null,null,null,null,null,null,null,null,null,null,null,null,null,null,null,null,"Version 2 : 2018-05-15"]
[96]
["Version 1","Nom du fichier :","Calcul_de_l_aide_financiere_2018-2019_2018-03-28.xlsm"]
[{"$f":"A3","v":"Version 1"},"Date de mise en ligne :","2018-03-28"]
[{"$f":"A4","v":"Version 1"},"Remarques :","• Version initiale proposée pour la période de consultation"]
[{"$f":"A5","v":"Version 1"},null,"• Intégration de l'onglet «Martelage» auparavant présenté dans l'annexe au calcul des taux des traitements non commerciaux"]
[{"$f":"A6","v":"Version 1"}]
["Version 2","Nom du fichier :","Calcul_de_l_aide_financiere_2018-2019_2018-05-15.xlsm"]
[{"$f":"A8","v":"Version 2"},"Date de mise en ligne :","2018-05-15"]
[{"$f":"A9","v":"Version 2"},"Remarques :","• Version officielle"]
[{"$f":"A10","v":"Version 2"},null,"• Onglet «Calcul des taux (formules)» et majoration pour la pente (PE2) : Modification du libellé à A59 pour les pentes E afin d'y inclure également les pentes plus accentuées"]
[{"$f":"A11","v":"Version 2"}]

{"sheet":"Menus","index":7,"n_rows":732,"n_cols":6,"rows_kept":732,"cut":false,"hidden":true,"merged":[[686,0,686,2]]}
["Question"]
["Oui"]
["Non"]
[]
["UA"]
["01171"]
["01272"]
["02371"]
["02471"]
["02571"]
["02651"]
["02661"]
["02662"]
["02663"]
["02664"]
["02665"]
["02666"]
["02751"]
["03153"]
["03171"]
["03351"]
["03451"]
["03571"]
["04151"]
["04251"]
["04351"]
["04352"]
["05151"]
["06151"]
["06271"]
["06452"]
["06471"]
["07151"]
["07152"]
["07251"]
["07351"]
["07352"]
["07451"]
["08151"]
["08152"]
["08251"]
["08351"]
["08451"]
["08462"]
["08551"]
["08562"]
["08651"]
["08652"]
["08663"]
["08664"]
["08665"]
["08666"]
["08751"]
["08762"]
["08763"]
["08764"]
["09351"]
["09352"]
["09471"]
["09551"]
["09751"]
["11161"]
["11262"]
["11263"]
[]
["Codes_Dica"]
["CJB-EMR"]
["CJP-AM"]
["CJPG-AM"]
["CJPG-HQ"]
["CJPG-QM"]
["CJP-HQ"]
["CJP-QM"]
["CJT-EMR"]
["CPI_CP-ENS_B"]
["CPI_CP-ENS_U"]
["CPI_CP-SEC_B"]
["CPI_CP-SEC_U"]
["CPI_RL-1INR_ENS"]
["CPI_RL-1INR_MUL"]
["CPI_RL-1INR_SEC"]
["CPI_RL-2I_ENS"]
["CPI_RL-2I_MUL"]
["CPI_RL-2I_SEC"]
["CPI_RL-3I_ENS"]
["CPI_RL-3I_MUL"]
["CPI_RL-3I_SEC"]
["CPI_RL-MUL"]
["CPI_RL-PR"]
["CPR_BA"]
["CPR_T"]
["CPR_U-ENS"]
["CPR_U-PR"]
["CPR_U-SEC"]
["EC_MIXTE-BAS"]
["EC_MIXTE-HAUT"]
["EC_MIXTE-NEUTRE"]
["EC_SEL-BAS"]
["EC_SEL-HAUT"]
["EC_SEL-NEUTRE"]
["EJ_P-CLAS"]
["EJ_PG-CLAS"]
["EJ_PG-INI"]
["EJ_P-INI"]
["Inscrire une valeur"]
[]
["Codes_RATF"]
["CJBM"]
["CJBMO"]
["CJPAM"]
["CJPGAM"]
["CJPGHQ"]
["CJPGQM"]
["CJPHQ"]
["CJPQM"]
["CJTM"]
["CJTMO"]
["CPIENSBMSF"]
["CPIENSBOSF"]
["CPIUENSFM"]
["CPIUENSOFM"]
["CPIUENSOSF"]
["CPIUENSSF"]
["CPISECBMSF"]
["CPISECBOSF"]
["CPIUSECFM"]
["CPIUSECOFM"]
["CPIUSECOSF"]
["CPIUSECSF"]
["1INRENSMFM"]
["1INRENSMSF"]
["1INRENSOFM"]
["1INRENSOSF"]
["1INRMULMFM"]
["1INRMULMSF"]
["1INRMULOFM"]
["1INRMULOSF"]
["1INRSECMFM"]
["1INRSECMSF"]
["1INRSECOFM"]
["1INRSECOSF"]
["CPIL2ENOFM"]
["CPIL2ENOSF"]
["CPIRL2ENFM"]
["CPIRL2ENSF"]
["2IMULMFM"]
["2IMULMSF"]
["2IMULOFM"]
["2IMULOSF"]
["CPIL2SEOFM"]
["CPIL2SEOSF"]
["CPIRL2SEFM"]
["CPIRL2SESF"]
["CPIL3ENOFM"]
["CPIL3ENOSF"]
["CPIRL3ENFM"]
["CPIRL3ENSF"]
["3IMULMFM"]
["3IMULMSF"]
["3IMULOFM"]
["3IMULOSF"]
["CPIL3SEOFM"]
["CPIL3SEOSF"]
["CPIRL3SEFM"]
["CPIRL3SESF"]
["CPILMULOFM"]
["CPILMULOSF"]
["CPIRLMULFM"]
["CPIRLMULSF"]
["CPIRLPRFM"]
["CPIRLPROFM"]
["CPIRLPROSF"]
["CPIRLPRSF"]
["CPRBAMFM"]
["CPRBAMSF"]
["CPRBAOFM"]
["CPRBAOSF"]
["CPRTMFM"]
["CPRTMSF"]
["CPRTOFM"]
["CPRTOSF"]
["CPRUENSFM"]
["CPRUENSOFM"]
["CPRUENSOSF"]
["CPRUENSSF"]
["CPRUPRFM"]
["CPRUPROFM"]
["CPRUPROSF"]
["CPRUPRSF"]
["CPRUSECFM"]
["CPRUSECOFM"]
["CPRUSECOSF"]
["CPRUSECSF"]
["ECMIXBASFM"]
["ECMIXBASPR"]
["ECMIXBASSF"]
["ECMIXHAUFM"]
["ECMIXHAUPR"]
["ECMIXHAUSF"]
["ECMIXNEUFM"]
["ECMIXNEUPR"]
["ECMIXNEUSF"]
["ECSELBASFM"]
["ECSELBASPR"]
["ECSELBASSF"]
["ECSELHAUFM"]
["ECSELHAUPR"]
["ECSELHAUSF"]
["ECSELNEUFM"]
["ECSELNEUPR"]
["ECSELNEUSF"]
["EJPCLAS"]
["EJPGCLAS"]
["EJPGINI"]
["EJPINI"]
["Inscrire une valeur"]
[]
["Codes_DICA vs Codes_RATF","Codes_RATF","Indirect","Description"]
["CJB-EMR","CJBM","RATF_CJB_EMR","Coupe de jardinage par bandes avec éclaircie dans la matrice résiduelle, Martelage"]
["CJB-EMR","CJBMO","RATF_CJB_EMR","Coupe de jardinage par bandes avec éclaircie dans la matrice résiduelle, Opérateur"]
["CJP-AM","CJPAM","RATF_CJP_AM","Coupe de jardinage par pieds d'arbre, amélioraton de la qualité, Martelage"]
["CJPG-AM","CJPGAM","RATF_CJPG_AM","Coupe de jardinage par pieds d'arbre et groupes d'arbres, amélioration de la qualité, Martelage"]
["CJPG-HQ","CJPGHQ","RATF_CJPG_HQ","Coupe de jardinage par pieds d'arbre et groupes d'arbres, maintien d'une haute qualité, Martelage"]
["CJPG-QM","CJPGQM","RATF_CJPG_QM","Coupe de jardinage par pieds d'arbre et groupes d'arbres, maintien d'une qualité modérée, Martelage"]
["CJP-HQ","CJPHQ","RATF_CJP_HQ","Coupe de jardinage par pieds d'arbre, maintien d'une haute qualité, Martelage"]
["CJP-QM","CJPQM","RATF_CJP_QM","Coupe de jardinage par pieds d'arbre, maintien d'une qualité modérée, Martelage"]
["CJT-EMR","CJTM","RATF_CJT_EMR","Coupe de jardinage par trouées avec éclaircie dans la matrice résiduelle, Martelage"]
["CJT-EMR","CJTMO","RATF_CJT_EMR","Coupe de jardinage par trouées avec éclaircie dans la matrice résiduelle, Opérateur"]
["CPI_CP-ENS_B","CPIENSBMSF","RATF_CPI_CP_ENS_B","Coupe progressive irrégulière à couvert permanent par bandes, coupe d'ensemencement, Martelage, type de peuplement SEPM, feuillus intolérants et mixte résineux"]
["CPI_CP-ENS_B","CPIENSBOSF","RATF_CPI_CP_ENS_B","Coupe progressive irrégulière à couvert permanent par bandes, coupe d'ensemencement, Opérateur, type de peuplement SEPM, feuillus intolérants et mixte résineux"]
["CPI_CP-ENS_U","CPIUENSFM","RATF_CPI_CP_ENS_U","Coupe progressive irrégulière à couvert permanent, coupe d'ensemencement, patron d'intervention uniforme, Martelage,  type de peuplement feuillus tolérants, autres résineux et mixte feuillus"]
["CPI_CP-ENS_U","CPIUENSOFM","RATF_CPI_CP_ENS_U","Coupe progressive irrégulière à couvert permanent, coupe d'ensemencement, patron d'intervention uniforme, Opérateur,  type de peuplement feuillus tolérants, autres résineux et mixte feuillus"]
["CPI_CP-ENS_U","CPIUENSOSF","RATF_CPI_CP_ENS_U","Coupe progressive irrégulière à couvert permanent, coupe d'ensemencement, patron d'intervention uniforme, Opérateur,  type de peuplement SEPM, feuillus intolérants et mixte résineux"]
["CPI_CP-ENS_U","CPIUENSSF","RATF_CPI_CP_ENS_U","Coupe progressive irrégulière à couvert permanent, coupe d'ensemencement, patron d'intervention uniforme, Martelage,  type de peuplement SEPM, feuillus intolérants et mixte résineux"]
["CPI_CP-SEC_B","CPISECBMSF","RATF_CPI_CP_SEC_B","Coupe progressive irrégulière à couvert permanent par bandes, coupe secondaire, Martelage, type de peuplement SEPM, feuillus intolérants et mixte résineux"]
["CPI_CP-SEC_B","CPISECBOSF","RATF_CPI_CP_SEC_B","Coupe progressive irrégulière à couvert permanent par bandes, coupe secondaire, Opérateur, type de peuplement SEPM, feuillus intolérants et mixte résineux"]
["CPI_CP-SEC_U","CPIUSECFM","RATF_CPI_CP_SEC_U","Coupe progressive irrégulière à couvert permanent, coupe secondaire, patron d'intervention uniforme, Martelage,  type de peuplement feuillus tolérants, autres résineux et mixte feuillus"]
["CPI_CP-SEC_U","CPIUSECOFM","RATF_CPI_CP_SEC_U","Coupe progressive irrégulière à couvert permanent, coupe secondaire, patron d'intervention uniforme, Opérateur,  type de peuplement feuillus tolérants, autres résineux et mixte feuillus"]
["CPI_CP-SEC_U","CPIUSECOSF","RATF_CPI_CP_SEC_U","Coupe progressive irrégulière à couvert permanent, coupe secondaire, patron d'intervention uniforme, Opérateur,  type de peuplement SEPM, feuillus intolérants et mixte résineux"]
["CPI_CP-SEC_U","CPIUSECSF","RATF_CPI_CP_SEC_U","Coupe progressive irrégulière à couvert permanent, coupe secondaire, patron d'intervention uniforme, Martelage,  type de peuplement SEPM, feuillus intolérants et mixte résineux"]
["CPI_RL-1INR_ENS","1INRENSMFM","RATF_CPI_RL_1INR_ENS","Coupe progressive irrégulière à régénération lente en 1 intervention et abandon du volume résiduel, phase d'ensemencement, Martelage, type de peuplement feuillus tolérants, autres résineux et mixte feuillus"]
["CPI_RL-1INR_ENS","1INRENSMSF","RATF_CPI_RL_1INR_ENS","Coupe progressive irrégulière à régénération lente en 1 intervention et abandon du volume résiduel, phase d'ensemencement, Martelage, type de peuplement SEPM, feuillus intolérants et mixte résineux"]
["CPI_RL-1INR_ENS","1INRENSOFM","RATF_CPI_RL_1INR_ENS","Coupe progressive irrégulière à régénération lente en 1 intervention et abandon du volume résiduel, phase d'ensemencement, Opérateur, type de peuplement feuillus tolérants, autres résineux et mixte feuillus"]
["CPI_RL-1INR_ENS","1INRENSOSF","RATF_CPI_RL_1INR_ENS","Coupe progressive irrégulière à régénération lente en 1 intervention et abandon du volume résiduel, phase d'ensemencement, Opérateur, type de peuplement SEPM, feuillus intolérants et mixte résineux"]
["CPI_RL-1INR_MUL","1INRMULMFM","RATF_CPI_RL_1INR_MUL","Coupe progressive irrégulière à régénération lente en 1 intervention et abandon du volume résiduel, Multiples phases, Martelage, type de peuplement feuillus tolérants, autres résineux et mixte feuillus"]
["CPI_RL-1INR_MUL","1INRMULMSF","RATF_CPI_RL_1INR_MUL","Coupe progressive irrégulière à régénération lente en 1 intervention et abandon du volume résiduel, Multiples phases, Martelage, type de peuplement SEPM, feuillus intolérants et mixte résineux"]
["CPI_RL-1INR_MUL","1INRMULOFM","RATF_CPI_RL_1INR_MUL","Coupe progressive irrégulière à régénération lente en 1 intervention et abandon du volume résiduel, Multiples phases, Opérateur, type de peuplement feuillus tolérants, autres résineux et mixte feuillus"]
["CPI_RL-1INR_MUL","1INRMULOSF","RATF_CPI_RL_1INR_MUL","Coupe progressive irrégulière à régénération lente en 1 intervention et abandon du volume résiduel, Multiples phases, Opérateur, type de peuplement SEPM, feuillus intolérants et mixte résineux"]
["CPI_RL-1INR_SEC","1INRSECMFM","RATF_CPI_RL_1INR_SEC","Coupe progressive irrégulière à régénération lente en 1 intervention et abandon du volume résiduel, phase secondaire, Martelage, type de peuplement feuillus tolérants, autres résineux et mixte feuillus"]
["CPI_RL-1INR_SEC","1INRSECMSF","RATF_CPI_RL_1INR_SEC","Coupe progressive irrégulière à régénération lente en 1 intervention et abandon du volume résiduel, phase secondaire, Martelage, type de peuplement SEPM, feuillus intolérants et mixte résineux"]
["CPI_RL-1INR_SEC","1INRSECOFM","RATF_CPI_RL_1INR_SEC","Coupe progressive irrégulière à régénération lente en 1 intervention et abandon du volume résiduel, phase secondaire, Opérateur, type de peuplement feuillus tolérants, autres résineux et mixte feuillus"]
["CPI_RL-1INR_SEC","1INRSECOSF","RATF_CPI_RL_1INR_SEC","Coupe progressive irrégulière à régénération lente en 1 intervention et abandon du volume résiduel, phase secondaire, Opérateur, type de peuplement SEPM, feuillus intolérants et mixte résineux"]
["CPI_RL-2I_ENS","CPIL2ENOFM","RATF_CPI_RL_2I_ENS","Coupe progressive irrégulière à régénération lente, 2 interventions, coupe d'ensemencement, Opérateur, type de peuplement feuillus tolérants, autres résineux et mixte feuillus"]
["CPI_RL-2I_ENS","CPIL2ENOSF","RATF_CPI_RL_2I_ENS","Coupe progressive irrégulière à régénération lente, 2 interventions, coupe d'ensemencement, Opérateur, type de peuplement SEPM, feuillus intolérants et mixte résineux"]
["CPI_RL-2I_ENS","CPIRL2ENFM","RATF_CPI_RL_2I_ENS","Coupe progressive irrégulière à régénération lente, 2 interventions, coupe d'ensemencement, Martelage, type de peuplement feuillus tolérants, autres résineux et mixte feuillus"]
["CPI_RL-2I_ENS","CPIRL2ENSF","RATF_CPI_RL_2I_ENS","Coupe progressive irrégulière à régénération lente, 2 interventions, coupe d'ensemencement, Martelage, type de peuplement SEPM, feuillus intolérants et mixte résineux"]
["CPI_RL-2I_MUL","2IMULMFM","RATF_CPI_RL_2I_MUL","Coupe progressive irrégulière à régénération lente en 2 interventions et abandon du volume résiduel, Multiples phases, Martelage, type de peuplement feuillus tolérants, autres résineux et mixte feuillus"]
["CPI_RL-2I_MUL","2IMULMSF","RATF_CPI_RL_2I_MUL","Coupe progressive irrégulière à régénération lente en 2 interventions et abandon du volume résiduel, Multiples phases, Martelage, type de peuplement SEPM, feuillus intolérants et mixte résineux"]
["CPI_RL-2I_MUL","2IMULOFM","RATF_CPI_RL_2I_MUL","Coupe progressive irrégulière à régénération lente en 2 interventions et abandon du volume résiduel, Multiples phases, Opérateur, type de peuplement feuillus tolérants, autres résineux et mixte feuillus"]
["CPI_RL-2I_MUL","2IMULOSF","RATF_CPI_RL_2I_MUL","Coupe progressive irrégulière à régénération lente en 2 interventions et abandon du volume résiduel, Multiples phases, Opérateur, type de peuplement SEPM, feuillus intolérants et mixte résineux"]
["CPI_RL-2I_SEC","CPIL2SEOFM","RATF_CPI_RL_2I_SEC","Coupe progressive irrégulière à régénération lente, 2 interventions, coupe secondaire, Opérateur, type de peuplement feuillus tolérants, autres résineux, mixte feuillus"]
["CPI_RL-2I_SEC","CPIL2SEOSF","RATF_CPI_RL_2I_SEC","Coupe progressive irrégulière à régénération lente, 2 interventions, coupe secondaire, Opérateur, type de peuplement SEPM, feuillus intolérants, mixte résineux"]
["CPI_RL-2I_SEC","CPIRL2SEFM","RATF_CPI_RL_2I_SEC","Coupe progressive irrégulière à régénération lente, 2 interventions, coupe secondaire, Martelage, type de peuplement feuillus tolérants, autres résineux, mixte feuillus"]
["CPI_RL-2I_SEC","CPIRL2SESF","RATF_CPI_RL_2I_SEC","Coupe progressive irrégulière à régénération lente, 2 interventions, coupe secondaire, Martelage, type de peuplement SEPM, feuillus intolérants, mixte résineux"]
["CPI_RL-3I_ENS","CPIL3ENOFM","RATF_CPI_RL_3I_ENS","Coupe progressive irrégulière à régénération lente, 3 interventions, coupe d'ensemencement, Opérateur, type de peuplement feuillus tolérants, autres résineux et mixte feuillus"]
["CPI_RL-3I_ENS","CPIL3ENOSF","RATF_CPI_RL_3I_ENS","Coupe progressive irrégulière à régénération lente, 3 interventions, coupe d'ensemencement, Opérateur, type de peuplement SEPM, feuillus intolérants et mixte résineux"]
["CPI_RL-3I_ENS","CPIRL3ENFM","RATF_CPI_RL_3I_ENS","Coupe progressive irrégulière à régénération lente, 3 interventions, coupe d'ensemencement, Martelage, type de peuplement feuillus tolérants, autres résineux et mixte feuillus"]
["CPI_RL-3I_ENS","CPIRL3ENSF","RATF_CPI_RL_3I_ENS","Coupe progressive irrégulière à régénération lente, 3 interventions, coupe d'ensemencement, Martelage, type de peuplement SEPM, feuillus intolérants et mixte résineux"]
["CPI_RL-3I_MUL","3IMULMFM","RATF_CPI_RL_3I_MUL","Coupe progressive irrégulière à régénération lente en 3 interventions et abandon du volume résiduel, Multiples phases, Martelage, type de peuplement feuillus tolérants, autres résineux et mixte feuillus"]
["CPI_RL-3I_MUL","3IMULMSF","RATF_CPI_RL_3I_MUL","Coupe progressive irrégulière à régénération lente en 3 interventions et abandon du volume résiduel, Multiples phases, Martelage, type de peuplement SEPM, feuillus intolérants et mixte résineux"]
["CPI_RL-3I_MUL","3IMULOFM","RATF_CPI_RL_3I_MUL","Coupe progressive irrégulière à régénération lente en 3 interventions et abandon du volume résiduel, Multiples phases, Opérateur, type de peuplement feuillus tolérants, autres résineux et mixte feuillus"]
["CPI_RL-3I_MUL","3IMULOSF","RATF_CPI_RL_3I_MUL","Coupe progressive irrégulière à régénération lente en 3 interventions et abandon du volume résiduel, Multiples phases, Opérateur, type de peuplement SEPM, feuillus intolérants et mixte résineux"]
["CPI_RL-3I_SEC","CPIL3SEOFM","RATF_CPI_RL_3I_SEC","Coupe progressive irrégulière à régénération lente, 3 interventions, coupe secondaire, Opérateur, type de peuplement feuillus tolérants, autres résineux, mixte feuillus"]
["CPI_RL-3I_SEC","CPIL3SEOSF","RATF_CPI_RL_3I_SEC","Coupe progressive irrégulière à régénération lente, 3 interventions, coupe secondaire, Opérateur, type de peuplement SEPM, feuillus intolérants, mixte résineux"]
["CPI_RL-3I_SEC","CPIRL3SEFM","RATF_CPI_RL_3I_SEC","Coupe progressive irrégulière à régénération lente, 3 interventions, coupe secondaire, Martelage, type de peuplement feuillus tolérants, autres résineux, mixte feuillus"]
["CPI_RL-3I_SEC","CPIRL3SESF","RATF_CPI_RL_3I_SEC","Coupe progressive irrégulière à régénération lente, 3 interventions, coupe secondaire, Martelage, type de peuplement SEPM, feuillus intolérants, mixte résineux"]
["CPI_RL-MUL","CPILMULOFM","RATF_CPI_RL_MUL","Coupe progressive irrégulière à régénération lente, coupe multiples phases, Opérateur, type de peuplement feuillus tolérants, autres résineux et mixte feuillus"]
["CPI_RL-MUL","CPILMULOSF","RATF_CPI_RL_MUL","Coupe progressive irrégulière à régénération lente, coupe multiples phases, Opérateur, type de peuplement SEPM, feuillus intolérants, mixte feuillus"]
["CPI_RL-MUL","CPIRLMULFM","RATF_CPI_RL_MUL","Coupe progressive irrégulière à régénération lente, coupe multiples phases, Martelage, type de peuplement feuillus tolérants, autres résineux et mixte feuillus"]
["CPI_RL-MUL","CPIRLMULSF","RATF_CPI_RL_MUL","Coupe progressive irrégulière à régénération lente, coupe multiples phases, Martelage, type de peuplement SEPM, feuillus intolérants, mixte feuillus"]
["CPI_RL-PR","CPIRLPRFM","RATF_CPI_RL_PR","Coupe progressive irrégulière à régénération lente, coupe préparatoire, Martelage, type de peuplement feuillus tolérants, autres résineux et mixte feuillus"]
["CPI_RL-PR","CPIRLPROFM","RATF_CPI_RL_PR","Coupe progressive irrégulière à régénération lente, coupe préparatoire, OPérateur, type de peuplement feuillus tolérants, autres résineux et mixte feuillus"]
["CPI_RL-PR","CPIRLPROSF","RATF_CPI_RL_PR","Coupe progressive irrégulière à régénération lente, coupe préparatoire, Opérateur, type de peuplement SEPM, feuillus intolérants et mixte résineux"]
["CPI_RL-PR","CPIRLPRSF","RATF_CPI_RL_PR","Coupe progressive irrégulière à régénération lente, coupe préparatoire, Martelage, type de peuplement SEPM, feuillus intolérants et mixte résineux"]
["CPR_BA","CPRBAMFM","RATF_CPR_BA","Coupe progressive régulière par bande, Martelage, type de peuplement feuillus tolérants, autres résineux et mixte feuillus"]
["CPR_BA","CPRBAMSF","RATF_CPR_BA","Coupe progressive régulière par bande, Martelage, type de peuplement  SEPM, feuillus intolérants et mixte résineux"]
["CPR_BA","CPRBAOFM","RATF_CPR_BA","Coupe progressive régulière par bande, Opérateur, type de peuplement feuillus tolérants, autres résineux et mixte feuillus"]
["CPR_BA","CPRBAOSF","RATF_CPR_BA","Coupe progressive régulière par bande, Opérateur, type de peuplement  SEPM, feuillus intolérants et mixte résineux"]
["CPR_T","CPRTMFM","RATF_CPR_T","Coupe progressive régulière par troués, Martelage, type de peuplement feuillus tolérants, autres résineux et mixte feuillus"]
["CPR_T","CPRTMSF","RATF_CPR_T","Coupe progressive régulière par trouées, Martelage, type de peuplement  SEPM, feuillus intolérants et mixte résineux"]
["CPR_T","CPRTOFM","RATF_CPR_T","Coupe progressive régulière par trouées, Opérateur, type de peuplement feuillus tolérants, autres résineux et mixte feuillus"]
["CPR_T","CPRTOSF","RATF_CPR_T","Coupe progressive régulière par trouées, Opérateur, type de peuplement  SEPM, feuillus intolérants et mixte résineux"]
["CPR_U-ENS","CPRUENSFM","RATF_CPR_U_ENS","Coupe progressive régulière uniforme, coupe d'ensemencement, Martelage, type de peuplement feuillus tolérants, autres résineux et mixte feuillus"]
["CPR_U-ENS","CPRUENSOFM","RATF_CPR_U_ENS","Coupe progressive régulière uniforme, coupe d'ensemencement, Opérateur, type de peuplement feuillus tolérants, autres résineux et mixte feuillus"]
["CPR_U-ENS","CPRUENSOSF","RATF_CPR_U_ENS","Coupe progressive régulière uniforme, coupe d'ensemencement, Opérateur, type de peuplement SEPM, feuillus intolérants et mixte résineux"]
["CPR_U-ENS","CPRUENSSF","RATF_CPR_U_ENS","Coupe progressive régulière uniforme, coupe d'ensemencement, Martelage, type de peuplement SEPM, feuillus intolérants et mixte résineux"]
["CPR_U-PR","CPRUPRFM","RATF_CPR_U_PR","Coupe progressive régulière uniforme, coupe préparatoire, Martelage, type de peuplement feuillus tolérants, autres résineux et mixte feuillus"]
["CPR_U-PR","CPRUPROFM","RATF_CPR_U_PR","Coupe progressive régulière uniforme, coupe préparatoire, Opérateur, peuplement feuillus tolérants, autres résineux et mixte feuillus"]
["CPR_U-PR","CPRUPROSF","RATF_CPR_U_PR","Coupe progressive régulière uniforme, Coupe préparatoire, Opérateur, peuplement SEPM, feuillus intolérants et mixte résineux"]
["CPR_U-PR","CPRUPRSF","RATF_CPR_U_PR","Coupe progressive régulière uniforme, coupe préparatoire, Martelage, type de peuplement SEPM, feuillus intolérants et mixte résineux"]
["CPR_U-SEC","CPRUSECFM","RATF_CPR_U_SEC","Coupe progressive régulière uniforme, coupe secondaire, Martelage, type de peuplement feuillus tolérants, autres résineux et mixte feuillus"]
["CPR_U-SEC","CPRUSECOFM","RATF_CPR_U_SEC","Coupe progressive régulière uniforme, coupe secondaire, Opérateur, type de peuplement feuillus tolérants, autres résineux et mixte feuillus"]
["CPR_U-SEC","CPRUSECOSF","RATF_CPR_U_SEC","Coupe progressive régulière uniforme, coupe secondaire, Opérateur, type de peuplement SEPM, feuillus intolérants et mixte résineux"]
["CPR_U-SEC","CPRUSECSF","RATF_CPR_U_SEC","Coupe progressive régulière uniforme, coupe secondaire, Martelage, type de peuplement SEPM, feuillus intolérants et mixte résineux"]
["EC_MIXTE-BAS","ECMIXBASFM","RATF_EC_MIXTE_BAS","Éclaircie commerciale mixte par le bas, peuplement feuillus tolérants, autres résineux et mixte feuillus, taux variable"]
["EC_MIXTE-BAS","ECMIXBASPR","RATF_EC_MIXTE_BAS","Éclaircie commerciale mixte par le bas, première éclaircie commerciale de plantation résineuse réservée aux entreprises d'aménagement forestier, taux variable"]
["EC_MIXTE-BAS","ECMIXBASSF","RATF_EC_MIXTE_BAS","Éclaircie commerciale mixte par le bas, peuplement SEPM, feuillus intolérants  et mixte à tendance résineuse, taux variable"]
["EC_MIXTE-HAUT","ECMIXHAUFM","RATF_EC_MIXTE_HAUT","Éclaircie commerciale mixte par le haut, peuplement feuillus tolérants, autres résineux et mixte feuillus, taux variable"]
["EC_MIXTE-HAUT","ECMIXHAUPR","RATF_EC_MIXTE_HAUT","Éclaircie commerciale mixte par le haut, première éclaircie commerciale de plantation résineuse réservée aux entreprises d'aménagement forestier, taux variable"]
["EC_MIXTE-HAUT","ECMIXHAUSF","RATF_EC_MIXTE_HAUT","Éclaircie commerciale mixte par le haut, peuplement SEPM, feuillus intolérants  et mixte à tendance résineuse, taux variable"]
["EC_MIXTE-NEUTRE","ECMIXNEUFM","RATF_EC_MIXTE_NEUTRE","Éclaircie commerciale patron d'intervention mixte neutre, peuplement feuillus tolérants, autres résineux et mixte feuillus, taux variable"]
["EC_MIXTE-NEUTRE","ECMIXNEUPR","RATF_EC_MIXTE_NEUTRE","Éclaircie commerciale mixte neutre, première éclaircie commerciale de plantation résineuse réservée aux entreprises d'aménagement forestier, taux variable"]
["EC_MIXTE-NEUTRE","ECMIXNEUSF","RATF_EC_MIXTE_NEUTRE","Éclaircie commerciale mixte neutre, peuplement SEPM, feuillus intolérants  et mixte à tendance résineuse, taux variable"]
["EC_SEL-BAS","ECSELBASFM","RATF_EC_SEL_BAS","Éclaircie commerciale sélective par le bas, peuplement feuillus tolérants, autres résineux et mixte feuillus, taux variable"]
["EC_SEL-BAS","ECSELBASPR","RATF_EC_SEL_BAS","Éclaircie commerciale sélective par le bas, première éclaircie commerciale de plantation résineuse réservée aux entreprises d'aménagement forestier, taux variable"]
["EC_SEL-BAS","ECSELBASSF","RATF_EC_SEL_BAS","Éclaircie commerciale sélective par le bas, peuplement SEPM et mixte à tendance résineuse et feuillus intolérants, taux variable"]
["EC_SEL-HAUT","ECSELHAUFM","RATF_EC_SEL_HAUT","Éclaircie commerciale sélective par le haut, peuplement feuillus tolérants, autres résineux et mixte feuillus, taux variable"]
["EC_SEL-HAUT","ECSELHAUPR","RATF_EC_SEL_HAUT","Éclaircie commerciale sélective par le haut, première éclaircie commerciale de plantation résineuse réservée aux entreprises d'aménagement forestier, taux variable"]
["EC_SEL-HAUT","ECSELHAUSF","RATF_EC_SEL_HAUT","Éclaircie commerciale sélective par le haut, peuplement SEPM et mixte à tendance résineuse et feuillus intolérants, taux variable"]
["EC_SEL-NEUTRE","ECSELNEUFM","RATF_EC_SEL_NEUTRE","Éclaircie commerciale sélective neutre, peuplement feuillus tolérants, autres résineux et mixte feuillus, taux variable"]
["EC_SEL-NEUTRE","ECSELNEUPR","RATF_EC_SEL_NEUTRE","Éclaircie commerciale sélective neutre, première éclaircie commerciale de plantation résineuse réservée aux entreprises d'aménagement forestier, taux variable"]
["EC_SEL-NEUTRE","ECSELNEUSF","RATF_EC_SEL_NEUTRE","Éclaircie commerciale sélective neutre, peuplement SEPM et mixte à tendance résineuse et feuillus intolérants, taux variable"]
["EJ_P-CLAS","EJPCLAS","RATF_EJ_P_CLAS","Éclaircie jardinatoire par pied d'arbre classique ou finale, Martelage"]
["EJ_PG-CLAS","EJPGCLAS","RATF_EJ_PG_CLAS","Éclaircie jardinatoire par pied d'arbre et groupes d'arbres, classique ou finale, Martelage"]
["EJ_PG-INI","EJPGINI","RATF_EJ_PG_INI","Éclaircie jardinatoire par pied d'arbre et groupes d'arbres initiale, Martelage"]
["EJ_P-INI","EJPINI","RATF_EJ_P_INI","Éclaircie jardinatoire par pied d'arbre initiale, Martelage"]
["Inscrire une valeur",null,"RATF_Utilisateur"]
[]
[]
["Identification des tiges à récolter","Indirect","Valeur_menu_déroulant"]
["Formule 1","Selection_Formule_1","Sans objet"]
["Formule 2","Selection_Formule_2","Sans objet"]
["Formule 4","Selection_Formule_4","Martelage"]
["Formule 4","Selection_Formule_4","Opérateur"]
["Formule 5","Selection_Formule_5","Opérateur"]
["Formule 6","Selection_Formule_6","Opérateur"]
["Formule 7","Selection_Formule_7","Martelage"]
[]
[]
["H1"]
["AVEC hébergement",3.2000000000000001E-2]
["SANS hébergement",0]
[]
[]
["MAN"]
["Opérations MANUELLES",0.35,"Majoration_MAN_F1"]
["Opérations MÉCANISÉES",0,"Majoration_MAN_F1"]
["Sans objet",0,"Majoration_MAN_DIFF_F1"]
[]
[]
["RUB"]
["Pas de rubannage des sentiers"]
[15]
[16]
[17]
[18]
[19]
[20]
[21]
[22]
[23]
[24]
[25]
[]
[]
["Formules"]
["Formule 1"]
["Formule 2"]
["Formule 4"]
["Formule 6"]
["Formule 7"]
["Inscrire une valeur"]
["Formule 5"]
[]
[]
["Code_DICA_vs_Formules","Formule_fin",null,"Valeur_pour_Indirect","DICA_sans_caractères_spéciaux","Indirect"]
["CJB-EMR",4,"Formule_4_CJB-EMR","Formule 4","CJB_EMR","F_CJB_EMR"]
["CJB-EMR",5,"Formule_5_CJB-EMR","Formule 5","CJB_EMR","F_CJB_EMR"]
["CJP-AM",4,"Formule_4_CJP-AM","Formule 4","CJP_AM","F_CJP_AM"]
["CJPG-AM",4,"Formule_4_CJPG-AM","Formule 4","CJPG_AM","F_CJPG_AM"]
["CJPG-HQ",4,"Formule_4_CJPG-HQ","Formule 4","CJPG_HQ","F_CJPG_HQ"]
["CJPG-QM",4,"Formule_4_CJPG-QM","Formule 4","CJPG_QM","F_CJPG_QM"]
["CJP-HQ",4,"Formule_4_CJP-HQ","Formule 4","CJP_HQ","F_CJP_HQ"]
["CJP-QM",4,"Formule_4_CJP-QM","Formule 4","CJP_QM","F_CJP_QM"]
["CJT-EMR",4,"Formule_4_CJT-EMR","Formule 4","CJT_EMR","F_CJT_EMR"]
["CJT-EMR",5,"Formule_5_CJT-EMR","Formule 5","CJT_EMR","F_CJT_EMR"]
["CPI_CP-ENS_B",6,"Formule_6_CPI_CP-ENS_B","Formule 6","CPI_CP_ENS_B","F_CPI_CP_ENS_B"]
["CPI_CP-ENS_B",7,"Formule_7_CPI_CP-ENS_B","Formule 7","CPI_CP_ENS_B","F_CPI_CP_ENS_B"]
["CPI_CP-ENS_U",4,"Formule_4_CPI_CP-ENS_U","Formule 4","CPI_CP_ENS_U","F_CPI_CP_ENS_U"]
["CPI_CP-ENS_U",5,"Formule_6_CPI_CP-ENS_U","Formule 6","CPI_CP_ENS_U","F_CPI_CP_ENS_U"]
["CPI_CP-ENS_U",6,"Formule_7_CPI_CP-ENS_U","Formule 7","CPI_CP_ENS_U","F_CPI_CP_ENS_U"]
["CPI_CP-ENS_U",5,"Formule_5_CPI_CP-ENS_U","Formule 5","CPI_CP_ENS_U","F_CPI_CP_ENS_U"]
["CPI_CP-SEC_B",6,"Formule_6_CPI_CP-SEC_B","Formule 6","CPI_CP_SEC_B","F_CPI_CP_SEC_B"]
["CPI_CP-SEC_B",7,"Formule_7_CPI_CP-SEC_B","Formule 7","CPI_CP_SEC_B","F_CPI_CP_SEC_B"]
["CPI_CP-SEC_U",4,"Formule_4_CPI_CP-SEC_U","Formule 4","CPI_CP_SEC_U","F_CPI_CP_SEC_U"]
["CPI_CP-SEC_U",6,"Formule_6_CPI_CP-SEC_U","Formule 6","CPI_CP_SEC_U","F_CPI_CP_SEC_U"]
["CPI_CP-SEC_U",7,"Formule_7_CPI_CP-SEC_U","Formule 7","CPI_CP_SEC_U","F_CPI_CP_SEC_U"]
["CPI_CP-SEC_U",5,"Formule_5_CPI_CP-SEC_U","Formule 5","CPI_CP_SEC_U","F_CPI_CP_SEC_U"]
["CPI_RL-1INR_ENS",4,"Formule_4_CPI_RL-1INR_ENS","Formule 4","CPI_RL-1INR_ENS","F_CPI_RL_1INR_ENS"]
["CPI_RL-1INR_ENS",6,"Formule_6_CPI_RL-1INR_ENS","Formule 6","CPI_RL-1INR_ENS","F_CPI_RL_1INR_ENS"]
["CPI_RL-1INR_ENS",7,"Formule_7_CPI_RL-1INR_ENS","Formule 7","CPI_RL-1INR_ENS","F_CPI_RL_1INR_ENS"]
["CPI_RL-1INR_ENS",5,"Formule_5_CPI_RL-1INR_ENS","Formule 5","CPI_RL-1INR_ENS","F_CPI_RL_1INR_ENS"]
["CPI_RL-1INR_MUL",4,"Formule_4_CPI_RL-1INR_MUL","Formule 4","CPI_RL-1INR_MUL","F_CPI_RL_1INR_MUL"]
["CPI_RL-1INR_MUL",6,"Formule_6_CPI_RL-1INR_MUL","Formule 6","CPI_RL-1INR_MUL","F_CPI_RL_1INR_MUL"]
["CPI_RL-1INR_MUL",7,"Formule_7_CPI_RL-1INR_MUL","Formule 7","CPI_RL-1INR_MUL","F_CPI_RL_1INR_MUL"]
["CPI_RL-1INR_MUL",5,"Formule_5_CPI_RL-1INR_MUL","Formule 5","CPI_RL-1INR_MUL","F_CPI_RL_1INR_MUL"]
["CPI_RL-1INR_SEC",4,"Formule_4_CPI_RL-1INR_SEC","Formule 4","CPI_RL-1INR_SEC","F_CPI_RL_1INR_SEC"]
["CPI_RL-1INR_SEC",6,"Formule_6_CPI_RL-1INR_SEC","Formule 6","CPI_RL-1INR_SEC","F_CPI_RL_1INR_SEC"]
["CPI_RL-1INR_SEC",7,"Formule_7_CPI_RL-1INR_SEC","Formule 7","CPI_RL-1INR_SEC","F_CPI_RL_1INR_SEC"]
["CPI_RL-1INR_SEC",5,"Formule_5_CPI_RL-1INR_SEC","Formule 5","CPI_RL-1INR_SEC","F_CPI_RL_1INR_SEC"]
["CPI_RL-2I_ENS",4,"Formule_4_CPI_RL-2I_ENS","Formule 4","CPI_RL_2I_ENS","F_CPI_RL_2I_ENS"]
["CPI_RL-2I_ENS",6,"Formule_6_CPI_RL-2I_ENS","Formule 6","CPI_RL_2I_ENS","F_CPI_RL_2I_ENS"]
["CPI_RL-2I_ENS",7,"Formule_7_CPI_RL-2I_ENS","Formule 7","CPI_RL_2I_ENS","F_CPI_RL_2I_ENS"]
["CPI_RL-2I_ENS",5,"Formule_5_CPI_RL-2I_ENS","Formule 5","CPI_RL_2I_ENS","F_CPI_RL_2I_ENS"]
["CPI_RL-2I_MUL",4,"Formule_4_CPI_RL-2I_MUL","Formule 4","CPI_RL-2I_MUL","F_CPI_RL_2I_MUL"]
["CPI_RL-2I_MUL",6,"Formule_6_CPI_RL-2I_MUL","Formule 6","CPI_RL-2I_MUL","F_CPI_RL_2I_MUL"]
["CPI_RL-2I_MUL",7,"Formule_7_CPI_RL-2I_MUL","Formule 7","CPI_RL-2I_MUL","F_CPI_RL_2I_MUL"]
["CPI_RL-2I_MUL",5,"Formule_5_CPI_RL-2I_MUL","Formule 5","CPI_RL-2I_MUL","F_CPI_RL_2I_MUL"]
["CPI_RL-2I_SEC",4,"Formule_4_CPI_RL-2I_SEC","Formule 4","CPI_RL_2I_SEC","F_CPI_RL_2I_SEC"]
["CPI_RL-2I_SEC",6,"Formule_6_CPI_RL-2I_SEC","Formule 6","CPI_RL_2I_SEC","F_CPI_RL_2I_SEC"]
["CPI_RL-2I_SEC",7,"Formule_7_CPI_RL-2I_SEC","Formule 7","CPI_RL_2I_SEC","F_CPI_RL_2I_SEC"]
["CPI_RL-2I_SEC",5,"Formule_5_CPI_RL-2I_SEC","Formule 5","CPI_RL_2I_SEC","F_CPI_RL_2I_SEC"]
["CPI_RL-3I_ENS",4,"Formule_4_CPI_RL-3I_ENS","Formule 4","CPI_RL_3I_ENS","F_CPI_RL_3I_ENS"]
["CPI_RL-3I_ENS",6,"Formule_6_CPI_RL-3I_ENS","Formule 6","CPI_RL_3I_ENS","F_CPI_RL_3I_ENS"]
["CPI_RL-3I_ENS",7,"Formule_7_CPI_RL-3I_ENS","Formule 7","CPI_RL_3I_ENS","F_CPI_RL_3I_ENS"]
["CPI_RL-3I_ENS",5,"Formule_5_CPI_RL-3I_ENS","Formule 5","CPI_RL_3I_ENS","F_CPI_RL_3I_ENS"]
["CPI_RL-3I_MUL",4,"Formule_4_CPI_RL-3I_MUL","Formule 4","CPI_RL-3I_MUL","F_CPI_RL_3I_MUL"]
["CPI_RL-3I_MUL",6,"Formule_6_CPI_RL-3I_MUL","Formule 6","CPI_RL-3I_MUL","F_CPI_RL_3I_MUL"]
["CPI_RL-3I_MUL",7,"Formule_7_CPI_RL-3I_MUL","Formule 7","CPI_RL-3I_MUL","F_CPI_RL_3I_MUL"]
["CPI_RL-3I_MUL",5,"Formule_5_CPI_RL-3I_MUL","Formule 5","CPI_RL-3I_MUL","F_CPI_RL_3I_MUL"]
["CPI_RL-3I_SEC",4,"Formule_4_CPI_RL-3I_SEC","Formule 4","CPI_RL_3I_SEC","F_CPI_RL_3I_SEC"]
["CPI_RL-3I_SEC",6,"Formule_6_CPI_RL-3I_SEC","Formule 6","CPI_RL_3I_SEC","F_CPI_RL_3I_SEC"]
["CPI_RL-3I_SEC",7,"Formule_7_CPI_RL-3I_SEC","Formule 7","CPI_RL_3I_SEC","F_CPI_RL_3I_SEC"]
["CPI_RL-3I_SEC",5,"Formule_5_CPI_RL-3I_SEC","Formule 5","CPI_RL_3I_SEC","F_CPI_RL_3I_SEC"]
["CPI_RL-MUL",4,"Formule_4_CPI_RL-MUL","Formule 4","CPI_RL_MUL","F_CPI_RL_MUL"]
["CPI_RL-MUL",6,"Formule_6_CPI_RL-MUL","Formule 6","CPI_RL_MUL","F_CPI_RL_MUL"]
["CPI_RL-MUL",7,"Formule_7_CPI_RL-MUL","Formule 7","CPI_RL_MUL","F_CPI_RL_MUL"]
["CPI_RL-MUL",5,"Formule_5_CPI_RL-MUL","Formule 5","CPI_RL_MUL","F_CPI_RL_MUL"]
["CPI_RL-PR",4,"Formule_4_CPI_RL-PR","Formule 4","CPI_RL_PR","F_CPI_RL_PR"]
["CPI_RL-PR",6,"Formule_6_CPI_RL-PR","Formule 6","CPI_RL_PR","F_CPI_RL_PR"]
["CPI_RL-PR",7,"Formule_7_CPI_RL-PR","Formule 7","CPI_RL_PR","F_CPI_RL_PR"]
["CPI_RL-PR",5,"Formule_5_CPI_RL-PR","Formule 5","CPI_RL_PR","F_CPI_RL_PR"]
["CPR_BA",4,"Formule_4_CPR_BA","Formule 4","CPR_BA","F_CPR_BA"]
["CPR_BA",6,"Formule_6_CPR_BA","Formule 6","CPR_BA","F_CPR_BA"]
["CPR_BA",7,"Formule_7_CPR_BA","Formule 7","CPR_BA","F_CPR_BA"]
["CPR_BA",5,"Formule_5_CPR_BA","Formule 5","CPR_BA","F_CPR_BA"]
["CPR_T",4,"Formule_4_CPR_T","Formule 4","CPR_T","F_CPR_T"]
["CPR_T",6,"Formule_6_CPR_T","Formule 6","CPR_T","F_CPR_T"]
["CPR_T",7,"Formule_7_CPR_T","Formule 7","CPR_T","F_CPR_T"]
["CPR_T",5,"Formule_5_CPR_T","Formule 5","CPR_T","F_CPR_T"]
["CPR_U-ENS",4,"Formule_4_CPR_U-ENS","Formule 4","CPR_U_ENS","F_CPR_U_ENS"]
["CPR_U-ENS",6,"Formule_6_CPR_U-ENS","Formule 6","CPR_U_ENS","F_CPR_U_ENS"]
["CPR_U-ENS",7,"Formule_7_CPR_U-ENS","Formule 7","CPR_U_ENS","F_CPR_U_ENS"]
["CPR_U-ENS",5,"Formule_5_CPR_U-ENS","Formule 5","CPR_U_ENS","F_CPR_U_ENS"]
["CPR_U-PR",4,"Formule_4_CPR_U-PR","Formule 4","CPR_U_PR","F_CPR_U_PR"]
["CPR_U-PR",6,"Formule_6_CPR_U-PR","Formule 6","CPR_U_PR","F_CPR_U_PR"]
["CPR_U-PR",7,"Formule_7_CPR_U-PR","Formule 7","CPR_U_PR","F_CPR_U_PR"]
["CPR_U-PR",5,"Formule_5_CPR_U-PR","Formule 5","CPR_U_PR","F_CPR_U_PR"]
["CPR_U-SEC",4,"Formule_4_CPR_U-SEC","Formule 4","CPR_U-SEC","F_CPR_U_SEC"]
["CPR_U-SEC",6,"Formule_6_CPR_U-SEC","Formule 6","CPR_U-SEC","F_CPR_U_SEC"]
["CPR_U-SEC",7,"Formule_7_CPR_U-SEC","Formule 7","CPR_U-SEC","F_CPR_U_SEC"]
["CPR_U-SEC",5,"Formule_5_CPR_U-SEC","Formule 5","CPR_U-SEC","F_CPR_U_SEC"]
["EC_MIXTE-BAS",1,"Formule_1_EC_MIXTE-BAS","Formule 1","EC_MIXTE_BAS","F_EC_MIXTE_BAS"]
["EC_MIXTE-BAS",2,"Formule_2_EC_MIXTE-BAS","Formule 2","EC_MIXTE_BAS","F_EC_MIXTE_BAS"]
["EC_MIXTE-HAUT",1,"Formule_1_EC_MIXTE-HAUT","Formule 1","EC_MIXTE_HAUT","F_EC_MIXTE_HAUT"]
["EC_MIXTE-HAUT",2,"Formule_2_EC_MIXTE-HAUT","Formule 2","EC_MIXTE_HAUT","F_EC_MIXTE_HAUT"]
["EC_MIXTE-NEUTRE",1,"Formule_1_EC_MIXTE-NEUTRE","Formule 1","EC_MIXTE_NEUTRE","F_EC_MIXTE_NEUTRE"]
["EC_MIXTE-NEUTRE",2,"Formule_2_EC_MIXTE-NEUTRE","Formule 2","EC_MIXTE_NEUTRE","F_EC_MIXTE_NEUTRE"]
["EC_SEL-BAS",1,"Formule_1_EC_SEL-BAS","Formule 1","EC_SEL_BAS","F_EC_SEL_BAS"]
["EC_SEL-BAS",2,"Formule_2_EC_SEL-BAS","Formule 2","EC_SEL_BAS","F_EC_SEL_BAS"]
["EC_SEL-HAUT",1,"Formule_1_EC_SEL-HAUT","Formule 1","EC_SEL_HAUT","F_EC_SEL_HAUT"]
["EC_SEL-HAUT",2,"Formule_2_EC_SEL-HAUT","Formule 2","EC_SEL_HAUT","F_EC_SEL_HAUT"]
["EC_SEL-NEUTRE",1,"Formule_1_EC_SEL-NEUTRE","Formule 1","EC_SEL_NEUTRE","F_EC_SEL_NEUTRE"]
["EC_SEL-NEUTRE",2,"Formule_2_EC_SEL-NEUTRE","Formule 2","EC_SEL_NEUTRE","F_EC_SEL_NEUTRE"]
["EJ_P-CLAS",4,"Formule_4_EJ_P-CLAS","Formule 4","EJ_P_CLAS","F_EJ_P_CLAS"]
["EJ_PG-CLAS",4,"Formule_4_EJ_PG-CLAS","Formule 4","EJ_PG_CLAS","F_EJ_PG_CLAS"]
["EJ_PG-INI",4,"Formule_4_EJ_PG-INI","Formule 4","EJ_PG_INI","F_EJ_PG_INI"]
["EJ_P-INI",4,"Formule_4_EJ_P-INI","Formule 4","EJ_P_INI","F_EJ_P_INI"]
[null,1,"Formule_1_Utilisateur","Formule 1","Utilisateur","F_Utilisateur"]
[null,2,"Formule_2_Utilisateur","Formule 2","Utilisateur","F_Utilisateur"]
[null,4,"Formule_4_Utilisateur","Formule 4","Utilisateur","F_Utilisateur"]
[null,6,"Formule_6_Utilisateur","Formule 6","Utilisateur","F_Utilisateur"]
[null,7,"Formule_7_Utilisateur","Formule 7","Utilisateur","F_Utilisateur"]
[null,5,"Formule_5_Utilisateur","Formule 5","Utilisateur","F_Utilisateur"]
[]
[]
["Zone de tarification","Taux"]
[151,0]
[152,0]
[153,0]
[154,0]
[155,0]
[156,0]
[157,0]
[158,0]
[180,0]
[181,80]
[182,0]
[183,20]
[184,240]
[185,100]
[186,80]
[187,160]
[190,280]
[191,240]
[192,160]
[193,100]
[194,20]
[195,0]
[240,0]
[241,80]
[242,180]
[243,180]
[244,240]
[245,260]
[246,300]
[247,300]
[250,300]
[251,300]
[252,300]
[253,300]
[254,300]
[255,140]
[256,220]
[257,300]
[258,300]
[259,300]
[260,300]
[261,300]
[262,300]
[263,300]
[264,300]
[265,300]
[266,220]
[267,300]
[268,300]
[269,300]
[270,300]
[271,300]
[272,300]
[273,300]
[274,300]
[275,300]
[276,300]
[277,300]
[278,300]
[279,300]
[280,300]
[281,300]
[282,300]
[283,300]
[284,300]
[285,300]
[286,300]
[287,300]
[288,300]
[289,300]
[290,300]
[291,300]
[292,300]
[350,20]
[351,0]
[352,40]
[353,40]
[354,140]
[355,220]
[356,300]
[357,300]
[450,100]
[451,0]
[452,0]
[453,0]
[454,0]
[455,20]
[456,0]
[457,0]
[458,60]
[459,80]
[460,220]
[461,300]
[551,0]
[650,0]
[651,80]
[652,240]
[653,160]
[654,200]
[655,60]
[656,160]
[657,160]
[658,280]
[659,300]
[660,180]
[661,60]
[662,0]
[750,0]
[751,80]
[752,240]
[753,300]
[754,120]
[755,80]
[756,300]
[757,300]
[758,300]
[850,0]
[851,0]
[852,0]
[853,0]
[854,0]
[855,0]
[856,140]
[857,120]
[858,120]
[859,180]
[860,300]
[861,240]
[862,300]
[863,300]
[864,300]
[865,300]
[866,300]
[867,300]
[868,300]
[869,300]
[870,300]
[871,300]
[872,300]
[873,300]
[874,300]
[875,300]
[876,300]
[877,300]
[878,300]
[879,300]
[880,300]
[881,300]
[882,300]
[883,300]
[884,300]
[885,300]
[886,300]
[887,300]
[888,300]
[889,300]
[890,300]
[891,300]
[892,300]
[950,300]
[951,300]
[952,300]
[953,300]
[954,300]
[955,300]
[956,300]
[957,300]
[960,300]
[961,300]
[962,300]
[963,300]
[964,300]
[965,300]
[966,300]
[967,300]
[970,300]
[980,300]
[981,300]
[982,300]
[983,300]
[984,300]
[985,300]
[986,300]
[987,300]
[990,300]
[995,0]
[]
["Contexte"]
["Planification"]
["BGAD"]
["Ministère"]
["Inscrire une valeur"]
[]
["Question_2"]
["Oui"]
["Non"]
["Sans objet"]
[]
[]
["Onglet «Martelage»"]
[]
["Traitement unique","Taux","Unité"]
["Martelage","Variable","$/ha"]
["Martelage négatif - EC (résineux ou mixte résineux)",{"$f":"'Calculs grille'!$I$8","v":183},"$/ha"]
["Martelage positif - EC (résineux ou mixte résineux)",{"$f":"'Calculs grille'!$I$9","v":96},"$/ha"]
["Inscrire une valeur",0,"-"]
[]
["Type de coupe","Facteur"]
["CRS",0.64200000000000002]
["CPI",1]
["CPR",1]
["CJ",1]
["EC feuillus et pins",1]
[]
["H3"]
["AVEC hébergement (inscrire un taux)",0]
["AVEC hébergement (taux maximum)",9.0999999999999998E-2]
["SANS hébergement",0]
[]
["D200"]
["Distance de 0 à 199 kilomètres",0]
["Distance de 200 kilomètres et plus",5.8000000000000003E-2]
[]
["Délimitation des secteurs"]
[0]
[{"$f":"'Calculs grille'!$I$3","v":76}]
[]
["Taux vérification"]
[0]
[{"$f":"'Calculs grille'!$I$10","v":23}]
[]
["Codes_DICA"]
["MART"]
[]
["Codes_RATF"]
["INVAPM"]
["MARTGE"]
["MECON"]
["MECOP"]
[]
[]
["Rexforêt"]
["Vérification INCLUS"]
["Vérification EXCLUS"]
["Inscrire une valeur"]

{"sheet":"Majorations applicables","index":8,"n_rows":49,"n_cols":7,"rows_kept":49,"cut":false,"hidden":true,"merged":[]}
["Formule","M1","M2","M3","M4","M5","Total"]
["Formule 1","PE2","MAN","RUB1","H1",null,{"$f":"B2&\" - \"&C2&\" - \"&D2&\" - \"&E2","v":"PE2 - MAN - RUB1 - H1"}]
["Formule 2","PE2","RUB1","H1",null,null,{"$f":"B3&\" - \"&C3&\" - \"&D3","v":"PE2 - RUB1 - H1"}]
["Formule 4","EMR1","BNT1","PE2","RUB1","H1",{"$f":"B4&\" - \"&C4&\" - \"&D4&\" - \"&E4&\" - \"&F4","v":"EMR1 - BNT1 - PE2 - RUB1 - H1"}]
["Formule 5","EMR1","BNT1","PE2","RUB1","H1",{"$f":"B5&\" - \"&C5&\" - \"&D5&\" - \"&E5&\" - \"&F5","v":"EMR1 - BNT1 - PE2 - RUB1 - H1"}]
["Formule 6","EMR1","BNT1","PE2","H1",null,{"$f":"B6&\" - \"&C6&\" - \"&D6&\" - \"&E6","v":"EMR1 - BNT1 - PE2 - H1"}]
["Formule 7","EMR1","BNT1","PE2","RUB1","H1",{"$f":"B7&\" - \"&C7&\" - \"&D7&\" - \"&E7&\" - \"&F7","v":"EMR1 - BNT1 - PE2 - RUB1 - H1"}]
["Inscrire une valeur",null,null,null,null,null,"Inscrire une valeur à la cellule I13"]
[]
["PE2"]
["Pente A",{"$f":"(0+1)","v":1}]
["Pente B",{"$f":"(0+1)","v":1}]
["Pente C",{"$f":"(1+0.007)","v":1.0069999999999999}]
["Pente D",{"$f":"(1+0.026)","v":1.026}]
["Pente E et plus",{"$f":"(1+0.061)","v":1.0609999999999999}]
[]
["BNT1"]
["Formule","BNT1 = (0,8 x Pr2) - (1,8 x Pr) + 1"]
["C1",0.8]
["C2",2]
["C3",1.8]
["C4",1]
[]
["RUB1"]
["Formule",{"$f":"$B$26&\" * ESP EXP \"&$B$27","v":"1145 * ESP EXP -1"}]
["C1",1145]
["C2",-1]
[]
["PCT Investissement"]
[0.9]
[]
["Volet I (Transport)"]
[1.9]
[442]
[]
["Volet II"]
["Bois transporté en longueur",47]
["Mesurage  optimisé",78]
[]
["Plancher d'investissement"]
["Travaux techniques",39]
[]
["Traitement","Équation_texte","Équation_référencée"]
["Martelage","Taux ($/ha) = (144,23 - (35,68 * PF) + (4,09 * NbMSCROP)) * TC",{"$f":"\"Taux ($/ha) = (\"&'Calculs grille'!I5&\" - (\"&'Calculs grille'!I6&\" * PF) + (\"&'Calculs grille'!I7&\" * NbMSCROP)) * TC\"","v":"Taux ($/ha) = (144,23 - (35,68 * PF) + (4,09 * NbMSCROP)) * TC"}]
[]
["Majorations applicables"]
["Martelage","Martelage","H3","D200"]
["Martelage","Martelage positif - EC (résineux ou mixte résineux)","H3","D200"]
["Martelage","Martelage négatif - EC (résineux ou mixte résineux)","H3","D200"]

{"sheet":"RXF","index":9,"n_rows":4,"n_cols":7,"rows_kept":4,"cut":false,"hidden":true,"merged":[]}
["Traitement","Onglet","Taux total","Taux sans vérif","Grand total","Vérification","Grand total sans vérification"]
[{"$f":"Menus!A690","v":"Martelage"},"Martelage",{"$f":"Martelage!$G$47","v":0},{"$f":"Martelage!$G$44","v":0},{"$f":"Martelage!$G$51","v":0},{"$f":"Martelage!$G$50","v":0},{"$f":"E2-F2","v":0}]
[{"$f":"Menus!A691","v":"Martelage négatif - EC (résineux ou mixte résineux)"},"Martelage",{"$f":"Martelage!$G$59","v":0},{"$f":"Martelage!$G$56","v":0},{"$f":"Martelage!$G$63","v":0},{"$f":"Martelage!$G$62","v":0},{"$f":"E3-F3","v":0}]
[{"$f":"Menus!A692","v":"Martelage positif - EC (résineux ou mixte résineux)"},"Martelage",{"$f":"Martelage!$G$59","v":0},{"$f":"Martelage!$G$56","v":0},{"$f":"Martelage!$G$63","v":0},{"$f":"Martelage!$G$62","v":0},0]

{"sheet":"Calculs grille","index":10,"n_rows":10,"n_cols":10,"rows_kept":10,"cut":false,"hidden":true,"merged":[[0,9,1,9],[0,6,1,6],[0,8,1,8],[0,0,1,0],[0,1,1,1],[0,2,1,2],[0,3,1,3],[0,4,1,4],[0,5,1,5]]}
["Famille","Type_1","Type_2","Type_3","Paiement","Intrant","Code","2018-2019","2018-2019","Source 18-19"]
[null,null,null,null,null,null,null,"Non \narrondis"]
["Travaux technique","Valeur des activités liées au martelage pour les traitements commerciaux","Délimitation de secteurs",null,"Taux fixe",null,"Constante",75.85640034239141,76,"='[Fichier calcul grille_VTSNC_ 2018-2019.xlsx]Feuille de calcul'!Z127"]
["Travaux technique","Valeur des activités liées au martelage pour les traitements commerciaux","Martelage",null,"Taux variable","Taux moyen","Constante",0,8.9160000000000004,"='[Fichier calcul grille_VTSNC_ 2018-2019.xlsx]Feuille de calcul'!Z127"]
["Travaux technique","Valeur des activités liées au martelage pour les traitements commerciaux","Martelage",null,"Taux variable","Constante","Constante",144.2301160715844,144.22999999999999,"='[Fichier calcul grille_VTSNC_ 2018-2019.xlsx]Feuille de calcul'!Z130"]
["Travaux technique","Valeur des activités liées au martelage pour les traitements commerciaux","Martelage",null,"Taux variable","Variable 1","Variable 1",35.682471036101894,35.68,"='[Fichier calcul grille_VTSNC_ 2018-2019.xlsx]Feuille de calcul'!Z131"]
["Travaux technique","Valeur des activités liées au martelage pour les traitements commerciaux","Martelage",null,"Taux variable","Variable 2","Variable 2",4.0921964158999149,4.09,"='[Fichier calcul grille_VTSNC_ 2018-2019.xlsx]Feuille de calcul'!Z132"]
["Travaux technique","Valeur des activités liées au martelage pour les traitements commerciaux","Martelage en éclaircie commerciale en peuplement résineux (ou mixte à tendance résineuse)","Martelage négatif","Taux fixe",null,"Constante",183.44823091251104,183,"='[Fichier calcul grille_VTSNC_ 2018-2019.xlsx]Feuille de calcul'!Z133"]
["Travaux technique","Valeur des activités liées au martelage pour les traitements commerciaux","Martelage en éclaircie commerciale en peuplement résineux (ou mixte à tendance résineuse)","Martelage positif","Taux fixe",null,"Constante",95.61940559305981,96,"='[Fichier calcul grille_VTSNC_ 2018-2019.xlsx]Feuille de calcul'!Z134"]
["Travaux technique","Valeur des activités liées au martelage pour les traitements commerciaux","Inventaire après martelage",null,"Taux fixe",null,"Constante",23.229439282451846,23,"='[Fichier calcul grille_VTSNC_ 2018-2019.xlsx]Feuille de calcul'!Z135"]

{"sheet":"Log","index":11,"n_rows":1,"n_cols":4,"rows_kept":1,"cut":false,"hidden":true,"merged":[]}
["Utilisateur","Date","OS","Excel"]